{"text_format":"1","workbook":"xlsx","n_sheets":11,"sheets":["Prompt","C100","C101","C200","C300","C338","C400","C500","C700","C800","Enviar"],"not_rendered":{"charts":0,"images":6,"macros":1,"external_links":0,"defined_names":2,"comments":1,"pivot_tables":0},"unopened":[],"bounds":{"document_bytes":16777216,"sheet_cells":100000,"rows_first":2000,"rows_last":500,"rows_between":2000,"halvings":0,"cell_chars":16384,"cell_head_chars":4096},"cells_cut":0,"cells_raw":0,"read":"whole","date_system":"1900"}

{"sheet":"Prompt","index":0,"n_rows":79,"n_cols":4,"rows_kept":79,"cut":false,"hidden":true,"merged":[[1,3,2,6],[4,1,6,8],[43,1,44,8],[78,1,79,8],[9,1,10,8]]}
[]
[null,null,null,"¡ATENCIÓN!"]
[]
[]
[null,"Para hacer uso de las funcionalidades de esta Cédula Electrónica debe habilitar macros"]
[]
[]
[]
[]
[null,"Si utiliza Excel 2013 siga el siguiente procedimiento:"]
[]
[]
[]
[]
[]
[]
[]
[]
[]
[]
[]
[]
[]
[]
[]
[]
[]
[]
[]
[]
[]
[]
[]
[]
[]
[]
[]
[]
[]
[]
[]
[]
[]
[null,"Si utiliza Excel 2007 siga el siguiente procedimiento:"]
[]
[]
[]
[]
[]
[]
[]
[]
[]
[]
[]
[]
[]
[]
[]
[]
[]
[]
[]
[]
[]
[]
[]
[]
[]
[]
[]
[]
[]
[]
[]
[]
[]
[]
[null,"Si utiliza Excel 2000, 2002, 2003 siga el siguiente procedimiento:"]

{"sheet":"C100","index":1,"n_rows":535,"n_cols":23,"rows_kept":535,"cut":false,"hidden":false,"merged":[[523,19,523,20],[505,18,506,19],[505,20,506,21],[505,15,507,17],[60,3,60,5],[125,3,126,5],[125,8,125,9],[125,10,125,11],[126,8,126,9],[106,6,106,10],[69,3,69,5],[94,4,94,9],[107,21,107,22],[108,21,108,22],[109,21,109,22],[110,21,110,22],[111,16,111,18],[111,21,111,22],[98,19,98,20],[258,6,258,11],[105,21,105,22],[106,21,106,22],[83,17,83,22],[158,17,158,21],[12,21,12,22],[14,9,14,22],[37,10,37,11],[52,2,52,12],[99,4,99,10],[105,4,105,10],[117,3,117,6],[521,19,521,20],[522,19,522,20],[16,19,16,22],[16,9,16,16],[444,17,444,21],[485,15,487,17],[485,19,486,20],[485,21,486,22],[497,16,497,18],[428,19,428,21],[429,19,429,21],[212,19,212,20],[229,17,229,22],[36,21,37,21],[46,17,46,19],[128,8,128,9],[392,6,392,10],[367,6,367,9],[475,6,475,11],[215,5,215,9],[347,11,348,11],[1,6,1,19],[2,6,2,19],[3,6,3,19],[12,9,12,10],[44,7,44,8],[44,9,44,10],[40,10,40,11],[121,10,121,11],[119,10,119,11],[120,10,120,11],[88,6,88,10],[117,10,117,11],[43,7,43,10],[284,6,284,10],[231,8,231,11],[379,18,379,22],[368,6,368,9],[380,6,380,11],[211,19,211,20],[425,8,425,11],[105,14,105,17],[515,16,515,17],[325,17,325,21],[126,17,126,22],[132,14,132,17],[399,17,399,21],[333,4,333,10],[334,11,335,11],[336,11,337,11],[338,11,339,11],[340,11,341,11],[343,11,344,11],[147,6,147,11],[476,6,477,8],[476,9,477,11],[129,8,129,11],[127,8,127,9],[475,4,477,5],[161,15,162,16],[345,11,346,11],[246,8,246,11],[160,8,161,9],[162,8,162,9],[352,11,353,11],[2,20,4,22],[462,19,462,22],[160,3,161,6],[36,15,37,17],[37,19,37,20],[38,19,38,20],[39,19,39,20],[40,19,40,20],[41,19,41,20],[160,10,162,11],[118,10,118,11],[163,8,163,9],[164,8,164,9],[163,10,163,11],[164,10,164,11],[189,4,189,9],[189,10,191,10],[189,11,191,11],[190,4,190,9],[191,4,191,9],[192,4,192,9],[160,7,161,7],[43,4,45,5],[102,4,102,10]]}
[]
[null,null,null,null,null,null,"CENSO EDUCATIVO 2023",null,null,null,null,null,null,null,null,null,null,null,null,null,"CÉDULA"]
[null,null,null,null,null,null,"EDUCACIÓN BÁSICA REGULAR",null,null,null,null,null,null,null,null,null,null,null,null,null,"3AS"]
[null,null,null,null,null,null,"SECUNDARIA"]
[null,null,"Versión :","3 - (32 y 64 bits)"]
[null,null,"INSTRUCCIONES DEL FORMATO ELECTRÓNICO "]
[]
[]
[]
[null,null,"IDENTIFICACIÓN DEL SERVICIO EDUCATIVO"]
[]
[]
[null,null,"1. CÓDIGO MODULAR  :",null,null,null,null,null,null,null,null,null,"2. ANEXO  :",null,0,null,null,null,null,null,"3. LOCAL EDUCATIVO :  "]
[]
[null,null,"4. NOMBRE DEL SERVICIO/NIVEL EDUCATIVO:",null,null,null,null,null,null,""]
[]
[null,null,"5. DISTRITO :",null,null,null,null,null,null,"",null,null,null,null,null,null,null,null,"LOCALIDAD :  "]
[]
[null,null,"6. FORMA Y MODELO DEL SERVICIO :"]
[null,null,null,null,"Presencial",null,null,null,null,null,"Semi-Presencial",null,null,null,null," A Distancia"]
[]
[null,null,null,null,null,"JER - Jornada Escolar Regular",null,null,null,null,"Secundaria en Alternancia",null,null,null,null,null,"CPED - Centro Piloto de Educación a Distancia"]
[null,null,null,null,null,"JEC - Jornada Escolar Completa",null,null,null,null,"Secundaria Tutorial",null,null,null,null,null,"Otro"]
[null,null,null,null,null,"COAR - Colegio de Alto Rendimiento"]
[null,null,null,null,null,"Secundaria con Residencia Estundiantil"]
[]
[]
["GESTIÓN"]
[{"$f":"CONCATENATE(TRIM(UPPER(J29)),TRIM(UPPER(O29)),TRIM(UPPER(T29)))","v":""},null,null,"Esta Institución Educativa es de Gestión : ",null,null,null,null,null,""," 1 - Pública de gestión directa",null,null,null,""," 2 - Pública de gestión privada",null,null,null,null," 3 - Privada"]
[]
[]
[null,null,"100. CARACTERÍSTICAS DEL SERVICIO EDUCATIVO"]
[]
[null,null,"A. CARACTERÍSTICA DE LA ENSEÑANZA"]
[null,null,"101.A  CON RESPECTO A LAS CLASES:",null,null,null,null,null,null,null,null,null,null,"103.A. ¿CUÁNTO ES LA DURACIÓN EN MINUTOS?"]
[]
[null,null,null,"A. ¿CUÁNDO INICIARON LAS CLASES?",null,null,null,null,"Día",null,"Mes",null,null,null,null,"Espacio educativo para interacción social",null,null,"¿Tiene?","¿ Dentro Horario?",null,"Tiempo en Minutos","SI"]
[null,null,null," (Primer día en que asistieron los estudiantes)",null,null,null,null,null,"-",null,null,null,null,null,null,null,null,"Sí - No","Sí - No",null,null,"NO"]
[null,null,null,null,null,null,null,null,null,null,null,null,null,null,1,"De los recreos",null,""]
[null,null,null,"B. ¿CUÁNDO TERMINARÁN LAS CLASES?",null,null,null,null,"Día",null,"Mes",null,null,null,2,"Del desayuno escolar",null,""]
[null,null,null,"(Último día en que asistirán los estudiantes)",null,null,null,null,null,"-",null,null,null,null,3,"Del almuerzo escolar",null,""]
[null,null,null,null,null,null,null,null,null,null,null,null,null,null,4,"De la lonchera"]
[null,null,"102.A  HORARIO DE CLASES DE LOS ESTUDIANTES:",null,null,null,null,null,null,null,null,null,null,null,null,null,null,"",{"$f":"COUNTIF(S39:S42,\"SI\")+COUNTIF(S39:S42,\"NO\")","v":0}]
[null,null,null,null,"TURNO",null,null,"Horario de clases",null,null,null,null,null,"104.A. ¿ESTE SERVICIO/NIVEL EDUCATIVO BRINDA EL SERVICIO DE ALIMENTACIÓN"]
[null,null,null,null,null,null,null,"Inicio",null,"Término",null,null,null,null,"QUIOSCO Y/O COMEDOR?"]
[null,null,null,null,null,null,{"$f":"SUM(G47:G49)","v":0},"Hora","Minutos","Hora","Minutos",null,null,null,null,null,null,"Precise si cuenta con los:"]
[null,null,null,null,1,"Mañana",{"$f":"COUNT(H47:K47)","v":0},null,null,null,null,{"$f":"IF(OR(H47=\"\",I47=\"\",J47=\"\",K47=\"\"),1,0)","v":1},null,null,"Sí","X",null,"Servicios",null,null,null,"Sí - No"]
[null,null,null,null,2,"Tarde",{"$f":"COUNT(H48:K48)","v":0},null,null,null,null,{"$f":"IF(OR(H48=\"\",I48=\"\",J48=\"\",K48=\"\"),1,0)","v":1},null,null,null,null,null,1,"Agua",null,""]
[null,null,null,null,3,"Discontinuo",{"$f":"COUNT(H49:K49)","v":0},null,null,null,null,{"$f":"IF(OR(H49=\"\",I49=\"\",J49=\"\",K49=\"\"),1,0)","v":1},null,null,null,null,null,2,"Desague",null,""]
[null,null,null,null,null,null,null,null,null,null,null,null,null,null,"No  ","",null,3,"Electricidad",null,""]
[null,null,null,null,null,null,null,null,null,null,null,null,null,null,null,null,null,null,null,null,null,{"$f":"COUNTIF(V48:V50,\"SI\")+COUNTIF(V48:V50,\"NO\")","v":0}]
[]
[null,null,"105.A  EN EL PRESENTE AÑO 2023, ¿BAJO QUÉ MODALIDAD SE REALIZAN LAS CLASES EN ESTE ",null,null,null,null,null,null,null,null,null,null,"111.A  ¿HA RECIBIDO MATERIALES FORMATIVOS O INFORMATIVOS , FÍSICOS O DIGITALES"]
[null,null,null,"SERVICIO/NIVEL EDUCATIVO?",null,null,"Marque con una “X”, solo una opción",null,null,null,null,null,null,null,"SOBRE LOS INSTRUMENTOS DE GESTIÓN?"]
[]
[null,null,null,null,"Presencial",null,null,"Semi presencial",null,null,"Virtual",null,null,null,null,"He recibido materiales y/o formación a través de la UGEL."]
[null,null,null,null,null,null,null,null,null,null,null,null,null,null,null,"He recibido materiales y/o formación a través de la DRE."]
[null,null,"106.A  EN ESTE SERVICIO/NIVEL EDUCATIVO, ¿CUANTAS VACANTES POR GRADO Y ",null,null,null,null,null,null,null,null,null,null,null,null,"He recibido materiales y/o formación a través de los programas formativos …"]
[null,null,null,"TURNO OFRECIÓ PARA EL PRESENTE PERIODO LECTIVO?",null,null,null,null,null,null,null,null,null,null,null,"He recibido materiales y/o formación a través de páginas web oficiales del Minedu…"]
[null,null,null,null,null,null,null,null,null,null,null,null,null,null,null,"He recibido materiales y/o formación a través de mis colegas o redes profesionales"]
[null,null,null,"GRADO",null,null,"1º","2º","3º","4º","5º",null,null,null,null,"No he recibido materiales y/o información sobre los Instrumentos de Gestión"]
[null,null,null,"Turno mañana",null,null,null,null,null,null,null,{"$f":"SUM(G62:K62)","v":0}]
[null,null,null,null,null,null,null,null,null,null,null,null,null,"112.A  ¿SE HA ELABORADO EL PLAN ANUAL DE TRABAJO (PAT) 2023?"]
[null,null,null,"Turno tarde",null,null,null,null,null,null,null,{"$f":"SUM(G64:K64)","v":0}]
[null,null,null,null,null,null,null,null,null,null,null,null,null,null,"Sí",null," No  "]
[]
[null,null,"107.A  EN ESTE SERVICIO/NIVEL EDUCATIVO, ¿CUANTOS POSTULANTES POR GRADO",null,null,null,null,null,null,null,null,null,null,null,null,null,"¿Han sido incorporadas las actividades anuales del plan TOECE?"]
[null,null,null,"Y TURNO SE PRESENTARON PARA EL PRESENTE PERIODO LECTIVO?",null,null,null,null,null,null,null,null,null,null,null,null,"Sí  ",null,null,"No"]
[]
[null,null,null,"GRADO",null,null,"1º","2º","3º","4º","5º",null,null,"113.A  EL SERVICIO/NIVEL EDUCATIVO, ¿CUENTA CON UN PLAN APROBADO DE GESTIÓN"]
[null,null,null,"Turno mañana",null,null,null,null,null,null,null,{"$f":"SUM(G71:K71)","v":0},null,null,"DE RIESGO DE DESASTRES QUE CONTEMPLE LA FASE DE SOPORTE SOCIOEMOCIONAL,"]
[null,null,null,null,null,null,null,null,null,null,null,null,null,null,"FASE DE ACTIVIDADES LÚDICAS Y FASE DE APLICACIÓN DEL CURRÍCULO?"]
[null,null,null,"Turno tarde",null,null,null,null,null,null,null,{"$f":"SUM(G73:K73)","v":0}]
[null,null,null,null,null,null,null,null,null,null,null,null,null,null,"Sí",null," No  "]
[]
["DIAS",null,"108.A  EN EL PROCESO  DE  MATRÍCULA  DEL PERIODO 2023,  LOS PADRES  DE  FAMILIA, ",null,null,null,null,null,null,null,null,null,null,"114.A  EN LOS ÚLTIMOS TRES MESES, ¿SE COORDINÓ U OFRECIÓ ALGÚN PROGRAMA O"]
[1,null,null,"CUIDADORES(AS) O APODERADOS(AS) QUE SOLICITARON UNA O MÁS VACANTES EN ESTE ",null,null,null,null,null,null,null,null,null,null,"SERVICIO, COMO?:"]
[2,null,null,"SERVICIO/NIVEL EDUCATIVO, ¿LOGRARON OBTENER EL TOTAL DE VACANTES SOLICITADAS?"]
[3,null,null,null,null,null,null,null,null,null,null,null,null,null,null,"Programa Qali Warma"]
[4,null,null,null,"Sí",null,"Pase a la pregunta 110.A",null,null,null,null,null,null,null,null,"Campaña de vacunación"]
[5,null,null,null,null,null,null,null,null,null,null,null,null,null,null,"Control de crecimiento y desarrollo"]
[6,null,null,null,"No",null,"¿Por qué no lograron una ó más vacante(s) ?",null,null,null,null,null,null,null,null,"Servicio de Apoyo y Asesoramiento a las Necesidades Educativas Especiales (SAANEE)"]
[7,null,null,null,null,null,"Marque con un aspa “X” una opcion",null,null,null,null,null,null,null,null,"Servicio de Apoyo Educativo Virtual (SAEV)"]
[8,null,null,null,null,null,null,null,null,null,null,null,null,null,null,"Otro  -  especifique"]
[9,null,null,null,null,null,null,null,null,null,null,null,null,null,null,"Ninguno"]
[10,null,null,null,null,"No hay capacidad para recibirlos"]
[11,null,null,null,null,"Hay capacidad, pero existen aulas con mucho riesgo",null,null,null,null,null,null,null,"115.A  EL SERVICIO/NIVEL EDUCATIVO,  ¿CUENTA CON UN PLAN APROBADO DE LUCHA CONTRA "]
[12,null,null,null,null,"Prefiero tener una carga docente baja, para un mejor aprendizaje",null,null,null,null,null,null,null,null,"LA ANEMIA?"]
[13,null,null,null,null,"Otro"]
[14,null,null,null,null,null,null,null,null,null,null,null,null,null,"Sí",null,"No  "]
[15,null,"109.A  ¿QUÉ CRITERIOS DE PRIORIZACIÓN TUVIERON EN CUENTA PARA LA MATRÍCULA DE LOS"]
[16,null,null,"ESTUDIANTES QUE SOLICITARON UNA VACANTE EN ESTE SERVICIO/NIVEL EDUCATIVO?",null,null,null,null,null,null,null,null,null,null,null,null,"¿Está incorporado en los documentos de gestión?"]
[17,null,null,"Seleccione de la lista “Si” o “No” según corresponda para cada criterio"]
[18,null,null,null,null,null,null,null,null,null,null,null,null,null,null,null,"Sí  ",null,null,"No  "]
[19,null,null,"NRO.","CRITERIOS",null,null,null,null,null,null," SI-NO"]
[20,null,{"$f":"COUNTIF(L96:L107,\"NO\")","v":0},1,"Cercanía del lugar de residencia del estudiante a la I.E.",null,null,null,null,null,null,null,null,"116.A  DURANTE EL 2022 ¿HA COORDINADO CON ALGUNA INSTITUCION PARA REALIZAR"]
[21,null,null,2,"Cercanía del trabajo de los padres o apoderados del estudiante.",null,null,null,null,null,null,null,null,null,"ACTIVIDADADES RELACIONADA A LA LUCHA CONTRA LA ANEMIA?"]
[22,null,null,3,"Hermanos (as) estudiando en la misma I.E."]
[23,null,null,4,"Hijos (as) de ex alumnos (as)",null,null,null,null,null,null,null,null,null,"Sí",null,"No  ",null,null,"No sabe"]
[24,null,null,5,"Niños (as) con Necesidades Educativas Especiales (NEE) asociadas a discapacidad"]
[25,null,null,6,"Estado civil de los padres",null,null,null,null,null,null,null,null,null,null,null,null,null,"Pase a la pregunta 118.A"]
[26,null,null,7,"Record de rendimiento académico del estudiante"]
[27,null,null,8,"Documentos que sustenten solvencia económica de los padres o apoderados",null,null,null,null,null,null,null,null,"117.A  INDIQUE USTED, ¿CUÁLES DE LAS SIGUIENTES INSTITUCIONES ORGANIZARON "]
[28,null,null,9,"Orden de llegada de los documentos de inscripción del estudiante",null,null,null,null,null,null,null,null,null,"ALGUNA ACTIVIDAD RELACIONADA A LA LUCHA CONTRA LA ANEMIA?"]
[29,null,null,10,"Que los estudiantes cuenten con documento de identidad"]
[30,null,null,11,"Que el estudiante haya rendido una evaluación de ingreso previa a la matrícula",null,null,null,null,null,null,null,null,null,"Entidad que Organizó",null,null,null,{"$f":"COUNTIF(T107:U112,\"X\")","v":0},"SI","NO","Fecha (dd-mm-aaaa)"]
[null,null,null,12,"Otros",null,null,null,null,null,null,null,null,null,1,"Servicio / Nivel Educativo"]
[null,null,null,null,null,null,null,null,null,null,null,{"$f":"COUNTIF(L96:L107,\"SI\")+COUNTIF(L96:L107,\"NO\")","v":0},null,null,2,"UGEL/DRE"]
["MESES",null,"110.A. ¿REALIZÓ LA RESERVA COMO MÍNIMO DE (02) VACANTES POR CADA AULA PARA ESTUDIANTES",null,null,null,null,null,null,null,null,null,null,null,3,"Establecimiento de salud"]
["01: Enero",null,null,"CON NECESIDADES EDUCATIVAS ESPECIALES ASOCIADA A DISCAPACIDAD LEVE O MODERADA?",null,null,null,null,null,null,null,null,null,null,4,"Municipalidad"]
["02: Febrero",null,null,null,null,null,null,null,null,null,null,null,null,null,5,"Organización No Gubernamental (ONG)"]
["03: Marzo",null,null,"Sí",null,"No  ",null,null,null,null,null,null,null,null,6,"Otro"]
["04: Abril"]
["05: Mayo"]
["06: Junio",null,"118.A  DURANTE EL AÑO 2022 ¿QUÉ ACTIVIDADES CON FAMILIAS SE HAN REALIZADO",null,null,null,null,null,null,null,null,null,null,"122.A  DURANTE EL AÑO 2022 Y HASTA LA FECHA DE LA APLICACIÓN DEL CENSO 2023,"]
["07: Julio",null,null,"DESDE ESTE SERVICIO/NIVEL EDUCATIVO?",null,null,null,null,null,null,null,null,null,null,"¿EN ESTE SERVICIO/NIVEL EDUCATIVO SE HAN REALIZADO ACCIONES PARA ATENDER"]
["08: Agosto",null,null,null,null,null,null,null,null,null,null,null,null,null,"SITUACIONES DE INTERRUPCIÓN DE ESTUDIOS DE LOS ESTUDIANTES?"]
["09: Septiembre",null,null,"Entidad que Organizó",null,null,null,{"$f":"COUNTIF(I119:J122,\"X\")","v":0}," SI"," NO","Nro. de actividades"]
["10: Octubre",null,null,1,"Jornadas con familias",null,null,null,null,null,null,null,null,null,"Sí",null,"No  "]
["11: Noviembre",null,null,2,"Encuentros familiares"]
["12: Diciembre",null,null,3,"Reuniones informativas con familias",null,null,null,null,null,null,null,null,null,null,null,"¿Qué acciones se realizaron?"]
["01: Enero",null,null,4,"Talleres con familias",null,null,null,null,null,null,null,null,null,null,"Marque con una “X”, una o más opciones"]
["02: Febrero",null,null,null,null,null,null,null,null,null,null,null,null,null,null,null,"Seguimiento y visitas a estudiantes en riesgo de abandono"]
["03: Marzo",null,"119.A  EL SERVICIO/NIVEL EDUCATIVO, ¿TIENE PRACTICANTES DE UNIVERSIDADES O INSTITUTOS ?",null,null,null,null,null,null,null,null,null,null,null,null,null,"Orientaciones a las familias sobre la continuidad en la IE"]
[null,null,null,null,null,null,null,null,null,null,null,null,null,null,null,null,"Flexibilización de la atención educativa brindada en la IE"]
[null,null,null,"Entidad de Procedencia",null,null,null,"Marcar","Nro. de",null,"Asistencia en nro. de:",null,null,null,null,null,"Orientación a los docentes para atender a los estudiantes en riesgo"]
[null,null,null,null,null,null,{"$f":"COUNTIF(H128:H130,\"X\")","v":0},"\"X\"","Practicantes",null,"Dias","Meses",null,null,null,null,"Otros      "]
[null,null,null,1,"de Universidad"]
[null,null,null,2,"de Instituto",null,null,null,null,null,null,null,null,"123.A. ¿EL SERVICIO/NIVEL EDUCATIVO, HA DESARROLLADO UNA O ALGUNAS DE"]
[null,null,null,3,"Ninguno",null,null,null,null,null,null,null,null,null,"LAS ACTIVIDADES PROPUESTAS PARA LA IMPLEMENTACIÓN DE LA EIT?"]
[null,null,null,null,null,null,null,null,null,null,null,null,null,null,"(Educación Intercultural para Todos y Todas)"]
[null,null,"120.A  ¿ESTE SERVICIO/NIVEL EDUCATIVO SE ENCUENTRA EN EL ÁMBITO DE ALGÚN"]
[null,null,null,"ESTABLECIMIENTODE SALUD ?",null,null,null,null,null,null,null,null,null,null,"Entidad que Organizó",null,null,null,null,null,{"$f":"COUNTIF(V134:V136,\"SI\")+COUNTIF(V134:V136,\"NO\")","v":0}," SI-NO"]
[null,null,null,null,null,null,null,null,null,null,null,null,null,null,1,"Descubriendo nuevos orígenes"]
[null,null,null,"Sí",null,"No  ",null,null,null,"Pase a la pregunta 122.A",null,null,null,null,2,"Encuentro con nuestra diversidad"]
[null,null,null,null,null,null,null,null,null,null,null,null,null,null,3,"Feria de la diversidad"]
[null,null,"121.A  ¿ESTE SERVICIO/NIVEL EDUCATIVO REALIZA COORDINACIONES Y/O ACCIONES DE"]
[null,null,null,"ARTICULACIÓN CON EL ESTABLECIMIENTO DE SALUD?"]
[null,null,null,null,null,null,null,null,null,null,null,null,null,"124.A. ¿CUENTA CON ESTUDIANTES BENEFICIADOS CON BECAS DE ESTUDIOS, AL AMPARO"]
[null,null,null,"Sí",null,"No  ",null,null,null,null,null,null,null,null,"DE LA LEY Nº 23583, “ESTUDIANTES DE PLANTELES Y UNIVERSIDADES PARTICULARES"]
[null,null,null,null,null,null,null,null,null,null,null,null,null,null,"QUE PIERDAN A SUS PADRES O TUTORES TIENEN DERECHO A BECA”?"]
[null,null,null,null,null,"¿Qué tipo de coordinaciones y/o acciones realiza?"]
[null,null,null,null,"Marque con una “X”, una o más opciones",null,null,null,null,null,null,null,null,null,"Sí",null,"No  "]
[null,null,null,null,null,"Salud física de estudiantes"]
[null,null,null,null,null,"Salud física de docentes"]
[null,null,null,null,null,"Salud mental del estudiante",null,null,null,null,null,null,null,null,null,null,"Cantidad de beneficiarios"]
[null,null,null,null,null,"Salud mental del docente"]
[null,null,null,null,null,"Otros      "]
[]
[]
[null,null,"B. TUTORÍA , ORIENTACIÓN EDUCATIVA Y CONVIVENCIA ESCOLAR"]
[null,null,"101.B  EN ESTE SERVICIO/NIVEL EDUCATIVO ¿SE DESARROLLAN PROGRAMAS QUE PROMUEVAN LA ÉTICA",null,null,null,null,null,null,null,null,null,null,"108.B. ¿QUÉ ESTRATEGIAS DE TUTORÍA Y ORIENTACIÓN EDUCATIVA IMPLEMENTAN CON"]
[null,null,null,"INTEGRIDAD Y VALORES?",null,null,null,null,null,null,null,null,null,null,"LOS ESTUDIANTES?",null,null,"Marque con una “X”, una o más opciones"]
[null,null,null,null,null,null,null,null,null,null,null,null,null,null,null,"Tutoría Individual"]
[null,null,null,"Sí",null," No  ",null,null,null,null,null,null,null,null,null,"Tutoría grupal"]
[null,null,null,null,null,null,null,null,null,null,null,null,null,null,null,"Participación estudiantil"]
[null,null,"102.B   INDIQUE,  ¿CON CUALES DE LOS SIGUIENTES COMITÉS CUENTA ESTE SERVICIO NIVEL EDUCATIVO Y ",null,null,null,null,null,null,null,null,null,null,null,null,"Trabajo con las familias y la comunidad"]
[null,null,null,"CON QUE FRECUENCIA SE REUNEN?",null,null,null,null,null,null,null,null,null,null,null,"Orientación Educativa permanente"]
[null,null,null,null,null,null,null,null,null,null,null,null,null,null,null,"Otro","Especificar"]
[null,null,null,"(Selecciones SI o No en la o las alternativas que correspondan)",null,null,null,null,null,null,null,null,null,null,null,"Ninguno"]
[null,null,null,"Detalle de los comités en el  Servicio/Nivel Educativo",null,null,null,"Cuenta con este comité","¿Está conformado mediante \n (RD)?",null,"Frecuencia de las reuniones",null,null,"109.B. ¿CUÁNTAS HORAS PEDAGÓGICAS A LA SEMANA SE DESTINA A LAS SESIONES DE TUTORÍA?"]
[null,null,null,null,null,null,null,null,null,null,null,null,null,null,null,"TURNO",null,"GRADOS DE ESTUDIO"]
[null,null,null,null,null,null,null,"SI - NO","SI - NO",null,null,null,null,null,null,null,null,"1º","2º","3º","4º","5º","TOTAL"]
["1: Semanal",null,null,1,"Comité de Tutoría",null,null,null,null,null,null,null,"",null,null,"Mañana",null,null,null,null,null,null,{"$f":"SUM(R164:V164)","v":0}]
["2: Quincenal",null,null,2,"Comité de Gestión del Bienestar",null,null,null,null,null,null,null,"",null,null,"Tarde",null,null,null,null,null,null,{"$f":"SUM(R165:V165)","v":0}]
["3: Mensual",null,null,null,{"$f":"COUNTIF(H164:H165,\"SI\")+COUNTIF(H164:H165,\"NO\")","v":0}]
["4: Bimensual",null,"103.B  EL SERVICIO/NIVEL EDUCATIVO, ¿CUENTA CON PLAN DE TUTORÍA, ORIENTACIÓN EDUCATIVA Y ",null,null,null,null,null,null,null,null,null,null,"110.B. EL SERVICIO/NIVEL EDUCATIVO, ¿CUENTA CON NORMAS DE CONVIVENCIA"]
["5: Trimestral",null,null,"CONVIVENCIA ESCOLAR?",null,null,null,null,null,null,null,null,null,null,"ESCOLAR ACTUALIZADAS PARA EL AÑO 2023?"]
["6: Semestral"]
["7: No se reunen",null,null,"Sí",null," No  ",null,null,null,"Pase a la pregunta 108.B",null,null,null,null,"Sí",null," No  ",null,null,null,"Pase a la pregunta 114.B"]
[]
[null,null,"104.B  ¿EL PLAN DE TUTORÍA, ORIENTACIÓN EDUCATIVA Y CONVIVENCIA ESCOLAR PRESENTA AL MENOS",null,null,null,null,null,null,null,null,null,null,null,null,null,"¿Están incorporadas al reglamento interno?"]
[null,null,null,"UNA ACTIVIDAD RELACIONADA A LA GESTIÓN DE BIENESTAR EN EL RETORNO A LA"]
[null,null,null,"SEMIPRESENCIALIDAD O PRESENCIALIDAD?",null,null,null,null,null,null,null,null,null,null,null,null,"Sí  ",null,null,"No"]
[]
[null,null,null,"Sí",null," No  ",null,null,null,null,null,null,null,"111.B  ¿LAS NORMAS DE CONVIVENCIA ESCOLAR INCLUYEN NORMAS RELACIONADAS A LA GESTIÓN"]
[null,null,null,null,null,null,null,null,null,null,null,null,null,null,"DE BIENESTAR EN EL RETORNO A LA SEMIPRESENCIALIDAD O PRESENCIALIDAD ?"]
[null,null,"105.B  ¿SE HA ACTUALIZADO EL PLAN DE TUTORÍA, CON RELACIÓN A LO ELABORADO  EN EL AÑO 2022?"]
[null,null,null,"",null,null,null,null,null,null,null,null,null,null,"Sí",null," No  "]
[null,null,null,"Sí",null," No  "]
[null,null,null,null,null,null,null,null,null,null,null,null,null,"112.B. ¿LAS NORMAS DE CONVIVENCIA ESCOLAR HAN SIDO CONSTRUIDAS CON LA PARTICIPACIÓN"]
[null,null,"106.B  LOS DOCENTES TUTORES, ¿CUENTAN CON UN PLAN TUTORIAL DE AULA PARA ESTE AÑO 2023?",null,null,null,null,null,null,null,null,null,null,null,"DE REPRESENTANTES DE LAS/LOS ESTUDIANTES?"]
[null,null,null,"(Marque con una “X”, una opción)"]
[null,null,null,null,"1 - Sí, todos los docentes",null,null,null,null,null,null,null,null,null,"Sí",null," No  "]
[null,null,null,null,"2 - Sí, algunos docentes"]
[null,null,null,null,"3 - Ninguno",null,null,null,"Pase a la pregunta 108.B",null,null,null,null,"113.B. ¿EL SERVICIO/NIVEL EDUCATIVO CUENTA CON AL MENOS UNA/UN RESPONSABLE"]
[null,null,null,null,null,null,null,null,null,null,null,null,null,null,"DE CONVIVENCIA ESCOLAR ASIGNADO PARA EL AÑO 2023?"]
[{"$f":"CONCATENATE(E170,D184,D185)","v":""},null,"107.B  ¿QUÉ TEMAS HAN SIDO PRIORIZADOS EN ESTOS PLANES TUTORIALES DE AULA?"]
[{"$f":"CONCATENATE(G170,D186)","v":""},null,null,"(Seleccione “Si” o “No” según corresponda para cada tema)",null,null,null,null,null,null,null,null,null,null,"Sí",null," No  "]
[null,null,null,null,null,null,null,null,null,null,"¿Ha sido priorizado?","¿Ha recibido asistencia técnica?"]
[null,null,null,"NRO.","Temas para los Planes tutoriales",null,null,null,null,null,null,null,null,null,null,null,"¿Se encuentra registrado en el portal SíseVe?"]
[]
["SI",null,null,{"$f":"CONCATENATE(G170,D186)","v":""},null,null,null,null,null,null,"SI/NO","SI/NO",null,null,null,null,"Sí  ",null,null,"No"]
["NO",null,{"$f":"COUNTIF(K194:K216,\"NO\")","v":0},1,"Prevención de embarazo adolescente"]
[null,null,null,2,"Prevención de trata de personas",null,null,null,null,null,null,null,null,"114.B  EL SERVICIO/NIVEL EDUCATIVO, ¿CUENTA CON LIBRO DE REGISTRO DE INCIDENCIAS "]
[null,null,null,3,"Prevención de uso de drogas",null,null,null,null,null,null,null,null,null,"SOBRE VIOLENCIA Y ACOSO ESCOLAR EN EL MARCO DE LA LEY 29719?"]
[null,null,null,4,"Prevención de trabajo infantil forzoso"]
[null,null,null,5,"Prevención de violencia escolar",null,null,null,null,null,null,null,null,null,"Sí",null," No  ",null,null,null,"Pase a la pregunta 116.B"]
[null,null,null,6,"Prevención de violencia familiar"]
[null,null,null,7,"Prevención de violencia sexual",null,null,null,null,null,null,null,null,null,null,null,"¿El libro de registro se encuentra en un lugar visible?"]
[null,null,null,8,"Prevención de trastornos alimenticios"]
[null,null,null,9,"Prevención ante fenómenos naturales",null,null,null,null,null,null,null,null,null,null,null,"Sí  ",null,null,"No"]
[null,null,null,10,"Prevención de VIH, TBC, Hepatitis B, Papiloma Humano, …"]
[null,null,null,11,"Uso responsable de video juegos",null,null,null,null,null,null,null,null,"115.B. EN EL AÑO 2022, ¿SE HIZO USO DEL LIBRO DE REGISTRO DE INCIDENCIAS?"]
[null,null,null,12,"Uso responsable de redes sociales digitales"]
[null,null,null,13,"Educación vial",null,null,null,null,null,null,null,null,null,"Sí",null," No  "]
[null,null,null,14,"Competencias Socioafectivas"]
[null,null,null,15,"Igualdad de género",null,null,null,null,null,null,null,null,null,null,null,"¿Cuántas incidencias se registraron en el año 2022?"]
[null,null,null,16,"Educación sexual integral"]
[null,null,null,17,"Promoción de la convivencia escolar",null,null,null,null,null,null,null,null,null,null,null,"Anote la fecha de la última incidencia registrada en el año 2022"]
[null,null,null,18,"Acciones de Orientación vocacional"]
[null,null,null,19,"Liderazgo",null,null,null,null,null,null,null,null,null,null,null,null,null,"DÍA","MES",null,"AÑO"]
[null,null,null,20,"Trabajo en Equipo"]
[null,null,null,21,"Habilidades Sociales"]
[null,null,null,22,"Pedagogía de la muerte"]
[null,null,null,23,"Otro"]
[null,null,null,null,null,null,null,null,null,null,{"$f":"COUNTIF(K194:K216,\"SI\")+COUNTIF(K194:K216,\"NO\")","v":0},{"$f":"COUNTIF(L194:L216,\"SI\")+COUNTIF(L194:L216,\"NO\")","v":0}]
[]
[null,null,"116.B  EL SERVICIO/NIVEL EDUCATIVO, ¿REALIZA ACTIVIDADES PARA UNA CONVIVENCIA",null,null,null,null,null,null,null,null,null,null,"120.B. EL SERVICIO/NIVEL EDUCATIVO, ¿SE ENCUENTRA AFILIADO AL SÍSEVE?"]
[null,null,null,"ESCOLAR DEMOCRÁTICA ?"]
[null,null,null,null,null,null,null,null,null,null,null,null,null,null,"Sí",null,"¿Cuántos casos han sido reportados?"]
[null,null,null," Sí",null," No  "]
[]
[null,null,null,null,null,"¿Cuenta con medios de verificación?",null,null,null,null,null,null,null,null,"No",null,"¿Porque razón el servicio y/o nivel educativo no está afiliado al SÍSEVE?"]
[null,null,null,null,null," Sí   ",null,null," No  "]
[null,null,null,null,null,null,null,null,null,null,null,null,null,null,null,null,"Marque con una “X”, una opción"]
[null,null,null,null,null,null,null,"¿Con que medios de verificación cuenta?",null,null,null,null,null,null,null,null,"Por falta de internet"]
[null,null,null,null,null,null,null,"(Marque con una “X”, una o más opciones)",null,null,null,null,null,null,null,null,"Lo conoce y no le parece importante afiliarse"]
[null,null,null,null,null,null,null,"Informe de actividades",null,null,null,null,null,null,null,null,"Le parece importante, pero no lo ve necesario para su I.E."]
[null,null,null,null,null,null,null,"Fotografías",null,null,null,null,null,null,null,null,"Otro"]
[null,null,null,null,null,null,null,"Videos",null,null,null,null,null,null,null,""]
[null,null,null,null,null,null,null,"Otro",null,null,null,null,null,"121.B. EN EL AÑO 2022, ¿UD. HA REPORTADO ALGUNA INCIDENCIA EN EL PORTAL SÍSEVE ?"]
[null,null,null,null,null,null,null,null,null,null,null,null,null,null,"Sistema Especializado en Reporte de casos sobre Violencia Escolar"]
[null,null,"117.B  EL SERVICIO/NIVEL EDUCATIVO, ¿REALIZA ACTIVIDADES PARA LA PREVENCIÓN DE LA",null,null,null,null,null,null,null,null,null,null,null,null,null,"  Para el año 2022"]
[null,null,null,"VIOLENCIA CONTRA NIÑAS, NIÑOS Y ADOLESCENTES?",null,null,null,null,null,null,null,null,null,null," Sí",null,"¿Cuántos casos fueron reportados?"]
[]
[null,null,null," Sí",null," No  ",null,null,null,"Pase a la pregunta 119.B",null,null,null,null,"No"]
[]
[null,null,null,null,null,"¿Cuenta con medios de verificación?",null,null,null,null,null,null,null,"122.B. USTED, SEÑOR(A) DIRECTOR(A), ¿CONOCE LOS PROTOCOLOS PARA LA ATENCIÓN DE LOS"]
[null,null,null,null,null," Sí   ",null,null," No  ",null,null,null,null,null,"CASOS DE VIOLENCIA EN ESTE SERVICIO/NIVEL EDUCATIVO"]
[]
[null,null,null,null,null,null,null,"¿Cuenta con que medios de verificación?",null,null,null,null,null,null," Sí",null," No  "]
[null,null,null,null,null,null,null,"Marque con una “X”, una o más opciones"]
[null,null,null,null,null,null,null,"Informe de actividades",null,null,null,null,null,null,null,null,"¿Ha sido capacitado por algún integrante de la UGEL/DRE en el uso"]
[null,null,null,null,null,null,null,"Fotografías",null,null,null,null,null,null,null,null,"de los Protocolos para la atención de los casos de violencia en la "]
[null,null,null,null,null,null,null,"Videos",null,null,null,null,null,null,null,null,"Institución Educativa?"]
[null,null,null,null,null,null,null,"Otro"]
[null,null,null,null,null,null,null,null,null,null,null,null,null,null,null,null," Sí   ",null,null," No  "]
[null,null,"118.B  ¿CUÁLES SON LAS ACTIVIDADES QUE REALIZA ESTE NIVEL/SERVICIO EDUCATIVO, PARA LA "]
[null,null,null,"PREVENCIÓN DE LA VIOLENCIA CONTRA NIÑAS, NIÑOS Y ADOLESCENTES?",null,null,null,null,null,null,null,null,null,"123.B. SEÑOR(A) DIRECTOR(A), EN EL AÑO 2022, ¿SE APLICARON LOS PROTOCOLOS"]
[null,null,null,"Marque con una “X”, una o más opciones",null,null,null,null,null,null,null,null,null,null,"PARA LA ATENCIÓN DE LOS CASOS DE VIOLENCIA EN EL SERVICIO/NIVEL"]
[null,null,null,null,null,null,null,null,null,null,null,null,null,null,"EDUCATIVO QUE FUERON ACTUALIZADOS PARA LA EDUCACIÓN A DISTANCIA?"]
[null,null,null,null,null,"Gestión de talleres o reuniones con estudiantes."]
[null,null,null,null,null,"Capacitación a docentes para prevenir y/o atender casos de riesgo.",null,null,null,null,null,null,null,null," Sí",null," No  "]
[null,null,null,null,null,"Envío de orientaciones a apoderados/as."]
[null,null,null,null,null,"Gestión de talleres o reuniones con apoderados/as.",null,null,null,null,null,null,null,"124.B. ESTE SERVICIO/NIVEL EDUCATIVO, ¿RECIBE ASISTENCIA TÉCNICA PARA LA PROMOCIÓN"]
[null,null,null,null,null,"Gestión de estrategias en conjunto con otras organizaciones.",null,null,null,null,null,null,null,null,"DE LA CONVIVENCIA ESCOLAR, LA PREVENCIÓN Y ATENCIÓN DE LA VIOLENCIA ESCOLAR?"]
[null,null,null,null,null,"Monitoreo de situación emocional y familiar de estudiantes."]
[null,null,null,null,null,"Otro",null,null,null,null,null,null,null,null," Sí",null," No  "]
[]
[null,null,"119.B  USTED, SEÑOR(A) DIRECTOR(A), ¿CONOCE EL PORTAL SÍSEVE?",null,null,null,null,null,null,null,null,null,null,"125.B ¿USTED HA RECURRIDO A LA UGEL/DRE SOLICITANDO ORIENTACIONES PARA"]
[null,null,null,null,null,null,null,null,null,null,null,null,null,null,"MEJORAR LA CONVIVENCIA EN SU SERVICIO/NIVEL EDUCATIVO?"]
[null,null,null," Sí",null," No  ",null,null,null,"Pase a la pregunta 122.B",null,null,null,null,"(Orientaciones para la prevención de la violencia, atención de casos y promoción de la convivencia)"]
[null,null,null,null,null,null,null,null,null,null,null,null,null,null," Sí",null," No  "]
[null,null,null,null,null,"¿Ha sido capacitado por algún integrante de la UGEL/DRE"]
[null,null,null,null,null,"en el uso del Portal SíseVe? ",null,null,null,null,null,null,null,null,null,null,"¿Usted ha recibido alguna información y/o capacitación?"]
[null,null,null,null,null," Sí   ",null,null," No  ",null,null,null,null,null,null,null," Sí   ",null,null," No  "]
[]
[]
[null,null,"126.B. ¿EL SERVICIO/NIVEL EDUCATIVO CUENTA CON UN MAPA O DIRECTORIO DE ALIADOS",null,null,null,null,null,null,null,null,null,null,"132.B  SEÑOR(A) DIRECTOR(A), DURANTE EL PRESENTE AÑO, ¿HA RECIBIDO DENUNCIAS"]
[null,null,null,"ESTRATÉGICOS PARA LA PREVENCIÓN Y ATENCIÓN DE CASOS DE VIOLENCIA ESCOLAR?",null,null,null,null,null,null,null,null,null,null,"CONTRA EL PERSONAL DOCENTE DE ESTE SERVICIO/NIVEL EDUCATIVO?"]
[]
[null,null,null," Sí",null," No  ",null,null,null,"Pase a la pregunta 128.B",null,null,null,null," Sí",null," No  ",null,null,null,"Pase a la pregunta 134.B"]
[]
[null,null,null,null,null,null,null,null,null,null,null,null,null,null,null,null,null,"¿Cuántas?"]
[null,null,null,null,"En caso de que cuente con un mapa o directorio de aliados estratégicos, "]
[null,null,null,null,"por favor, indique quiénes lo conforman:"]
[null,null,null,null,"Marque con una “X”, una o más opciones",null,null,null,null,null,null,null,null,"133.B  SOBRE LA ATENCIÓN A LAS DENUNCIAS RECIBIDAS CONTRA EL PERSONAL DOCENTE"]
[null,null,null,null,null,"DEMUNA",null,null,null,null,null,null,null,null,"EN EL PRESENTE AÑO, INDIQUE USTED:"]
[null,null,null,null,null,"Defensoría del pueblo"]
[null,null,null,null,null,"Centro de emergencia Mujer (CEM)",null,null,null,null,null,null,null,null,null,"A.   ¿ CUÁNTAS DERIVÓ A LA CPPADD ?"]
[null,null,null,null,null,"Centro o posta de salud",null,null,null,null,null,null,null,null,null,"B.   ¿CUÁNTAS ASUMIÓ LA INVESTIGACIÓN"]
[null,null,null,null,null,"Iglesia",null,null,null,null,null,null,null,null,null,"        POR SER DE SU COMPETENCIA?"]
[null,null,null,null,null,"Comisaría"]
[null,null,null,null,null,"Otro",null,null,null,null,null,null,null,"134.B  SEÑOR(A) DIRECTOR(A), DURANTE EL PRESENTE AÑO, ¿USTED HA SIDO OBJETO DE DENUNCIAS"]
[null,null,null,null,null,null,null,null,null,null,null,null,null,null,"POR ADOPTAR MEDIDAS EN PROTECCIÓN DEL ESTUDIANTE O DENUNCIAS DE CORRUPCIÓN?"]
[null,null,"127.B  ¿EL SERVICIO/NIVEL EDUCATIVO HA REALIZADO ALGUNA ACTIVIDAD COORDINADA"]
[null,null,null,"CON ALGUNO DE LOS ALIADOS ESTRATÉGICOS?",null,null,null,null,null,null,null,null,null,null," Sí",null," No  "]
[]
[null,null,null," Sí",null," No  ",null,null,null,null,null,null,null,null,null,null,null,"¿Cuántas?"]
[]
[null,null,"128.B  SEÑOR(A) DIRECTOR(A,) ¿EMPLEA USTED HERRAMIENTAS DE CONSULTA PARA",null,null,null,null,null,null,null,null,null,null,"135.B  SEÑOR(A) DIRECTOR(A), EN ESTE SERVICIO/NIVEL EDUCATIVO, ¿SE TIENEN IMPLEMENTADAS"]
[null,null,null,"VERIFICAR LA SITUACIÓN DEL PERSONAL DE ESTE SERVICIO/NIVEL EDUCATIVO, TAL COMO",null,null,null,null,null,null,null,null,null,null,"MEDIDAS DE SEGURIDAD PARA EL TRATAMIENTO DE LOS DATOS PERSONALES QUE"]
[null,null,null,"EL REGISTRO NACIONAL DE SANCIONES CONTRA SERVIDORES CIVILES – RNSSC?",null,null,null,null,null,null,null,null,null,null,"ADMINISTRAN?"]
[null,null,null,null,null,null,null,null,null,null,null,null,null,null,"(Ya sea de alumnos, profesores, personal administrativo o terceros. En cumplimiento de la"]
[null,null,null," Sí",null," No  ",null,null,null,null,null,null,null,null," ley N° 29733 y su reglamento)"]
[]
[null,null,"129.B  SEÑOR(A) DIRECTOR(A) ¿CONOCE USTED QUE PUEDE PRESENTAR DENUNCIAS SOBRE",null,null,null,null,null,null,null,null,null,null,null," Sí",null," No  "]
[null,null,null,"POSIBLE ACTOS DE SOBORNO DE MANERA ANÓNIMA, CON LA FINALIDAD DE PROTEGER"]
[null,null,null,"SU IDENTIDAD?",null,null,null,null,null,null,null,null,null,"136.B. USTED SEÑOR(A) DIRECTOR(A), ¿TIENE AULA A CARGO?"]
[]
[null,null,null," Sí",null," No  ",null,null,null,null,null,null,null,null," Sí",null,null,"¿Cuál de las siguientes afirmaciones considera que"]
[null,null,null,null,null,null,null,null,null,null,null,null,null,null,null,null,null,"expresa mejor su opinión respecto a tener asignada"]
[null,null,"130.B  SEÑOR(A) DIRECTOR(A) ¿TIENE CONOCIMIENTO QUE LOS HECHOS DE VIOLENCIA,",null,null,null,null,null,null,null,null,null,null,null,null,null,null,"un aula a su cargo? (Marque solo una opción)."]
[null,null,null,"ADEMÁS DE SER REPORTADOS EN EL PORTAL DEL SÍSEVE, DEBEN SER REPORTADOS"]
[null,null,null,"A LA UGEL?",null,null,null,null,null,null,null,null,null,null,null,null,null,"(Marque con una “X”, una opción)"]
[null,null,null,null,null,null,null,null,null,null,null,null,null,null,null,null,null,null,"Es beneficiosa para el cumplimiento de mis funciones"]
[null,null,null," Sí",null," No  ",null,null,null,null,null,null,null,null,null,null,null,null,"Es indiferente para el cumplimiento de mis funciones"]
[null,null,null,null,null,null,null,null,null,null,null,null,null,null,null,null,null,null,"Es perjudicial para el cumplimiento de mis funciones"]
[null,null,"131.B  SEÑOR(A) DIRECTOR(A) ¿CONOCE USTED EN QUE CASOS TIENE COMPETENCIA PARA"]
[null,null,null,"INVESTIGAR UNA DENUNCIA QUE HAYA SIDO PRESENTADA EN CONTRA DE PROFESORES,"]
[null,null,null,"PERSONAL JERÁRQUICO Y SUBDIRECTOR DE ESTE SERVICIO/NIVEL EDUCATIVO QUE DIRIGE?\n",null,null,null,null,null,null,null,null,null,null," No  "]
[]
[null,null,null," Sí",null," No  "]
[]
[]
[null,null,"C. ACOMPAÑAMIENTO Y SOPORTE PEDAGÓGICO"]
[null,null,"101.C  DESDE EL INICIO DEL AÑO ESCOLAR 2021 HASTA LA FECHA DE REPORTE DEL CENSO",null,null,null,null,null,null,null,null,null,null,"104.C. EN EL CASO DE QUE SU RESPUESTA DE LA PREGUNTA ANTERIOR, SEA DRE/UGEL,"]
[null,null,null,"EDUCATIVO EL SERVICIO/NIVEL EDUCATIVO, ¿HA RECIBIDO COMUNICACIÓN O PARTICIPACIÓN",null,null,null,null,null,null,null,null,null,null,"INDIQUE : ¿QUÉ TIPO DE ACOMPAÑAMIENTO HA RECIBIDO DE LA DRE/UGEL?"]
[null,null,null,"PRESENCIAL O VIRTUAL/REMOTA DEL ESPECIALISTA PEDAGÓGICO DE LA UGEL,"]
[null,null,null,"CON LA FINALIDAD DE BRINDAR ASISTENCIA TÉCNICA?",null,null,null,null,null,null,null,null,null,null,"Marque con una “X”, una o más opciones"]
[]
[null,null,null,"Sí",null,null,"¿Cuántas veces?",null,null,null,null,null,null,null,null,"Mentoría a directivos/Coaching"]
[null,null,null,null,null,null,null,"Presencial:",null,null,null,null,null,null,null,"Asistencia técnica en Comunidades de Aprendizaje Profesional (CAP)"]
[null,null,null,null,null,null,null,"Virtual/Remota:",null,null,null,null,null,null,null,"Grupos de inter aprendizaje de directores (temáticas diversas)"]
[null,null,null,null,null,null,null,null,null,null,null,null,null,null,null,"Otros - Especificar"]
[null,null,null," No  ",null,null,"Pase a la pregunta 103.C"]
[]
[null,null,null,null,null,null,null,null,null,null,null,null,null,"105.C. DURANTE EL AÑO 2022, EL EQUIPO DIRECTIVO DE ESTE SERVICIO/NIVEL EDUCATIVO"]
[null,null,"102.C  ¿CUÁLES DE LAS SIGUIENTES ACCIONES HA REALIZADO EL ESPECIALISTA PEDAGÓGICO AL",null,null,null,null,null,null,null,null,null,null,null,"¿HA REALIZADO EL MONITOREO A LA PRÁCTICA PEDAGÓGICA DE LOS DOCENTES?"]
[null,null,null,"MOMENTO DE BRINDAR LA ASISTENCIA TÉCNICA AL SERVICIO/NIVEL EDUCATIVO?"]
[null,null,null,"Seleccione “Si” o “No” según corresponda en cada acción",null,null,null,null,null,null,null,null,null,null," Sí",null,null," No  ",null,null,null,"Pase a la pregunta 107.C"]
[]
[null,null,null,"NRO.","ACCIONES",null,null,null,null,null,null," SI - NO"]
[null,null,{"$f":"COUNTIF(L335:L354,\"NO\")","v":0},1,"Pregunto sobre las necesidades y demandas pedagógicas del",null,null,null,null,null,null,null,null,null,null,"¿A cuántos",null,"Marque con una “X” una opción"]
[null,null,null,null,"servicio/nivel educativo",null,null,null,null,null,null,null,null,null,null,"docentes?",null,null,"Todos los docentes"]
[null,null,null,2,"Observó alguna sesión o actividades de aprendizaje, ya sea de",null,null,null,null,null,null,null,null,null,null,null,null,null,"Más del 50% de docentes"]
[null,null,null,null,"manera presencial o virtual/remota (por lo menos una vez)",null,null,null,null,null,null,null,null,null,null,null,null,null,"Menos del 50% de docentes"]
[null,null,null,3,"Sostuvó un clima de confianza y proximidad durante sus acciones"]
[null,null,null,null,"de asistencia técnica con este servicio/ nivel educativo",null,null,null,null,null,null,null,null,null,null,null,"¿Con qué frecuencia monitorea a cada docente"]
[null,null,null,4,"Generó algún espacio para que el director(a) del servicio/nivel",null,null,null,null,null,null,null,null,null,null,null,"durante el año escolar?"]
[null,null,null,null,"educativo autoevalúe su práctica"]
[null,null,null,5,"Escuchó y respondió las dudas y consultas realizadas por usted",null,null,null,null,null,null,null,null,null,null,null,null,null,"Al menos 1 vez al año"]
[null,null,null,6,"Las orientaciones brindadas atendieron las necesidades y",null,null,null,null,null,null,null,null,null,null,null,null,null,"2 veces al año"]
[null,null,null,null,"demandas señaladas",null,null,null,null,null,null,null,null,null,null,null,null,null,"3 vces al año"]
[null,null,null,7,"Brindó orientaciones para la mejora de las prácticas pedagógicas",null,null,null,null,null,null,null,null,null,null,null,null,null,"4 veces 2 veces al año"]
[null,null,null,null,"y de gestión acorde al enfoque por competencias."]
[null,null,null,8,"Sugirió estrategias pedagógicas contextualizadas para mejorar las"]
[null,null,null,null,"prácticas docentes"]
[null,null,null,9,"Dio a conocer las fortalezas del servicio / nivel educativo",null,null,null,null,null,null,null,null,"106.C. DURANTE EL AÑO 2022, EN PROMEDIO, ¿CUÁNTAS REUNIONES POR SEMANA DE TRABAJO"]
[null,null,null,10,"Durante las orientaciones utiliza alguna herramienta curricular o fascículos",null,null,null,null,null,null,null,null,null,"COLEGIADO O FORMACIÓN REALIZÓ CON EL PERSONAL DE ESTE SERVICIO/NIVEL EDUCATIVO?"]
[null,null,null,11,"Se asumieron compromisos y/o acuerdos para la mejora"]
[null,null,null,12,"Brindó orientaciones y/o acompañamientos periódicos para la",null,null,null,null,null,null,null,null,null,null,"Promedio de reuniones por semana"]
[null,null,null,null,"Implementación de la metodología CAP en la IE."]
[null,null,null,null,null,null,null,null,null,null,null,{"$f":"COUNTIF(L335:L354,\"SI\")+COUNTIF(L335:L354,\"NO\")","v":0}]
[null,null,"103.C  DURANTE EL AÑO 2022 Y HASTA EL REPORTE DEL CENSO EDUCATIVO 2023, EL"]
[null,null,null,"EL SERVICIO/NIVEL EDUCATIVO, ¿HA RECIBIDO ALGÚN TIPO DE ACOMPAÑAMIENTO",null,null,null,null,null,null,null,null,null,"107.C  EN EL PRESENTE AÑO, EL PERSONAL DIRECTIVO DE ESTE SERVICIO/NIVEL EDUCATIVO"]
[null,null,null,"DIRIGIDO AL DIRECTIVO?",null,null,null,null,null,null,null,null,null,null,"¿BRINDA SOPORTE Y APOYO A LOS DOCENTES EN TORNO A SU DESEMPEÑO"]
[null,null,null,null,null,null,null,null,null,null,null,null,null,null,"EN EL MARCO DEL ACOMPAÑAMIENTO PEDAGÓGICO Y ESPACIOS DE TRABAJO"]
[null,null,null,"Sí",null," No  ",null,null,null,"Pase a la pregunta 105.C",null,null,null,null,"COLEGIADO?"]
[]
[null,null,null,null,null,"¿Que Institución le brindó el acompañamiento?",null,null,null,null,null,null,null,null,"Sí",null," No  ",null,null,null,"Pase a la pregunta 109.C"]
[null,null,null,null,null,"Marque con una “X” una o más opciones"]
[]
[null,null,null,"Nro.","Institución",null,null,null,null,{"$f":"COUNTIF(I366:I369,\"SI\") + COUNTIF(I366:I369,\"NO\")","v":0},"GESTIÓN"]
[null,null,null,1,"DRE",null,null,null,null,null,null,null,null,"108.C  ¿QUÉ TEMAS HAN SIDO ABORDADOS MAYORITARIAMENTE POR EL EQUIPO"]
[null,null,null,2,"UGEL",null,null,null,null,null,null,null,null,null,"DIRECTIVO DURANTE LAS SESIONES DE SOPORTE Y APOYO A LOS DOCENTES"]
[null,null,null,3,"MINEDU",null,null,null,null,null,null,null,null,null,"EN EL MARCO DEL ACOMPAÑAMIENTO PEDAGÓGICO Y ESPACIOS DE TRABAJO"]
[null,null,null,4,"Otros",null,null,null,null,null,null,null,null,null,"COLEGIADO?"]
[]
[null,null,null,null,"“Sólo si marco DRE o UGEL”",null,null,null,null,null,null,null,null,null,null,"Marque con una  “X” una o más opciones"]
[null,null,null,null,"¿Sobre qué temas recibió acompañamiento como director por parte de la DRE/UGEL?",null,null,null,null,null,null,null,null,null,null,null,"Planificación curricular"]
[null,null,null,null,"Marque con una “X”, una o más opciones",null,null,null,null,null,null,null,null,null,null,null,"Conducción de los aprendizajes"]
[null,null,null,null,null,null,null,null,null,null,null,null,null,null,null,null,"Como brindar acompañamiento socioafectivo y cognitivo"]
[null,null,null,null,"Liderazgo directivo",null,null,null,null,null,null,null,null,null,null,null,"Uso de los recursos y materiales educativos para atender la diversidad"]
[null,null,null,null,"Temas administrativos",null,null,null,null,null,null,null,null,null,null,null,"Evaluación formativa y retroalimentación"]
[null,null,null,null,"Temas estratégicos",null,null,null,null,null,null,null,null,null,null,null,"Fortalecimiento del uso de TIC"]
[null,null,null,null,"Temas pedagógicos",null,null,null,null,null,null,null,null,null,null,null,"Competencia de las áreas curriculares"]
[null,null,null,null,"Temas comunitarios",null,null,null,null,null,null,null,null,null,null,null,"Conclusiones descriptivas"]
[null,null,null,null,"Temas sobre implementación de las Comunidades de Aprendizaje Profesional CAP",null,null,null,null,null,null,null,null,null,null,null,"Otros temas"]
[null,null,null,null,"Otros"]
[null,null,null,null,"Ninguna"]
[]
[]
[null,null,"109.C  EL SERVICIO/NIVEL EDUCATIVO, ¿ DESARROLLA LAS SIGUIENTES ESTRATEGIAS",null,null,null,null,null,null,null,null,null,null,"117.C SEÑOR(A) DIRECTOR(A), ¿TIENE USTED CONOCIMIENTO SI AL MENOS EL 50% DEL PERSONAL"]
[null,null,null,"DE ACOMPAÑAMIENTO ?",null,null,null,null,null,null,null,null,null,null,"DOCENTE DE SU IE REALIZA ACTIVIDADES PEDAGÓGICAS PARA FORTALECER"]
[null,null,null,null,null,null,null,null,null,"¿Cuántos?",null,null,null,null,"LA AUTONOMÍA EN LAS Y LOS ESTUDIANTES EN EL CONTEXTO DE APRENDIZAJE HÍBRIDO?"]
[null,null,null,"Marque con una “X”, una o más opciones",null,null,null,null,null,"Marque con una  “X” una opción"]
[null,null,null,null,null,null,null,null,null,null,"de 1 a 4 por área",null,null,null," Sí",null," No  ",null,null,null,"Pase a la pregunta 119.C"]
[null,null,null,null,"Visita en aula",null,null,null,null,null,"de 4 a 8 por área"]
[null,null,null,null,"Grupos de Interaprendizaje (GIA)",null,null,null,null,null,"Más de 8 por área",null,null,"118.C ¿QUÉ ASPECTOS ABORDAN LOS DOCENTES PARA PROMOVER LA AUTONOMÍA"]
[null,null,null,null,"Talleres",null,null,null,null,null,null,null,null,null,"DE LAS Y LOS ESTUDIANTES EN EL CONTEXTO DE APRENDIZAJE HÍBRIDO?"]
[null,null,null,null,"Otros","Especificar",null,null,null,null,null,null,null,null,"Marque con una  “X” una o más opciones"]
[]
[null,null,"110.C  DE LAS ACTIVIDADES QUE REALIZA CON FAMILIAS Y COMUNIDAD, ¿POR LO MENOS",null,null,null,null,null,null,null,null,null,null,null,null,null,"Desarrollo de la automotivación"]
[null,null,null,"UNA DE ELLAS TIENE COMO EJE PRINCIPAL LA EDUCACIÓN SEXUAL INTEGRAL (ESI)?",null,null,null,null,null,null,null,null,null,null,null,null,"Desarrollo del autoconcepto"]
[null,null,null,null,null,null,null,null,null,null,null,null,null,null,null,null,"Desarrollo de la regulación emocional"]
[null,null,null,"Sí",null," No  ",null,null,null,null,null,null,null,null,null,null,"Monitoreo de la acción o las tareas"]
[null,null,null,null,null,null,null,null,null,null,null,null,null,null,null,null,"Promoción de la toma de decisiones responsables"]
[null,null,"111.C  EL SERVICIO/NIVEL EDUCATIVO, ¿HA PLANTEADO PLANES DE MEJORA DE ACUERDO AL",null,null,null,null,null,null,null,null,null,null,null,null,null,"Otro     "]
[null,null,null,"DIAGNÓSTICO DE LOGROS DE APRENDIZAJE DE LOS ESTUDIANTES EN EL ÁREA DE COMUNICACIÓN?"]
[null,null,null,null,null,null,null,null,null,null,null,null,null,"119.C ¿EL SERVICIO/NIVEL EDUCATIVO REALIZA EL ACOMPAÑAMIENTO A LAS ACTIVIDADES"]
[null,null,null,"Sí",null," No  ",null,null,null,null,null,null,null,null,"PEDAGÓGICAS RELACIONADAS A PROCESOS DE ENSEÑANZA Y APRENDIZAJE HÍBRIDO?"]
[]
[null,null,null,null,null,"¿Cuenta con resultados?",null,null,null,null,null,null,null,null," Sí",null," No  "]
[]
[null,null,null,null,null,"Sí  ","",null,"No",null,null,null,null,"120.C. ¿EN EL SERVICIO/NIVEL EDUCATIVO SE DESARROLLA EL REFUERZO ESCOLAR"]
[null,null,null,null,null,null,null,null,null,null,null,null,null,null,"EN LAS ÁREAS DE COMUNICACIÓN Y MATEMÁTICA?"]
[]
[null,null,"112.C  EL SERVICIO/NIVEL EDUCATIVO, ¿REALIZA ACTIVIDADES PEDAGÓGICAS PARA",null,null,null,null,null,null,null,null,null,null,null," Sí",null," No  "]
[null,null,null,"INCENTIVAR EL HÁBITO LECTOR EN LOS ESTUDIANTES"]
[null,null,null,null,null,null,null,null,null,null,null,null,null,"121.C. ¿EN EL SERVICIO/NIVEL EDUCATIVO SE HA IMPLEMENTADO LA ESTRATEGIA SOMOS PROMO"]
[null,null,null,"Sí",null," No  ",null,null,null,null,null,null,null,null,"CONCLUSIÓN OPORTUNA EN LAS ÁREAS DE COMUNICACIÓN Y MATEMÁTICA?"]
[]
[null,null,"113.C. EL SERVICIO/NIVEL EDUCATIVO, ¿INFORMÓ A LAS FAMILIAS SOBRE EL PROGRESO",null,null,null,null,null,null,null,null,null,null,null," Sí",null," No  "]
[null,null,null,"DE LOS ESTUDIANTES?"]
[null,null,null,null,null,null,null,null,null,null,null,null,null,"122.C. SEÑOR(A) DIRECTOR(A), DURANTE EL AÑO 2022 Y HASTA EL MOMENTO DEL CENSO"]
[null,null,null,"Sí",null," No  ",null,null,null,null,null,null,null,null,"EDUCATIVO 2023, EN SU CONDICIÓN DE DIRECTOR(A), ¿USTED HA RECIBIDO ALGÚNA VISITA"]
[null,null,null,null,null,null,null,null,null,null,null,null,null,null,"POR PARTE DE LOS ESPECIALISTAS DE UGEL Y/O DRE?"]
[null,null,null,null,null,"¿Con qué frecuencia?"]
[null,null,null,null,null,null,"Marque con una “X”, una opción",null,null,null,null,null,null,null," Sí",null," No  ",null,null,null,"Pase a la pregunta 124.C"]
[null,null,null,null,null,null,null,"Mensual"]
[null,null,null,null,null,null,null,"Cada 2 meses",null,null,null,null,null,null,null,null,null,"Marque con una “X”, una o más opciones"]
[null,null,null,null,null,null,null,"Cada 3 meses"]
[null,null,null,null,null,null,null,"Cada 6 meses",null,null,null,null,null,null,null,null,null,"Nro.","Institución",null,null,null,"PEDA-"]
[null,null,null,null,null,null,null,"Otros",null,null,null,null,null,null,null,null,null,null,null,null,null,{"$f":"COUNTIF(W427:W430,\"X\")","v":0},"GÓGICO"]
[null,null,null,null,null,null,null,null,null,null,null,null,null,null,null,null,null,1,"DRE"]
[null,null,null,null,null,null,null,null,null,null,null,null,null,null,null,null,null,2,"UGEL"]
[null,null,"114.C  ¿HA VISITADO EL PORTAL WEB PARA DIRECTIVOS EN LOS ÚLTIMOS TRES MESES?",null,null,null,null,null,null,null,null,null,null,null,null,null,null,3,"MINEDU"]
[null,null,null,null,null,null,null,null,null,null,null,null,null,null,null,null,null,4,"Otros"]
[null,null,null,"Sí",null," No  "]
[null,null,null,null,null,null,null,null,null,null,null,null,null,"123.C. ¿QUÉ TEMÁTICAS SE HAN ABORDADO EN LAS ASISTENCIAS PEDAGÓGICAS"]
[null,null,null,null,null,"¿La información encontrada en el portal web para directivos",null,null,null,null,null,null,null,null,"QUE HA RECIBIDO POR PARTE DE LOS ESPECIALISTAS DE DRE/UGEL?"]
[null,null,null,null,null,"le resultó de utilidad?"]
[null,null,null,null,null,null,null,null,null,null,null,null,null,null,"Marque con una  “X” una o más opciones"]
[null,null,null,null,null,"Sí  ",null,null,"No"]
[null,null,null,null,null,null,null,null,null,null,null,null,null,null,null,null,"Planificación curricular"]
[null,null,"115.C  ¿EL PERSONAL DE ESTE SERVICIO/NIVEL EDUCATIVO, HA RECIBIDO ALGÚN TIPO",null,null,null,null,null,null,null,null,null,null,null,null,null,"Metodología y estrategias didácticas"]
[null,null,null,"DE SOPORTE O ACOMPAÑAMIENTO SOCIOEMOCIONAL DE PARTE DE EQUIPOS DE UGEL O DRE?",null,null,null,null,null,null,null,null,null,null,null,null,"Retroalimentación, criterios e instrumentos de evaluación"]
[null,null,null,null,null,null,null,null,null,null,null,null,null,null,null,null,"Soporte emocional"]
[null,null,null,"Sí",null," No  ",null,null,null,null,null,null,null,null,null,null,"Experiencias pedagógicas innovadoras"]
[null,null,null,null,null,null,null,null,null,null,null,null,null,null,null,null,"Acompañamiento pedagógico"]
[null,null,"116.C ¿EL SERVICIO/NIVEL EDUCATIVO HA INCORPORADO/IMPLEMENTADO PROCESOS",null,null,null,null,null,null,null,null,null,null,null,null,null,"Implementación de Refuerzo Escolar"]
[null,null,null,"DE ENSEÑANZA Y APRENDIZAJE HÍBRIDO?",null,null,null,null,null,null,null,null,null,null,null,null,"Atención Diferenciada"]
[null,null,null,null,null,null,null,null,null,null,null,null,null,null,null,null,"Otros"]
[null,null,null,"Sí",null," No  ",null,null,null,null,null,null,null,null,null,null,"Ninguna"]
[]
[]
[null,null,"124.C. ¿ESTE SERVICIO/NIVEL EDUCATIVO ESTÁ PARTICIPANDO EN LA COMUNIDAD",null,null,null,null,null,null,null,null,null,null,"131.C. SEÑOR(A) DIRECTOR(A), ¿CÓMO HA IDENTIFICADO LAS NECESIDADES FORMATIVAS"]
[null,null,null,"DE PRÁCTICA PARA DOCENTES DE INGLÉS DE SU REGIÓN?",null,null,null,null,null,null,null,null,null,null,"PARA EL PERSONAL DOCENTE DE ESTE SERVICIO/NIVEL EDUCATIVO?"]
[null,null,null,null,"Marque con una “X”, solo una opción"]
[null,null,null,null,null,"Si",null,null,null,null,null,null,null,null,"Sí",null," No  ",null,null,null,"Pase a la pregunta 133.C"]
[null,null,null,null,null,"No"]
[null,null,null,null,null,"Desconozco que haya una"]
[]
[null,null,"125.C. ¿CONSIDERA USTED SEÑOR(A) DIRECTOR(A), QUE PERTENECER A UNA COMUNIDAD DE PRÁCTICA",null,null,null,null,null,null,null,null,null,null,null,null,null,null,"¿Cómo identificó las necesidades formativas?"]
[null,null,null,"DE DOCENTES DE INGLÉS FAVORECERÁ EL DESEMPEÑO DE SUS DOCENTES EN EL AULA?"]
[null,null,null,null,"Marque con una “X”, solo una opción",null,null,null,null,null,null,null,null,null,null,null,null,"Marque con una “X”, una o más opciones"]
[null,null,null,null,null,"Sí, muy favorablemente"]
[null,null,null,null,null,"Sí, medianamente favorable",null,null,null,null,null,null,null,null,null,null,null,null,"Observación en aula"]
[null,null,null,null,null,"Casi nada favorable",null,null,null,null,null,null,null,null,null,null,null,null,"Cuestionario de autodiagnóstico"]
[null,null,null,null,null,null,null,null,null,null,null,null,null,null,null,null,null,null,"Monitoreo pedagógico"]
[null,null,"126.C. ¿CONSIDERA IMPORTANTE QUE SE DEBA CONTAR CON UNA FICHA DE ACOMPAÑAMIENTO",null,null,null,null,null,null,null,null,null,null,null,null,null,null,null,"Otros"]
[null,null,null,"DIFERENCIADO O ESPECIALIZADO PARA EL ÁREA DE INGLÉS?"]
[null,null,null,null,"Marque con una “X”, solo una opción"]
[null,null,null,null,null,"Si es importante",null,null,null,null,null,null,null,"132.C. SEÑOR(A) DIRECTOR (A), ¿EN ESTE SERVICIO/NIVEL EDUCATIVO HA GESTIONADO"]
[null,null,null,null,null,"No es importante",null,null,null,null,null,null,null,null,"ALGÚN TIPO DE ACCIÓN FORMATIVA PARA ATENDER DICHAS NECESIDADES"]
[null,null,null,null,null,null,null,null,null,null,null,null,null,null,"DEL PERSONAL DOCENTE DE ESTE SERVICIO/NIVEL EDUCATIVO?"]
[null,null,"127.C. ¿CUENTA CON EL EQUIPAMIENTO PARA EL AULA FUNCIONAL DE INGLÉS?"]
[null,null,null,null,null,null,null,null,null,null,null,null,null,null,"Sí",null," No  "]
[{"$f":"CONCATENATE(E471,G471)","v":""},null,null,"Sí",null," No  "]
[]
[null,null,null,null,null,"¿Con cuántos equipos en funcionamiento dispone este servicio/nivel educativo",null,null,null,null,null,null,null,null,null,null,"¿Qué tipo de acciones formativas gestionó para atender dichas"]
[null,null,null,null,null,"para el área funcional de Inglés?",null,null,null,null,null,null,null,null,null,null,"necesidades del personal docente de este Servicio/Nivel Educativo?"]
[]
[null,null,null,null,"Equipamiento",null,"Número de equipos en funcionamiento para el\nárea funcional de ingles",null,null,null,null,null,null,null,null,null,null,"Marque con una “X”, una o más opciones"]
[null,null,null,null,null,null,"Número ya\ndestinados al área",null,null,"Número de los que podrían\nser destinados al área",null,null,null,null,null,null,null,null,"Cursos virtuales"]
[null,null,null,null,null,null,null,null,null,null,null,null,null,null,null,null,null,null,"Programas formativos"]
[null,null,null,null,"Pc",null,null,null,null,null,null,null,null,null,null,null,null,null,"Otros"]
[null,null,null,null,"Laptop"]
[null,null,null,null,"Tablet"]
[null,null,null,null,null,null,null,{"$f":"SUM(G479:I481)","v":0},null,null,{"$f":"SUM(J479:L481)","v":0},null,null,"133.C. EN LOS ÚLTIMOS DOCE (12) MESES, ¿ESTE SERVICIO/NIVEL EDUCATIVO CONTÓ"]
[null,null,null,null,null,null,null,null,null,null,null,null,null,null,"CON ALGÚN PROYECTO DE INNOVACIÓN EDUCATIVA O BUENA PRÁCTICA"]
[null,null,"128.C. ESTE SERVICIO/NIVEL EDUCATIVO, ¿CUENTA CON UN ESPECIALISTA DE INGLÉS",null,null,null,null,null,null,null,null,null,null,null,"PEDAGÓGICA ENMARCADOS EN ALGUNA DE LAS SIGUIENTES TEMÁTICAS/EJES?"]
[null,null,null,"QUE BRINDE ASISTENCIA TÉCNICA A LOS DOCENTES?"]
[null,null,null,null,null,null,null,null,null,null,null,null,null,null,null,"Temática / Eje",null,null,null,"Innovación educativa",null,"Buena práctica pedagógica"]
[null,null,null,"Sí",null," No  "]
[null,null,null,null,null,null,null,null,null,null,null,null,null,null,null,null,null,null,null,"SI","NO","SI","NO"]
[null,null,null,null,null,"¿El especialista de inglés que brinda la asistencia técnica a los docentes, ",null,null,null,null,null,null,null,{"$f":"CONCATENATE(T489,U489,V489,W489)","v":""},1,"Gestión escolar"]
[null,null,null,null,null,"cuenta con formación en el área?",null,null,null,null,null,null,null,{"$f":"CONCATENATE(T490,U490,V490,W490)","v":""},2,"Mejoramiento del Servicio Educativo"]
[null,null,null,null,null,null,null,null,null,null,null,null,null,"",3,"Humanidades"]
[null,null,null,null,null,"Sí    ",null,null," No  ",null,null,null,null,"",4,"Ciencias"]
[null,null,null,null,null,null,null,null,null,null,null,null,null,"",5,"Medio ambiente"]
[null,null,null,null,null,"¿Con qué frecuencia visita su escuela?",null,null,null,null,null,null,null,"",6,"Violencia escolar (Bullying, acoso)"]
[null,null,null,null,null,null,null,null,null,null,null,null,null,"",7,"Emprendimientos, productivos"]
[null,null,null,null,null,null,null,"Mensualmente ",null,null,null,null,null,"",8,"Inclusión"]
[null,null,null,null,null,null,null,"Bimestralmente",null,null,null,null,null,"",9,"Nuevas tecnologías"]
[null,null,null,null,null,null,null,"Semestralmente",null,null,null,null,null,"",10,"Otro"]
[null,null,null,null,null,null,null,"Anualmente",null,null,null,null,null,null,null,null,null,null,null,{"$f":"COUNTIF(T489:U498,\"X\")","v":0},null,{"$f":"COUNTIF(V489:W498,\"X\")","v":0}]
[null,null,null,null,null,null,null,"Aún no ha realizado ninguna visita"]
[null,null,null,null,null,null,null,null,null,null,null,null,null,"134.C. SEÑALE MARCANDO CON UNA \"X\" SI EN LOS ÚLTIMOS 12 MESES HA CONTADO CON ALIADOS"]
[null,null,"129.C. ESTE SERVICIO/NIVEL EDUCATIVO, ¿CUENTA CON DOCENTES DE INGLÉS QUE TENGAN",null,null,null,null,null,null,null,null,null,null,null,"ESTRATÉGICOS QUE LE HAN BENEFICIADO CON ALGÚN INCENTIVO ECONÓMICO PARA LA"]
[null,null,null,"UNA CERTIFICACIÓN INTERNACIONAL, SEGÚN EL MARCO COMÚN EUROPEO DE REFERENCIA-MCER?",null,null,null,null,null,null,null,null,null,null,"IMPLEMENTACIÓN Y/O SOSTENIBILIDAD DE SU INNOVACIÓN O BUENA PRÁCTICA PEDAGÓGICA"]
[]
[null,null,null,"Sí",null,"¿Cuántos?   ",null,null,"Detalle el número de docentes de ingles por"]
[null,null,null,null,null,null,null,null,"certificación internacional MCER",null,null,null,null,null,null,"Aliados Estratégicos",null,null,"Innovación Educativa",null,"Buena práctica pedagógica"]
[null,null,null,null,null,null,null,null,"Certiﬁcación Internacional",null,null,"Cantidad"]
[null,null,null,null,null,null,null,null,"a. Certificado PRE A1",null,null,null,null,null,null,null,null,null,"SI","NO","SI","NO"]
[null,null,null,null,null,null,null,null,"b. Certificado A1",null,null,null,null,{"$f":"CONCATENATE(S509,T509,U509,V509)","v":""},1,"Gobierno regional"]
[null,null,null," No  ",null,null,null,null,"c. Certificado A2",null,null,null,null,{"$f":"CONCATENATE(S510,T510,U510,V510)","v":""},2,"DRE/UGEL"]
[null,null,null,null,null,null,null,null,"d. Certificado B1",null,null,null,null,"",3,"Gobierno local"]
[null,null,null,null,null,null,null,null,"e. Certificado B2",null,null,null,null,"",4,"Aliados privados"]
[null,null,null,null,null,null,null,null,"f.  Certificado C1",null,null,null,null,"",5,"MINEDU-FONDEP"]
[null,null,null,null,null,null,null,null,"g  Certificado C2",null,null,null,null,"",6,"Padres y madres de familia"]
[null,null,null,null,null,null,null,null,null,null,null,{"$f":"SUM(K508:L514)","v":0},null,"",7,"Recursos propios de la IE"]
[null,null,"130.C. SEÑOR(A) DIRECTOR(A), ¿UD. CONOCE EL SISTEMA INTEGRADO DE FORMACIÓN",null,null,null,null,null,null,null,null,null,null,"",8,"Otro"]
[null,null,null,"DOCENTE EN SERVICIO (SIFODS)?",null,null,null,null,null,null,null,null,null,null,null,null,null,null,{"$f":"COUNTIF(S509:T516,\"X\")","v":0},null,{"$f":"COUNTIF(U509:V516,\"X\")","v":0}]
[]
[null,null,null,"Sí",null," No  ",null,null,null,null,null,null,null,"135.C. EN LOS ÚLTIMOS CINCO (05) AÑOS, ¿ALGUNA VEZ EN ESTE SERVICIO/NIVEL EDUCATIVO"]
[null,null,null,null,null,null,null,null,null,null,null,null,null,null,"SE IMPLEMENTÓ UN PROYECTO DE INNOVACIÓN EDUCATIVA O BUENA PRÁCTICA PEDAGÓGICA?"]
[null,null,null,null,null,null,"¿Qué módulo(s) ha utilizado del SIFODS?"]
[null,null,null,null,null,null,"(Marque con una “X”, una o más opciones)",null,null,null,null,null,null,null,null,null,null,null,null,"Sí - No"]
[null,null,null,null,null,null,null,null,null,null,null,null,null,null,null,1,"Innovación educativa"]
[null,null,null,null,null,null,null,"File Docente",null,null,null,null,null,null,null,2,"Buena práctica pedagógica"]
[null,null,null,null,null,null,null,"Docente al Día"]
[null,null,null,null,null,null,null,"Portafolio de la Oferta Formativa"]
[null,null,null,null,null,null,null,"Centro de Recursos"]
[null,null,null,null,null,null,null,"Guías docentes AeC"]
[null,null,null,null,null,null,null,"Asistencia Virtual Docente"]
[null,null,null,null,null,null,null,"Comunidades"]
[null,null,null,null,null,null,null,"Entorno Personal"]
[]
[null,null,null,null,null,null,null,null,null,null,null,null,null,null,null,null,null,null,""]
[null,null,null,null,null,null,null,null,null,null,null,null,null,null,null,null,null,null,""]
[null,null,null,null,null,null,null,null,null,null,null,null,null,null,null,null,null,null,""]

{"sheet":"C101","index":2,"n_rows":244,"n_cols":24,"rows_kept":244,"cut":false,"hidden":false,"merged":[[2,6,2,20],[1,6,1,20],[9,14,11,21],[11,4,11,9],[17,19,17,20],[18,18,20,22],[20,6,20,10],[30,20,30,22],[39,18,41,19],[40,2,40,12],[40,20,40,22],[34,2,34,12],[143,21,143,22],[78,8,78,9],[64,21,64,22],[142,21,142,22],[109,6,109,10],[134,6,134,10],[96,9,96,11],[98,20,98,22],[132,19,132,22],[189,2,189,9],[189,17,189,18],[189,19,189,20],[154,10,154,11],[146,6,146,10],[154,17,154,22],[156,8,156,11],[157,8,157,11],[179,17,179,21],[159,8,159,10],[159,17,159,22],[160,8,160,11],[186,2,188,8],[186,10,187,11],[186,12,186,23],[187,14,187,15],[200,18,200,20],[200,21,200,22],[199,13,199,15],[158,17,158,22],[199,18,199,20],[190,17,190,18],[190,19,190,20],[199,16,199,17],[160,17,160,20],[187,16,187,18],[187,19,187,21],[187,22,187,23],[188,17,188,18],[188,19,188,20],[175,6,175,10],[238,6,238,10],[239,17,239,21],[190,2,190,9],[215,6,215,10],[215,17,215,21],[196,3,198,9],[196,12,197,12],[196,13,196,22],[197,13,198,15],[197,16,198,17],[197,18,198,20],[197,21,198,22],[199,21,199,22],[200,13,200,15],[200,16,200,17]]}
[{"$f":"IF(OR(UPPER('C100'!J29)<>\"\",UPPER('C100'!O29)<>\"\"),\"X\",\"\")","v":""}]
[{"$f":"IF(UPPER('C100'!T29)<>\"\",\"X\",\"\")","v":""},null,null,null,null,null,"CENSO EDUCATIVO 2023"]
[null,null,null,null,null,null,"MATRÍCULA, DOCENTES Y MATERIALES EDUCATIVOS"]
[]
[]
[]
[null,null,"D. SOBRE LA BASE DEL CENSO DE POBLACIÓN Y VIVIENDA 2017 DEL INEI"]
[null,null,"101.D  SEGÚN LAS COSTUMBRES Y EL ORIGEN FAMILIAR, ¿USTED CONSIDERA QUE SU SERVICIO/NIVEL"]
["0200: Achuar",null,null,"EDUCATIVO CUENTA CON ESTUDIANTES PERTENECIENTES A LOS SIGUIENTES"]
["0300: Aimara",null,null,"GRUPOS ÉTNICOS?",null,null,null,null,null,null,null,null,null,null,"SOLO SI MARCÓ DOS O MÁS ALTERNATIVAS EN LA PREGUNTA ANTERIOR, RESPONDA:"]
["0400: Amahuaca"]
["0500: Arabela",null,null,"COD.","GRUPO ÉTNICO",null,null,null,null,null,{"$f":"COUNTIF(L13:L21,\"SI\")","v":0}," SI - NO"]
["0600: Asháninka",null,null,1,"Quechua",null,null,null,null,null,null,null,{"$f":"IF(L13=\"SI\",1,0)","v":0}]
["0610: Asheninka",null,null,2,"Aimara",null,null,null,null,null,null,null,{"$f":"IF(L14=\"SI\",1,0)","v":0}]
["0700: Awajún",null,null,3,"Nativo o indígena de la Amazonía",null,null,null,null,null,null,null,0]
["0800: Bora",null,null,4,"Perteneciente o parte de otro pueblo indígena u originario",null,null,null,null,null,null,null,0,"102.D  ¿EXISTE UN GRUPO QUE TENGA MAYOR CANTIDAD DE ESTUDIANTES?"]
["0900: Kapanawa",null,null,5,"Negro moreno, zambo, mulato/Pueblo afroperuano o afrodescendiente",null,null,null,null,null,null,null,0]
["1000: Cashinahua",null,null,6,"Blanco",null,null,null,null,null,null,null,0,null,"Sí",null,null,null,"Código"]
["1100: Kawki",null,null,7,"Mestizo",null,null,null,null,null,null,null,0,null,null,null,null,null,"Indique el grupo étnico en el que identifica mayor cantidad de estudiantes utilizando el COD. seleccionado en la pregunta 101.D"]
["1200: Chamikuro",null,null,8,"Asiático peruano",null,null,null,null,null,null,null,0,null,"No"]
["1300: Ese eja",null,null,9,"Otro  especifique",null,null,null,null,null,null,null,0]
["1400: Harakbut",null,null,null,null,null,null,null,null,null,{"$f":"IF(K12>1,\"X\",\"\")","v":""},{"$f":"COUNTIF(L13:L21,\"SI\")+COUNTIF(L13:L21,\"NO\")","v":0}]
["1500: Iñapari"]
["1600: Ikuitu"]
["1700: Iskonawa",null,"E. CARACTERÍSTICAS DE LA ENSEÑANZA EN CONTEXTOS BILINGÜES - SOLO GESTIÓN PÚBLICA",null,null,null,null,null,null,null,null,null,null,null,null,null,null,null,""]
["1800: Jaqaru",null,null,null,null,null,null,null,null,null,null,null,null,null,null,null,null,null,""]
["1900: Kakataibo",null,"101.E  ESTE SERVICIO/NIVEL EDUCATIVO, ¿ESTÁ RECONOCIDO COMO EIB?",null,null,null,null,null,null,null,null,null,null,"104.E. USTED, SEÑOR(A) DIRECTOR(A), ¿CONOCE SI EN LA COMUNIDAD DONDE SE"]
["2000: Kakinte (caquinte)",null,null,null,null,null,null,null,null,null,null,null,null,null,"ENCUENTRA EL SERVICIO/NIVEL EDUCATIVO, LOS PADRES DE FAMILIA, OTROS"]
["2110: Kandozi (Chapra)",null,null,null,null,"EIB de Fortalecimiento",null,null,null,null,null,null,null,null,"ADULTOS Y/O ANCIANOS Y ANCIANAS HABLAN UNA LENGUA ORIGINARIA?"]
["2120: Kandozi (Kandozi)",null,null,"Sí",null,"EIB de Revitalización"]
["2200: Kukama-kukamiria",null,null,null,null,"EIB en Ámbitos Urbano",null,null,null,null,null,null,null,null,null,null,null,null,null,"¿Qué lengua originaria?  "]
["2300: Madija (culina)",null,null,null,null,null,null,null,{"$f":"CONCATENATE(I30,I31)","v":""},null,null,null,null,null,"Sí",null,null,null,null,null,null,"Anote el código según la"]
["2400: Maijiki",null,null,"No",null,null,"Pase a la pregunta 104.E",null,null,null,null,null,null,null,null,null,null,null,null,null,null,"tabla de Lenguas Originarias"]
["2500: Matsés",null,null,null,null,null,null,null,null,null,null,null,null,null,"No",null,null,null,null,null,null,"de la página 18."]
["2600: Matsigenka",null,"SOLO SI ES EIB DE FORTALECIMIENTO, RESPONDA:",null,null,null,null,null,null,null,null,null,null,null,null,null,null,null,""]
["2700: Munichi",null,"102.E. ESTE SERVICIO/NIVEL EDUCATIVO, ¿OFRECE ENSEÑANZA DEL CASTELLANO COMO",null,null,null,null,null,null,null,null,null,null,"105. E.  LOS ESTUDIANTES DE ESTE SERVICIO/NIVEL EDUCATIVO,  ¿HABLAN UNA LENGUA"]
["2800: Murui-muinani",null,null,"SEGUNDA LENGUA?",null,null,null,null,null,null,null,null,null,null,"ORIGINARIA?"]
["2900: Matsigenka-montetokunirira",null,null,null,null,null,null,null,null,null,null,null,null,null,null,null,null,null,""]
["3000: Nomatsigenga",null,null,"Sí",null,null,null,null," No",null,null,null,null,null,"Sí"]
["3100: Ocaina",null,null,null,null,null,null,null,null,null,null,null,null,null,null,null,"Todos",null,"¿Qué\nlengua  originaria?"]
["3200: Omagua",null,"SOLO SI ES EIB DE REVITALIZACIÓN O EIB EN ÁMBITOS URBANOS, RESPONDA:",null,null,null,null,null,null,null,null,null,null,null,null,null,"La mayoría"]
["3310: Quechua amazónico (Kichwa)",null,"103.E. ESTE SERVICIO/NIVEL EDUCATIVO, ¿OFRECE ENSEÑANZA DE LA LENGUA ORIGINARIA COMO ",null,null,null,null,null,null,null,null,null,null,null,null,null,"Pocos"]
["3321: Quechua central (Ancash)",null,null,"SEGUNDA LENGUA?",null,null,null,null,null,null,null,null,null,null,null,null,null,{"$f":"CONCATENATE(R42,R41,R40)","v":""},null,null,null,"Anote el código según la"]
["3322: Quechua central (Huánuco)",null,null,null,null,null,null,null,null,null,null,null,null,null,"No",null,null,null,null,null,null,"tabla de Lenguas Originarias"]
["3323: Quechua central (Wanka)",null,null,"Sí",null,null,null,null," No",null,null,null,null,null,null,null,null,null,null,null,null,"de la página 23."]
["3324: Quechua central (Pasco)"]
["3331: Quechua norteño (Cajamarca)",null,null,null,null,null,null,null,null,null,null,null,null,null,null,null,null,null,""]
["3332: Quechua norteño (Inkawasi Kañaris)",null,"F. ATENCIÓN A LA DIVERSIDAD Y SOBRE EL SERVICIO DE APOYO Y ASESORAMIENTO A LAS NECESIDADES EDUCATIVAS ESPECIALES - SAANEE"]
["3341: Quechua sureño (Chanka)",null,"101.F. ESTE SERVICIO/NIVEL EDUCATIVO ¿TIENE TECNOLOGÍA PARA RESPONDER A LAS NECESIDADES",null,null,null,null,null,null,null,null,null,null,"106.F.  ¿CUÁNTOS DOCENTES DE ESTE SERVICIO/NIVEL EDUCATIVO HAN RECIBIDO ASISTENCIA Y"]
["3342: Quechua sureño (Collao)",null,null,"EDUCATIVAS ESPECIALES (NEE) DE LOS ESTUDIANTES?",null,null,null,null,null,null,null,null,null,null," ORIENTACIÓN PARA LA ATENCIÓN EDUCATIVA DE ESTUDIANTES CON DISCAPACIDAD DE PARTE"]
["3400: Resígaro",null,null,"Sí",null,null,null,null,"No",null,null,null,null,null," DEL EQUIPO DE SERVICIO DE APOYO Y ASESORAMIENTO DE LAS NECESIDADES EDUCATIVA"]
["3500: Secoya",null,null,null,null,null,null,null,null,null,null,null,null,null,"S ESPECIALES (SAANEE) ?"]
["3600: Sharanahua",null,"102.F. ESTE SERVICIO/NIVEL EDUCATIVO ¿CUENTA CON MATERIALES EDUCATIVOS PARA ATENDER A",null,null,null,null,null,null,null,null,null,null,null,null,null,null,"Cantidad"]
["3700: Shawi",null,null," ESTUDIANTES CON NECESIDADES EDUCATIVAS ESPECIALES (NEE)?"]
["3800: Shipibo-Konibo",null,null,"Sí",null,null,null,null,"No",null,null,null,null,"107.F. ¿ALGUNO DE LOS DOCENTES DE ESTE SERVICIO/NIVEL EDUCATIVO HAN RECIBIDO O RECIBEN"]
["3900: Shiwilu",null,null,null,null,null,null,null,null,null,null,null,null,null," CAPACITACIÓN EN TEMAS RELACIONADOS A INCLUSIÓN Y ATENCIÓN A LA DIVERSIDAD EN LOS"]
["4000: Taushiro",null,"103.F.  EL LOCAL DONDE OPERA ESTE SERVICIO/NIVEL EDUCATIVO, ¿CUENTA CON INFRAESTRUCTURA",null,null,null,null,null,null,null,null,null,null,null," ÚLTIMOS 2 AÑOS?"]
["4100: Ticuna",null,null,"PARA RESPONDER A LA DIVERSIDAD O LAS NEE, (RAMPA, SEÑALÉTICA, ENTRE OTROS)?",null,null,null,null,null,null,null,null,null,null,null,null,null,null,"¿DE QUIEN RECIBIERON O RECIBEN?"]
["4200: Urarina",null,null,"Sí",null,null,null,null,"No",null,null,null,null,null,"Sí",null,null,null,null,null,"Minedu"]
["4300: Wampis",null,null,null,null,null,null,null,null,null,null,null,null,null,null,null,null,null,null,null,"DRE/GRE"]
["4400: Yagua",null,null,null,null,"¿Es suficiente? ",null,null,null,null,null,null,null,null,null,null,null,null,null,null,"UGEL"]
["4500: Yaminahua",null,null,null,null,null,null,null,null,null,null,null,null,null,null,null,null,null,null,null,"Organizaciones sin fines de lucro"]
["4600: Yanesha",null,null,null,null,"Sí",null,null,"No",null,null,null,null,null,"No",null,null,null,null,null,"Entidad privada, como auspicio"]
["4700: Yine",null,null,null,null,null,null,null,null,null,null,null,null,null,null,null,null,null,null,null,"Inversión propia"]
["4800: Nahua",null,"104.F. ESTE SERVICIO/NIVEL EDUCATIVO, ¿CUENTA CON UN ESPECIALISTA DEL EQUI PO DE SERVICIO",null,null,null,null,null,null,null,null,null,null,null,null,null,null,null,null,null,"Otros"]
["5000: Otra lengua originaria",null,null,"DE APOYO Y ASESORAMIENTO DE LAS NECESIDADES EDUCATIVAS ESPECIALES (SAANEE) QUE "]
["LENGUA EXTRANJERA: ",null,null,"LE HAYA SIDO ASIGNADO?",null,null,null,null,null,null,null,null,null,"108.F. ¿EL SERVICIO/NIVEL EDUCATIVO HA RECIBIDO ASISTENCIA Y ORIENTACION"]
["5100: Alemán",null,null,"Sí",null,null,null,null,"No",null,null,null,null,null,"PARA LA ATENCION EDUCATIVA DE ESTUDIANTES CON DISCAPACIDAD, DE"]
["5200: Inglés",null,null,null,null,null,null,null,null,null,null,null,null,null,"PARTE DEL SERVICIO DE APOYO EDUCATIVO VIRTUAL (SAEV)?"]
["5300: Italiano",null,"105.F. DURANTE EL PRESENTE AÑO, ESTE SERVICIO/NIVEL EDUCATIVO ¿HA RECIBIDO ASISTENCIA Y"]
["5400: Japonés",null,null,"ORIENTACIÓN PARA LA ATENCIÓN EDUCATIVA DE ESTUDIANTES CON DISCAPACIDAD, DE PARTE",null,null,null,null,null,null,null,null,null,null,"Sí",null,null,"No"]
["5500: Portugués",null,null,"DEL EQUIPO DE SERVICIO DE APOYO Y ASESORAMIENTO DE LAS NECESIDADES EDUCATIVAS"]
["5600: Ruso",null,null,"ESPECIALES (SAANEE)?"]
["5700: Francés",null,null,null,null,null,null,null,null,null,null,null,null,null,null,null,null,"¿Cuántos estudiantes con discapacidad están a cargo de los"]
["5800: Otra lengua extranjera",null,null,"Sí",null,"No  ",null,null,null,"Pase a la pregunta 107.F",null,null,null,null,null,null,null,"docentes que han recibido asistencia y orientación por el"]
[null,null,null,null,null,null,null,null,null,null,null,null,null,null,null,null,null,"Servicio de Apoyo Educativo Virtual (SAEV)?"]
[null,null,null,null,null,"¿Cuántas asesorías (presenciales o virtuales) ha brindado el equipo SAANEE a este "]
["SI",null,null,null,null,"servicio educativo 2022?"]
["NO",null,null,null,null,null,null,null,"Cantidad :",null,null,null,null,null,null,null,null,"Cantidad"]
[]
[]
[]
[null,null,"109.F.  ¿DURANTE LOS ÚLTIMOS 5 AÑOS, EL PERSONAL DE ESTE SERVICIO/NIVEL EDUCATIVO",null,null,null,null,null,null,null,null,null,null,"113.F. DE LAS ACTIVIDADES QUE REALIZA CON FAMILIAS Y COMUNIDAD, ¿POR LO MENOS"]
[null,null,null,"(YA SEA PERSONAL DIRECTIVO/JERÁRQUICO, PERSONAL DOCENTE, AUXILIARES O PERSONAL",null,null,null,null,null,null,null,null,null,null,"UNA DE ELLAS TIENE COMO EJE PRINCIPAL LA EDUCACIÓN INCLUSIVA?"]
[null,null,null,"ADMINISTRATIVO), HA RECIBIDO CAPACITACIÓN EN TEMAS DE EDUCACIÓN INCLUSIVA O "]
[null,null,null,"ATENCIÓN A LA DIVERSIDAD DE PARTE DE ESPECIALISTAS DE DRE/GRE Y/O UGEL, O ALGUNA",null,null,null,null,null,null,null,null,null,null,"Sí",null,null,"No"]
[null,null,null,"OTRA INSTITUCIÓN?"]
[]
[null,null,null,null,null,null,null,null,null,null,null,null,null,"114.F. ¿EL SERVICIO/NIVEL EDUCATIVO, CUENTA CON EL SERVICIO DE APOYO EDUCATIVO"]
[null,null,null,null,null,null,"¿Qué instancia o institución brindó la capacitación?",null,null,null,null,null,null,null,"INTERNO (SAEI)?"]
[null,null,null,"Sí",null,null,null,null,"Minedu"]
[null,null,null,null,null,null,null,null,"DRE/GRE",null,null,null,null,null,"Sí",null,"¿Cuántas personas lo integran?"]
[null,null,null,null,null,null,null,null,"UGEL"]
[null,null,null,null,null,null,null,null,"Organizaciones sin fines de lucro",null,null,null,null,null,"No",null,"¿Por qué?"]
[null,null,null,"No",null,null,null,null,"Entidad privada, como auspicio",null,null,null,null,null,null,null,"Marque con una “X”, una o más opciones"]
[null,null,null,null,null,null,null,null,"Inversión propia"]
[null,null,null,null,null,null,null,null,"Otros",null,null,null,null,null,null,null,null,null,"Aún no cuentan con lineamientos para implementarlo."]
[null,null,null,null,null,null,null,null,null,null,null,null,null,null,null,null,null,null,"Aún desconocen las funciones del SAEI."]
[null,null,null,null,null,null,null,null,null,null,null,null,null,null,null,null,null,null,"Otro motivo"]
[]
[null,null,"110.F  ¿QUÉ ESTRATEGIAS FORMATIVAS VIRTUALES PRIORIZARÍA SOBRE TEMAS DE"]
[null,null,null,"EDUCACIÓN INCLUSIVA O ATENCIÓN A LA DIVERSIDAD?",null,null,null,null,null,null,null,null,null,"115.F. EL SERVICIO/NIVEL EDUCATIVO, DE ACUERDO AL DIAGNÓSTICO DE LOGROS DE APRENDIZAJE"]
[null,null,null,null,null,null,null,null,null,null,null,null,null,null,"DE LAS/OS ESTUDIANTES QUE REQUIEREN MAYORES APOYOS EDUCATIVOS ¿HA ELABORADO"]
[null,null,null,null,null,"Curso virtual tutorado",null,null,null,null,null,null,null,null,"PLANES EDUCATIVOS PERSONALIZADOS (PEP)?"]
[null,null,null,null,null,"Curso virtual autoformativo"]
[null,null,null,null,null,"Grupo o círculo de interaprendizaje",null,null,null,null,null,null,null,null,"Sí",null,null,"No"]
[null,null,null,null,null,"Comunidades profesionales de apendizaje"]
[null,null,null,null,null,"Asesoría personalizada",null,null,null,null,null,null,null,null,null,null,"¿Todos los/as estudiantes con alguna necesidad"]
[null,null,null,null,null,"Pasantia",null,null,null,null,null,null,null,null,null,null,"educativa cuentan con un PEP?"]
[null,null,null,null,null,"Otros "]
[null,null,null,null,null,null,null,null,null,null,null,null,null,null,null,null,"Sí  ",null,null,"No"]
[]
[null,null,"111.F.  ¿EL SERVICIO/NIVEL EDUCATIVO, CUENTA CON RESPONSABLE DE INCLUSIÓN?"]
[null,null,null,null,null,null,null,null,null,null,null,null,null,"116.F. ¿EN LOS PLANES TUTORIALES SE HA PRIORIZADO ALGÚN TEMA SOBRE EL EJE"]
[null,null,null,"Sí",null,null,null,null,"No",null,null,null,null,null,"DE INCLUSIÓN Y ATENCIÓN A LA DIVERSIDAD?"]
[]
[null,null,null,null,null,"¿Este personal labora a tiempo completo?",null,null,null,null,null,null,null,null,"Sí",null,null,"No"]
[]
[null,null,null,null,null,"Sí  ",null,null,"No"]
[null,null,null,null,null,null,null,null,null,null,null,null,null,"117.F. EN EL AÑO 2022, ¿ESTE SERVICIO/NIVEL EDUCATIVO HA INCORPORADO ACCIONES"]
[null,null,null,null,null,null,null,null,null,null,null,null,null,null,"Y CAMBIOS EN LA GESTIÓN PARA ATENDER A LA DIVERSIDAD Y BRINDAR"]
[null,null,"112.F. DESDE EL AÑO 2021 HASTA HOY, EN ESTE SERVICIO/NIVEL EDUCATIVO, ¿HA IMPLEMENTADO",null,null,null,null,null,null,null,null,null,null,null,"UNA EDUCACIÓN INCLUSIVA SEGÚN LAS NORMATIVAS VIGENTES?"]
[null,null,null,"MEDIDAS Y ACCIONES EN FAVOR DE LA INCLUSIÓN Y ATENCIÓN A LA DIVERSIDAD DE LAS/OS"]
[null,null,null,"ESTUDIANTES Y/O DOCENTES? (EN CUMPLIMIENTO DEL D.S. N° 007-2021-MINEDU)",null,null,null,null,null,null,null,null,null,null,"Sí",null,null,"No"]
[]
[null,null,null,"Sí","",null,"No",null,null,null,null,null,null,null,null,null,"¿Precise los documentos de gestión?"]
[null,null,null,null,null,null,null,null,null,null,null,null,null,null,null,null,"Marque con una “X”, una o más opciones"]
[]
[null,null,null,null,null,null,null,"¿Por qué?",null,null,null,null,null,null,null,null,null,null,"Proyecto Educativo Institucional (PEI)"]
[null,null,null,null,"Marque con una “X”, una o más opciones",null,null,null,null,null,null,null,null,null,null,null,null,null,"Plan Anual de Trabajo (PAT)"]
[null,null,null,null,null,null,null,null,null,null,null,null,null,null,null,null,null,null,"Proyecto Curricular Institucional (PCI)"]
[null,null,null,null,null,"Aún no cuentan con responsable de inclusión.",null,null,null,null,null,null,null,null,null,null,null,null,"Reglamento Interno (RI)"]
[null,null,null,null,null,"Aún desconocen sobre el D.S. 007-2021-MINEDU respecto a la educación inclusiva.",null,null,null,null,null,null,null,null,null,null,null,null,"Otros"]
[null,null,null,null,null,"Aún no cuentan con orientaciones para implementar la educación inclusiva."]
[null,null,null,null,null,"Otro motivo"]
[]
[]
[null,null,"G. SUPERVISIÓN DE LA PRESTACIÓN DEL SERVICIO EDUCATIVO - SOLO GESTIÓN PRIVADA"]
[null,null,"101.G.  EN EL PRESENTE AÑO 2022, ¿ESTE NIVEL/SERVICIO EDUCATIVO FUE SUPERVISADO",null,null,null,null,null,null,null,null,null,null,"103.G.  FORMA DE CONSTITUCIÓN (Sólo para personas jurídicas)"]
[null,null,null,"  POR LA UGEL A LA QUE PERTENECE?",null,null,null,null,null,null,null,null,null,null,"Marque con un aspa ‘’x’’ y registra la información solicitada según corresponda"]
[]
[null,null,null," Sí",null,null,null," No  ",null,null,null,null,null,null,null,"  Sociedad"]
[null,null,null,null,null,null,null,null,null,null,null,null,null,null,null,null,null,"N° de Partida Regristral  "]
[null,null,null,null,null,"¿Qué aspectos fueron supervisados?",null,null,null,null,null,null,null,null,null,null,null,"N° de Asiento Registral  "]
[null,null,null,null,null,"Entrega de información a los usuarios(as) respecto del servicio educativo"]
[null,null,null,null,null,"Infraestructura educativa",null,null,null,null,null,null,null,null,null,"  Asociación"]
[null,null,null,null,null,"Otros",""]
[]
[null,null,null,null,null,null,null,null,null,null,null,null,null,"104.G. ¿ESTE SERVICIO/NIVEL EDUCATIVO PERTENECE A ALGUNA ASOCIACIÓN"]
[null,null,"102.G. COMPLETE LOS SIGUIENTES DATOS SOBRE LA PROMOTORÍA DE ESTE NIVEL",null,null,null,null,null,null,null,null,null,null,null,"QUE AGRUPE A II.EE. PRIVADAS?"]
[null,null,null,"SERVICIO EDUCATIVO DE GESTIÓN PRIVADA"]
[null,null,null,"Marque con un aspa ‘’X’’ y registra la información solicitada según corresponda",null,null,null,null,null,null,null,null,null,null," Sí",null,null,null," No  "]
[null,null,null,"TIpo de persona:"]
[]
[null,null,null,null,null,"  Natural",null,"DNI/CE",null,":",null,null,null,null,"Nombre de la asociación :"]
[]
[null,null,null,null,null,null,null,"Nombres  ",null,null,null,null,null,null,"Datos de contacto de la asociación:"]
[null,null,null,null,null,null,null,"Apellidos  "]
[null,null,null,null,null,null,null,null,null,null,null,null,null,null,null,null,"Web "]
[null,null,null,null,null,"  Jurídica",null,"RUC  ",null,null,null,null,null,null,null,null,"Correo electrónico "]
[null,null,null,null,null,null,null,"Razón social  ",null,null,null,null,null,null,null,null,"Teléfono/celular "]
[]
[]
[null,null,"H. IDENTIFICACIÓN DE RESIDENCIAS ESTUDIANTILES (No incluye COAR) Y SECUNDARIA TUTORIAL, EN ÁMBITOS RURALES"]
[null,null,"101.H.  TODOS LOS PADRES DE FAMILIA O APODERADOS QUE SOLICITARON UNA VACANTE AL SERVICIO",null,null,null,null,null,null,null,null,null,null,"103.H. LUGAR DÓNDE SE UBICAN, RESIDEN O ALOJAN LOS ESTUDIANTES"]
[null,null,null,"EDUCATIVO DE SECUNDARIA CON RESIDENCIA ESTUDIANTIL, ¿LOGRARON OBTENERLA?",null,null,null,null,null,null,null,null,null,null,null,null,null,null,""]
["Residencias",null,null,null,null,null,null,null,null,null,null,null,null,null,"Marque con un aspa “X” Sí o No según corresponda en cada alternativa"]
[{"$f":"IF(UPPER('C100'!E25)<>\"\",\"X\",\"\")","v":""},null,null," Sí","",null,"No","",null,null,null,null,null,null,"del lugar donde se alojan los residentes"]
["Tutorial"]
[{"$f":"IF(UPPER('C100'!J23)<>\"\",\"X\",\"\")","v":""}]
[]
[null,null,null,null,"¿Porque no lograron una vacante?",null,null,null,null,null,null,null,null,null,null,"LUGAR",null,null,null,null,null,{"$f":"COUNTIF(W173:W180,\"SI\")+COUNTIF(W173:W180,\"NO\")","v":0}," SI - NO"]
[null,null,null,null,null,"No hay capacidad de atención en la residencia estudiantil.",null,null,null,null,null,null,null,null,"a."," ¿Residencia o algún ambiente de la IE?"]
[null,null,null,null,null,"No hay presupuesto para garantizar la alimentación de los estudiantes.",null,null,null,null,null,null,null,null,"b."," ¿Algún ambiente de institución religiosa?"]
[null,null,null,null,null,"No existe personal suficiente para resguardar la seguridad de los estudiantes.",null,null,null,null,null,null,null,null,"c."," ¿Algún ambiente del local o salón comunal"]
[null,null,null,null,null,"Otro","",null,null,null,null,null,null,null,"d."," ¿Algún ambiente de otras instituciones? (Municipio, otra I.E. ...)"]
[null,null,null,null,null,null,null,null,null,null,null,null,null,null,"e."," ¿Algún albergue, casa hogar, puericultorio?"]
[null,null,"102.H. EN ESTE AÑO 2023, ¿EXISTEN CASOS DE ESTUDIANTES MATRICULADOS QUE VIVEN O PERNOCTAN",null,null,null,null,null,null,null,null,null,null,null,"f."," ¿Viviendas particulares?"]
[null,null,null,"EN UN AMBIENTE DE LA LOCALIDAD Y ACCEDEN AL SERVICIO",null,null,null,null,null,null,null,null,null,null,"g."," ¿Pensión o similar (servicio de alojamiento pagado)?"]
[null,null,null,null,null,null,null,null,null,null,null,null,null,null,"h."," ¿Otro?"]
[null,null,null,"Sí",null,null," No",null,null,null,"Pase a la pregunta 104.H"]
[]
[]
[null,null,"104.H.  NÚMERO DE ESTUDIANTES MATRICULADOS SEGÚN MODELO DE SERVICIO DE SECUNDARIA CON RESIDENCIA ESTUDIANTIL O"]
[null,null,null,"SECUNDARIA TUTORIAL VINCULADO A ESTE SERVICIO/NIVEL EDUCATIVO."]
[]
[null,null,"MODELO DE SERVICIO EDUCATIVO",null,null,null,null,null,null,null,"TOTAL",null,"GRADO DE ESTUDIO Y SEXO"]
[null,null,null,null,null,null,null,null,null,null,null,null,"1º",null,"2º",null,"3º",null,null,"4º",null,null,"5º"]
[null,null,null,null,null,null,null,null,null,{"$f":"SUM(K190:L191)","v":0},"H","M","H","M","H","M","H","M",null,"H",null,"M","H","M"]
[null,null,"Nº de estudiantes que viven en una residencia estudiantil",null,null,null,null,null,null,null,{"$f":"M190+O190+Q190+T190+W190","v":0},{"$f":"N190+P190+R190+V190+X190","v":0}]
[null,null,"Nº de estudiantes atendidos bajo el modelo de Serv. S.Tutorial",null,null,null,null,null,null,null,{"$f":"M191+O191+Q191+T191+W191","v":0},{"$f":"N191+P191+R191+V191+X191","v":0}]
[null,null,null,null,null,null,null,null,null,null,null,null,null,null,null,null,null,null,""]
[]
[null,null,"105.H.  NÚMERO TOTAL DE PERSONAL SEGÚN MODELO DE SERVICIO EDUCATIVO DE SECUNDARIA CON RESIDENCIA ESTUDIANTIL O"]
[null,null,null,"SECUNDARIA TUTORIAL VINCULADO A ESTE SERVICIO/NIVEL EDUCATIVO."]
[]
[null,null,null,"MODELO DE SERVICIO EDUCATIVO",null,null,null,null,null,null,null,null,"TOTAL","TIPO DE PERSONAL"]
[null,null,null,null,null,null,null,null,null,null,null,null,null,"Coordinador(a)",null,null,"Gestores (as) Educativos",null,"Promotores(as) de Bienestar o Comunitarios",null,null,"Personal de Servicio"]
[null,null,null,null,null,null,null,null,null,null,null,null,{"$f":"M200+M201","v":0}]
[null,null,null,"Número de actores socioeducativos de la secundaria con residencia estudiantil.",null,null,null,null,null,null,null,null,{"$f":"N200+Q200+S200+V200","v":0}]
[null,null,null,"Número de actores socioeducativos de la secundaria Tutorial",null,null,null,null,null,null,null,null,{"$f":"N201+Q201+S201+V201","v":0}]
[null,null,null,null,null,null,null,null,null,null,null,null,null,null,null,null,null,null,""]
[]
[null,null,"I. MUNICIPIOS ESCOLARES - SOLO GESTIÓN PÚBLICA"]
[null,null,"101.I. ¿DURANTE EL 2022, ¿EL SERVICIO/NIVEL EDUCATIVO CONTÓ CON MUNICIPIO ESCOLAR?",null,null,null,null,null,null,null,null,null,null,"103.I. PARA EL AÑO 2023, ¿EL SERVICIO/NIVEL EDUCATIVO CUENTA CON MUNICIPIO ESCOLAR ELEGIDO?"]
[]
[null,null,null,"Sí",null,null,"No  ",null,null,null,"Pase a la pregunta 103.I",null,null,null,"Sí",null,null,"No  ",null,null,null,"Pase a la pregunta 200"]
[]
[]
[null,null,null,null,null,"¿Por qué no contó con Municipio Escolar?",null,null,null,null,null,null,null,null,null,null,"¿Por qué no contó con Municipio Escolar?"]
[null,null,null,null,null,"Marque con una “X”, una o más opciones",null,null,null,null,null,null,null,null,null,null,"Marque con una “X”, una o más opciones"]
[]
[null,null,null,null,null,"No se realizó la elección del Municipio Escolar 2022",null,null,null,null,null,null,null,null,null,null,"Aún no se realizan las elecciones de la directiva del Municipio Escolar 2023."]
[null,null,null,null,null,"Las/os estudiantes no se postularon",null,null,null,null,null,null,null,null,null,null,"Se brindó prioridad a otras actividades de la IE"]
[null,null,null,null,null,"Falta de interés y/o compromiso de las/os estudiantes",null,null,null,null,null,null,null,null,null,null,"Las/os estudiantes no postularon"]
[null,null,null,null,null,"Otro motivo",null,null,null,null,null,null,null,null,null,null,"Otro motivo"]
[]
[]
[null,null,"102.I. ¿EL MUNICIPIO ESCOLAR DEL 2022 LOGRÓ DESARROLLAR E IMPLEMENTAR SU PLAN DE TRABAJO?",null,null,null,null,null,null,null,null,null,null,"104.I. ¿EL MUNICIPIO ESCOLAR ELEGIDO PARA EL 2023 ESTÁ IMPLEMENTANDO Y/O"]
[null,null,null,null,null,null,null,null,null,null,null,null,null,null,"DESARROLLANDO SU PLAN DE TRABAJO?"]
[]
[null,null,null,"Sí",null,null,"¿El Plan de Trabajo del Municipio Escolar se incorporó\n",null,null,null,null,null,null,null,"Sí",null,null,"¿El Plan de Trabajo del Municipio Escolar se incorporó\n"]
[null,null,null,null,null,null,"en el PAT 2022 de este Servicio/Nivel Educativo?",null,null,null,null,null,null,null,null,null,null,"en el PAT 2023 de este Servicio/Nivel Educativo?"]
[]
[null,null,null,null,null,null,"Sí",null,null,"No  ",null,null,null,null,null,null,null,"Sí",null,null,"No  "]
[]
[]
[null,null,null,"No  ",null,null,"¿Por qué no desarrollaron e implementaron su",null,null,null,null,null,null,null,"No  ",null,null,"¿Por qué no desarrollaron e implementaron su"]
[null,null,null,null,null,null,"Plan de Trabajo?\n",null,null,null,null,null,null,null,null,null,null,"Plan de Trabajo?\n"]
[]
[]
[]
[]
[null,null,null,null,"Marque con una “X”, una o más opciones",null,null,null,null,null,null,null,null,null,null,"Marque con una “X”, una o más opciones"]
[]
[null,null,null,null,null,"Falta de tiempo de las/os estudiantes",null,null,null,null,null,null,null,null,null,null,"Aún no inicia sus actividades"]
[null,null,null,null,null,"Falta de interés y/o compromiso de las/os estudiantes",null,null,null,null,null,null,null,null,null,null,"El municipio escolar 2023 realizará ajustes a su plan de trabajo"]
[null,null,null,null,null,"Falta de acompañamiento a las actividades del Municipio Esc.",null,null,null,null,null,null,null,null,null,null,"Falta de interés de las/os estudiantes"]
[null,null,null,null,null,"Otro motivo",null,null,null,null,null,null,null,null,null,null,"Falta de tiempo de las/os estudiantes"]
[null,null,null,null,null,null,null,null,null,null,null,null,null,null,null,null,"Otro motivo"]
[]
[null,null,null,null,null,null,null,null,null,null,null,null,null,null,null,null,null,null,""]
[null,null,null,null,null,null,null,null,null,null,null,null,null,null,null,null,null,null,""]
[null,null,null,null,null,null,null,null,null,null,null,null,null,null,null,null,null,null,""]

{"sheet":"C200","index":3,"n_rows":219,"n_cols":21,"rows_kept":219,"cut":false,"hidden":false,"merged":[[56,2,58,4],[56,7,57,8],[57,9,57,10],[57,11,57,12],[57,13,57,14],[56,6,58,6],[37,15,37,16],[37,17,37,18],[13,2,16,3],[23,2,24,3],[23,4,24,4],[23,5,24,6],[25,5,25,6],[26,5,26,6],[36,2,38,4],[36,7,37,8],[37,9,37,10],[37,11,37,12],[37,13,37,14],[36,6,38,6],[11,7,11,8],[11,11,11,12],[11,9,11,10],[10,2,12,3],[10,4,12,4],[137,3,137,8],[120,3,120,8],[121,3,121,8],[126,3,126,8],[127,3,127,8],[131,3,131,8],[136,3,136,8],[132,3,132,8],[134,3,134,8],[135,3,135,8],[123,3,123,8],[124,3,124,8],[133,3,133,8],[125,3,125,8],[128,3,128,8],[129,3,129,8],[130,3,130,8],[122,3,122,8],[1,4,1,17],[2,4,2,17],[115,19,115,20],[25,2,28,3],[23,7,23,11],[27,5,27,6],[28,5,28,6],[57,15,57,16],[57,17,57,18],[6,2,6,20],[11,15,11,16],[11,13,11,14],[119,3,119,8],[10,5,11,6],[118,3,118,8],[114,9,115,10],[114,2,115,8],[115,11,115,12],[115,13,115,14],[114,11,114,20],[98,15,98,16],[101,2,101,4],[102,2,102,4],[115,15,115,16],[115,17,115,18],[98,9,98,10],[98,11,98,12],[98,13,98,14],[103,2,103,4],[104,2,104,4],[97,2,99,4],[97,5,98,6],[98,7,98,8],[51,4,51,5],[65,4,65,5],[71,4,71,5],[113,19,113,20],[112,19,112,20],[108,3,108,18],[87,2,89,4],[88,15,88,16],[90,2,90,4],[91,2,91,4],[92,2,92,4],[87,5,88,6],[88,7,88,8],[88,9,88,10],[88,11,88,12],[88,13,88,14]]}
[]
[null,null,null,null,"CENSO EDUCATIVO 2023"]
[null,null,null,null,"MATRÍCULA, DOCENTES Y MATERIALES EDUCATIVOS"]
[]
[]
[]
[null,null,"200. MATRÍCULA Y SECCIONES\nDocumento fuente : Nómina de matrícula"]
[]
[null,null,201,"MATRÍCULA TOTAL POR GRADO DE ESTUDIO, SEGÚN TURNO DE ENSEÑANZA"]
[]
[null,null,"VARIABLE",null,"TURNO","TOTAL",null,"GRADO DE ESTUDIO"]
[null,null,null,null,null,null,null,"1º",null,"2º",null,"3º",null,"4º",null,"5º"]
[null,null,null,null,null,"H","M","H","M","H","M","H","M","H","M","H","M"]
["00",null,"MATRÍCULA",null,"TOTAL",{"$f":"SUM(F15:F17)","v":0},{"$f":"SUM(G15:G17)","v":0},{"$f":"SUM(H15:H17)","v":0},{"$f":"SUM(I15:I17)","v":0},{"$f":"SUM(J15:J17)","v":0},0,0,0,0,0,0,0]
["01",null,null,null,"Mañana",{"$f":"H15+J15+L15+N15+P15","v":0},{"$f":"I15+K15+M15+O15+Q15","v":0}]
["02",null,null,null,"Tarde",{"$f":"H16+J16+L16+N16+P16","v":0},{"$f":"I16+K16+M16+O16+Q16","v":0}]
["03",null,null,null,"Discontinuo",0,0]
[null,null,"Nota.-","Incluya a los alumnos con algún tipo de necesidad educativa especial (NEE)."]
[null,null,null,"Incluya a todos los estudiantes matriculados en este Servicio/nivel educatrivo, así la prestación del servicio sea presencial, semipresencial o virtual"]
[]
[]
[null,null,202,"SECCIONES POR GRADO DE ESTUDIO,  SEGÚN TURNO DE ENSEÑANZA"]
[]
[null,null,"VARIABLE",null,"TURNO","TOTAL",null,"GRADO DE ESTUDIO"]
[null,null,null,null,null,null,null,"1º","2º","3º","4º","5º"]
["00",null,"SECCIONES",null,"TOTAL",{"$f":"+H26+I26+J26+K26+L26","v":0},null,{"$f":"SUM(H27:H29)","v":0},{"$f":"SUM(I27:I29)","v":0},{"$f":"SUM(J27:J29)","v":0},{"$f":"SUM(K27:K29)","v":0},0]
["01",null,null,null,"Mañana ",{"$f":"+H27+I27+J27+K27+L27","v":0}]
["02",null,null,null,"Tarde",{"$f":"+H28+I28+J28+K28+L28","v":0}]
["03",null,null,null,"Discontinuo",{"$f":"+H29+I29+J29+K29+L29","v":0}]
[null,null,"Nota :","/1 Si la I.E. tiene turno hasta las 12:30 pm o un poco más de pasada esta hora, registre la matrícula y las secciones en el turno “MAÑANA”."]
[null,null,null,"/2 Si la I.E. sólo tiene turno que inicia labores pasado el mediodía (12:00 pm) registre la matrícula y las secciones en el turno “TARDE”."]
[null,null,null,"/3 Si la I.E. tiene estudiantes que asisten en la mañana, hacen una pausa retornando a sus domicilios, y luego vuelven a la I.E. por la tarde,"]
[null,null,null,"     registre la matrícula y las secciones en el turno “DISCONTINUO”."]
[]
[null,null,203,"MATRÍCULA POR GRADO DE ESTUDIO Y SEXO, SEGÚN TIPO DE DISCAPACIDAD"]
[]
["SI",null,"TIPO DE DISCAPACIDAD",null,null,null,"Elija una opción","TOTAL",null,"GRADO DE ESTUDIO"]
["NO",null,null,null,null,null,null,null,null,"1º",null,"2º",null,"3º",null,"4º",null,"5º"]
[null,null,null,null,null,{"$f":"COUNTIF(G41:G52,\"SI\")+COUNTIF(G41:G52,\"NO\")","v":0},null,"H","M","H","M","H","M","H","M","H","M","H","M"]
["00",null,"TOTAL",null,null,null,"SN",{"$f":"SUM(H41:H52)","v":0},{"$f":"SUM(I41:I52)","v":0},{"$f":"SUM(J41:J52)","v":0},0,0,0,0,0,0,0,0,0]
["01",null,"Discapacidad Intelectual - Leve",null,null,null,null,{"$f":"J41+L41+N41+P41+R41","v":0},{"$f":"K41+M41+O41+Q41+S41","v":0}]
["02",null,"Discapacidad Intelectual - Moderada",null,null,null,null,0,0]
["03",null,"Discapacidad Auditiva - Hipoacusia",null,null,null,null,{"$f":"J43+L43+N43+P43+R43","v":0},{"$f":"K43+M43+O43+Q43+S43","v":0}]
["04",null,"Discapacidad Auditiva - Sordera",null,null,null,null,0,0]
["05",null,"Discapacidad Visual - Baja Visión",null,null,null,null,0,0]
["06",null,"Discapacidad Visual - Ceguera",null,null,null,null,0,0]
["07",null,"Discapacidad Física o Motora",null,null,null,null,0,0]
["08",null,"TEA - Requiere de apoyo (Nivel 1)",null,null,null,null,0,0]
["09",null,"TEA - Requiere de apoyo notable  (Nivel 2)",null,null,null,null,0,0]
["10",null,"TEA - Requiere de apoyo muy notable  (Nivel 3)",null,null,null,null,{"$f":"J50+L50+N50+P50+R50","v":0},{"$f":"K50+M50+O50+Q50+S50","v":0}]
["11",null,"Sordoceguera",null,null,null,null,0,0]
["12",null,"Otra discapacidad",null,null,null,null,0,0]
[]
[]
[null,null,204,"MATRÍCULA POR GRADO DE ESTUDIO Y SEXO, SEGÚN OTRAS CONDICIONES DETECTADAS"]
[]
[null,null,"OTRAS CONDICIONES DETECTADAS",null,null,null,"Elija una opción","TOTAL",null,"GRADO DE ESTUDIO"]
[null,null,null,null,null,null,null,null,null,"1º",null,"2º",null,"3º",null,"4º",null,"5º"]
[null,null,null,null,null,{"$f":"COUNTIF(G61:G79,\"SI\")+COUNTIF(G61:G79,\"NO\")","v":0},null,"H","M","H","M","H","M","H","M","H","M","H","M"]
["00",null,"TOTAL",null,null,null,"SN",{"$f":"SUM(H61:H79)","v":0},0,0,0,0,0,0,0,0,0,0,0]
["01",null,"Retraso global del desarrollo",null,null,null,null,{"$f":"J61+L61+N61+P61+R61","v":0},{"$f":"K61+M61+O61+Q61+S61","v":0}]
["02",null,"Trastorno por Déficit de Atención - TDAH",null,null,null,null,0,0]
["03",null,"TEA - Dislexia",null,null,null,null,0,0]
["04",null,"TEA - Discalculia",null,null,null,null,0,0]
["05",null,"TEA - Disgrafia",null,null,null,null,0,0]
["06",null,"TEA - Otros",null,null,null,null,0,0]
["07",null,"Esquizofrenia (E)",null,null,null,null,0,0]
["08",null,"Depresión (D)",null,null,null,null,0,0]
["09",null,"Ansiedad (A)",null,null,null,null,0,0]
["10",null,"Trastornos de personalidad",null,null,null,null,0,0]
["11",null,"Otros",null,null,null,null,0,0]
["12",null,"Enfermedades Raras",null,null,null,null,0,0]
["13",null,"Talla Baja",null,null,null,null,0,0]
["14",null,"Menos de 15 días de hospitalización",null,null,null,null,{"$f":"J74+L74+N74+P74+R74","v":0},{"$f":"K74+M74+O74+Q74+S74","v":0}]
["15",null,"De 15 a 30 días de hospitalización",null,null,null,null,0,0]
["16",null,"Más de 30 días de hospitalización",null,null,null,null,0,0]
["17",null,"Talento",null,null,null,null,0,0]
["18",null,"Superdotación",null,null,null,null,0,0]
["19",null,"Otros condiciones relacionadas",null,null,null,null,0,0]
[]
[]
[null,null,205,"MATRÍCULA TOTAL ESTUDIANTES EXTRANJEROS POR GRADO DE ESTUDIO Y SEXO"]
[]
[null,null,"ESTE SERVICIO/NIVEL EDUCATIVO EN EL PROCESO DE MATRÍCULA DEL PERIODO 2022, ¿REGISTRÓ ESTUDIANTES EXTRANJEROS?"]
[]
[null,null,null,null,null,"Sí",null,null,null,"No",null,null,null,"Pase a la tabla 206"]
[]
[null,null,"MATRÍCULA",null,null,"TOTAL",null,"GRADO DE ESTUDIO"]
[null,null,null,null,null,null,null,"1º",null,"2º",null,"3º",null,"4º",null,"5º"]
[null,null,null,null,null,"H","M","H","M","H","M","H","M","H","M","H","M"]
["00",null,"TOTAL",null,null,{"$f":"SUM(F92:F93)","v":0},0,0,0,0,0,0,0,0,0,0,0]
["01",null,"Mañana",null,null,{"$f":"H92+J92+L92+N92+P92","v":0},{"$f":"I92+K92+M92+O92+Q92","v":0}]
["02",null,"Tarde",null,null,0,0]
[]
[]
[null,null,206,"MATRÍCULA TOTAL POR GRADO DE ESTUDIO Y SEXO, SEGÚN NÚMERO DE HORAS SEMANALES DEDICADAS A EDUCACIÓN PARA EL TRABAJO"]
[]
[null,null,"HORAS DEDICADAS A EDUCACIÓN\nPARA EL TRABAJO",null,null,"TOTAL",null,"GRADO DE ESTUDIO"]
[null,null,null,null,null,null,null,"1º",null,"2º",null,"3º",null,"4º",null,"5º"]
[null,null,null,null,null,"H","M","H","M","H","M","H","M","H","M","H","M"]
["00",null,"TOTAL",null,null,{"$f":"SUM(F102:F105)","v":0},{"$f":"SUM(G102:G105)","v":0},{"$f":"SUM(H102:H105)","v":0},0,0,0,0,0,0,0,0,0]
["01",null,"Dos horas semanales",null,null,{"$f":"H102+J102+L102+N102+P102","v":0},{"$f":"I102+K102+M102+O102+Q102","v":0}]
["02",null,"Tres horas semanales",null,null,0,0]
["03",null,"Cuatro a siete horas semanales",null,null,0,0]
["04",null,"Ocho horas semanales o más",null,null,{"$f":"H105+J105+L105+N105+P105","v":0},{"$f":"I105+K105+M105+O105+Q105","v":0}]
[null,null,"Nota.-","Los totales de esta tabla deben ser iguales o menores a los de la tabla 201."]
[]
[]
[null,null,207,"MATRÍCULA CON OCHO HORAS SEMANALES O MÁS DEDICADAS A EDUCACIÓN PARA EL TRABAJO POR GRADO DE ESTUDIO Y SEXO,  SEGÚN ESPECIALIDADES EN LOS TALLERES DE EDUCACIÓN PARA EL TRABAJO."]
[]
[null,null,"¿REPORTÓ AL MENOS UN ESTUDIANTE CON OCHO HORAS SEMANALES O MÁS DEDICADAS A EDUCACIÓN PARA EL TRABAJO EN LA TABLA 206. ?"]
[]
[{"$f":"IF(SUM(F105:G105)>0,\"X\",\"\")","v":""},null,null,null,null,"Sí",null,null,null,"No",null,null,null,"Pase a la tabla 300"]
[]
[null,null,"ESCRIBA EL CÓDIGO Y DESCRIPCIÓN DE LAS ESPECIALIDADES EN LOS TALLERES DE EDUCACIÓN PARA EL TRABAJO",null,null,null,null,null,null,"TOTAL",null,"GRADO DE ESTUDIO"]
[null,null,null,null,null,null,null,null,null,null,null,"1º",null,"2º",null,"3º",null,"4º",null,"5º"]
[null,null,"Código",{"$f":"IF(F105+G105>0,1,0)","v":0},null,"Descripción",null,null,null,"H","M","H","M","H","M","H","M","H","M","H","M"]
[null,null,"000","TOTAL",null,null,null,null,null,{"$f":"SUM(J119:J138)","v":0},0,0,0,0,0,0,0,0,0,0,0]
[{"$f":"COUNTIF($D$119:$D$138,D119)","v":0},null,{"$f":"LEFT(D119,3)","v":""},null,null,null,null,null,null,{"$f":"L119+N119+P119+R119+T119","v":0},{"$f":"M119+O119+Q119+S119+U119","v":0}]
[{"$f":"COUNTIF($D$119:$D$138,D120)","v":0},null,{"$f":"LEFT(D120,3)","v":""},null,null,null,null,null,null,0,0]
[0,null,{"$f":"LEFT(D121,3)","v":""},null,null,null,null,null,null,0,0]
[0,null,"",null,null,null,null,null,null,0,0]
[0,null,"",null,null,null,null,null,null,0,0]
[0,null,"",null,null,null,null,null,null,0,0]
[0,null,"",null,null,null,null,null,null,0,0]
[0,null,"",null,null,null,null,null,null,0,0]
[0,null,"",null,null,null,null,null,null,0,0]
[0,null,"",null,null,null,null,null,null,0,0]
[0,null,"",null,null,null,null,null,null,0,0]
[0,null,"",null,null,null,null,null,null,0,0]
[0,null,"",null,null,null,null,null,null,0,0]
[0,null,"",null,null,null,null,null,null,0,0]
[0,null,"",null,null,null,null,null,null,0,0]
[0,null,"",null,null,null,null,null,null,0,0]
[0,null,"",null,null,null,null,null,null,0,0]
[0,null,"",null,null,null,null,null,null,0,0]
[0,null,"",null,null,null,null,null,null,{"$f":"L137+N137+P137+R137+T137","v":0},{"$f":"M137+O137+Q137+S137+U137","v":0}]
[0,null,"",null,null,null,null,null,null,{"$f":"L138+N138+P138+R138+T138","v":0},{"$f":"M138+O138+Q138+S138+U138","v":0}]
[null,null,"* Nota :","Los totales de esta tabla deben ser iguales a los subtotales del item \"Ocho horas semanales o más de Educación para el Trabajo\" reportado en la Tabla 206."]
[]
[]
[]
["COMPETENCIAS LABORALES"]
["010. ADMINISTRACIÓN Y COMERCIO"]
["011. Venta al Detalle en Tienda"]
["012. Administración"]
["013. Contabilidad"]
["014. Secretariado"]
["020. ACTIVIDADES AGRARIAS"]
["021. Agricultura Orgánica"]
["022. Agricultura en Costa"]
["023. Agricultura en Sierra"]
["024. Manejo de Instalaciones Hortofruticolas"]
["030. PRODUCCIÓN AGROPECUARIA"]
["031. Avicultura y Crianza de Animales Menores"]
["040. ARTES GRÁFICAS"]
["041. Diseño Gráfico y Publicitario"]
["042. Diseño Industrial"]
["050. ARTESANÍA Y MANUALIDADES"]
["051. Artesanía"]
["052. Manualidades"]
["060. COMPUTACIÓN E INFORMÁTICA"]
["061. Operación de Computadoras"]
["062. Administración de Redes"]
["063. Mantenimiento de Equipo de Cómputo"]
["070. ESTÉTICA PERSONAL"]
["071. Peluquería Básica"]
["072. Cosmetología"]
["080. CUERO Y CALZADO"]
["081. Cuero y Calzado"]
["082. Confección de Calzado"]
["083. Curtiembre y Peletería"]
["090. ELECTRICIDAD Y ELECTRÓNICA"]
["091. Equipos Electrónicos de Consumo"]
["092. Refrigeración y Aire Acondicionado"]
["093. Instalaciones Electrotécnicas"]
["094. Sistemas Automáticos Programables"]
["100. MECÁNICA Y MOTORES"]
["101. Planchado y Pintura"]
["102. Mecánica Automotriz"]
["103. Electricidad y Electrónica Automotriz"]
["110. MECÁNICA Y METALES"]
["111. Construcciones Metálicas"]
["112. Matricería"]
["113. Mecánica de Producción"]
["114. Operación de Máquinas, Herramientas y control"]
["120. TEXTIL Y CONFECCIÓN"]
["121. Estampado Industrial"]
["123. Confección Industrial"]
["122. Bordados Computarizados y Manuales"]
["124. Industria del Vestido"]
["130. CONSTRUCCIÓN"]
["131. Carpintería Ebanistería"]
["132. Ebanistería"]
["140. INDUSTRIAS ALIMENTARIAS"]
["141. Industrias Lácteas"]
["142. Panadería y Pastelería"]
["150. HOSTELERÍA Y TURISMO"]
["151. Gastronomía"]
["999. OTROS"]
[]
[]
[]
["010. ADMINISTRACIÓN Y COMERCIO"]
["020. ACTIVIDADES AGRARIAS"]
["030. PRODUCCIÓN AGROPECUARIA"]
["040. ARTES GRÁFICAS"]
["050. ARTESANÍA Y MANUALIDADES"]
["060. COMPUTACIÓN E INFORMÁTICA"]
["070. ESTÉTICA PERSONAL"]
["080. CUERO Y CALZADO"]
["090. ELECTRICIDAD Y ELECTRÓNICA"]
["100. MECÁNICA Y MOTORES"]
["110. MECÁNICA Y METALES"]
["120. TEXTIL Y CONFECCIÓN"]
["130. CONSTRUCCIÓN"]
["140. INDUSTRIAS ALIMENTARIAS"]
["150. HOSTELERÍA Y TURISMO"]
["999. OTROS"]

{"sheet":"C300","index":4,"n_rows":520,"n_cols":120,"rows_kept":520,"cut":false,"hidden":false,"merged":[[16,29,18,29],[17,104,18,104],[16,37,18,37],[16,38,18,38],[16,55,17,59],[16,60,17,64],[16,65,17,69],[16,70,17,74],[16,111,17,111],[16,75,17,79],[16,80,17,84],[16,85,17,89],[16,90,17,94],[16,95,17,99],[16,107,17,107],[16,119,18,119],[17,100,18,100],[17,105,17,106],[16,108,17,108],[16,113,17,113],[16,115,18,115],[16,116,17,116],[16,114,17,114],[16,109,18,109],[17,101,18,101],[17,102,18,102],[17,103,18,103],[16,110,18,110],[16,112,17,112],[16,117,17,117],[16,118,18,118],[15,100,15,103],[15,104,15,106],[16,30,18,30],[16,31,18,31],[16,33,18,33],[16,100,16,103],[16,104,16,106],[16,39,18,39],[16,40,17,44],[16,45,17,49],[16,50,17,54],[16,11,18,11],[16,15,16,16],[16,17,18,17],[16,18,18,18],[16,19,18,19],[16,12,18,12],[16,13,18,13],[16,14,18,14],[15,15,15,16],[1,14,1,23],[2,14,2,23],[16,32,18,32],[16,36,18,36],[16,28,18,28],[16,34,18,34],[16,35,18,35],[16,20,18,20],[16,22,18,22],[16,21,17,21],[16,23,18,23],[16,24,18,24],[16,25,18,25],[16,26,18,26],[16,27,18,27]]}
[]
[null,null,null,null,null,null,null,null,null,null,null,null,null,null,"CENSO EDUCATIVO 2023"]
[null,null,null,null,null,null,null,null,null,null,null,null,null,null,"MATRÍCULA, DOCENTES Y MATERIALES EDUCATIVOS"]
[]
["PERSONAL",{"$f":"P10+V10+Y10","v":0}]
[]
["DOCENTES",{"$f":"COUNTIF(R20:R319,\"01: Docente\")","v":0},null,null,null,null,null,null,null,null,null,"300. PERSONAL DOCENTE, AUXILIARES DE EDUCACIÓN Y ADMINISTRATIVOS (Para II.EE. Públicas y Privadas)"]
["AUXILIARES",{"$f":"COUNTIF(R20:R319,\"03: Aux. de Educación\")","v":0},null,null,null,null,null,null,null,null,null,"Anote los totales de personal que labora en su institución educativa."]
["ADMINISTRATIVOS",{"$f":"COUNTIF(R20:R319,\"02: Administrativo\")","v":0}]
["DOCENTE DE AULA",{"$f":"COUNTIF(AK20:AK319,\"05: (111)-Docente por horas\")","v":0},null,null,null,null,null,null,null,null,null,null,null,"Total Docentes : ",null,null,null,"Docentes por horas :",null,null,"Auxiliares de Educación : ",null,null,"Administrativos : "]
["DOCENTES CON SECCIÓN",{"$f":"COUNTIF(AN20:AN319,\"SI\")","v":0}]
[null,{"$f":"B7+B8+B9","v":0},null,null,null,null,null,null,null,null,null,"A continuación, REGISTRE a todo el personal docente, auxiliares de educación y personal administrativo que se encuentre laborando en el servicio/nivel educativo durante el periodo de reporte del censo educativo."]
["DOCENTES DE INGLES",{"$f":"COUNTIF(AY20:BC319,\"X\")","v":0},null,null,null,null,null,null,null,null,null,"(EXCLUYA al personal que se encuentre haciendo uso de licencia y a los que han sido destacados a otra IE/DRE/UGEL)"]
["DOCENTES DE ARTE Y CULTURA",{"$f":"COUNTIF(BD20:BH319,\"X\")","v":0},null,null,null,null,null,null,null,10]
["LENGUA ORIGINARIA",{"$f":"SUM(J20:J319)","v":0},null,null,null,null,null,null,null,null,null,null,null,null,null,null,null,null,null,null,null,null,null,null,"G. Pública",null,null,null,null,null,null,"G. Pública",null,null,"G. Pública",null,null,null,null,null,null,null,null,null,null,null,null,null,null,null,null,null,null,null,null,null,null,null,null,null,null,null,null,null,null,null,null,null,null,null,null,null,null,null,null,null,null,null,null,null,null,null,null,null,null,null,null,null,null,null,null,null,null,null,null,null,null,null,null,"G. Pública",null,null,null,null,null,null,null,null,null,null,null,"G. Pública"]
["GESTIÓN",{"$f":"IF(OR(UPPER('C100'!J29)=\"X\",UPPER('C100'!O29)=\"X\"),1,IF(UPPER('C100'!T29)=\"X\",3,\"\"))","v":""},null,null,null,null,null,null,null,null,null,null,301.10000000000002,301.2,301.3,302,null,303,304,305,306,307,308,309,310,311,312,313,314,315,316,317,318,319,320,321,322,323,324,325,"326. Grados Atendidos por cada área curricular a cargo (Marque con una “X”, según corresponda)",null,null,null,null,null,null,null,null,null,null,null,null,null,null,null,null,null,null,null,null,null,null,null,null,null,null,null,null,null,null,null,null,null,null,null,null,null,null,null,null,null,null,null,null,null,null,null,null,null,null,null,null,null,null,null,null,null,null,null,327,null,null,null,328,null,null,329,330,331,332,333,334,335,336.1,336.2,336.3,337.1,337.2,337.3]
[null,null,null,null,null,null,null,null,null,null,null,"Nº","Apellido Paterno","Apellido Materno","Nombres","Documento de Identidad",null,"Tipo de\nPersonal","Edad","Sexo","Lengua\nmaterna","¿Domina una\nlengua\noriginaria?","Lengua originaria\nque domina","Fuente de\nfinanciamiento","Condición Laboral","Modalidad de Contrato","Máximo nivel\neducativo alcanzado","Especialidad Pedagógica\nque ha estudiado","¿En qué tipo de\ninstitución obtuvo\nsu formación pedagógica?","Segunda especialidad","Estudios de Postgrado\nen Pedagogía","Tiempo de Servicio\n(en años)","Años de Experiencia Laboral","Años de\nexperiencia\nlaboral en\neste servicio/nivel\neducativo","Escala\nMagisterial","Función o cargo","Situación en cargo\ndirectivo","Licencia \no\nDestaque","Jornada Laboral según\nNombramiento\no Contrato","¿Tiene secciones a cargo?","Matemática",null,null,null,null,"Comunicación",null,null,null,null,"Ingles",null,null,null,null,"Arte y cultura",null,null,null,null,"Ciencias Sociales",null,null,null,null,"Desarrollo personal, ciudadania y cívica",null,null,null,null,"Educación Física",null,null,null,null,"Ciencia y\nTecnología",null,null,null,null,"Castellano como\nsegunda lengua",null,null,null,null,"Educación para el trabajo",null,null,null,null,"Educación religiosa",null,null,null,null,"Tutoría y Orientación Educativa",null,null,null,null,"Conocimiento de Ingles",null,null,null,"Certificación de Inglés",null,null,"¿El docente enseña inglés?","¿Es docente de educación artística?","Indique cual es su Especialidad artística","Solo si respondió “NO” en la pregunta 330. ¿Indique docente de que área es?","Desde el año 2022 a la fecha, ¿ha recibido capacitación en la implementación del Currículo Nacional?","¿Cuenta con constancia de participación en el curso virtual autoformativo vinculado al Currículo Nacional de la Educación Básica-Perú Educa?","¿ Atiende a estudiantes con NEE asociadas a discapacidad ?","¿Presenta alguna discapacidad?","Solo si respondió Sí en la pregunta\n336.1 ¿Cúal es el tipo de discapacidad?","¿Ha recibido asistencia y orientación para la atención educativa de estudiantes con discapacidad del equipo SAEV?","¿Recibió asesoría pedagógica en el marco de refuerzo escolar?","Solo si respondió Sí en la pregunta 337.1 ¿cuántas veces desde el inicio del año lectivo, recibió asesoría pedagógica en el marco de refuerzo escolar?","Solo si respondió Sí en la pregunta 337.1 Sobre qué temas ha recibido asistencia técnica"]
[null,null,"Exp1","Exp2","Exp3","Exp4","Exp5","Exp6","Exp7","Exp8",null,null,null,null,null,302.10000000000002,302.2,null,null,null,null,null,null,null,null,null,null,null,null,null,null,null,null,null,null,null,null,null,null,null,null,null,null,null,null,null,null,null,null,null,null,null,null,null,null,null,null,null,null,null,null,null,null,null,null,null,null,null,null,null,null,null,null,null,null,null,null,null,null,null,null,null,null,null,null,null,null,null,null,null,null,null,null,null,null,null,null,null,null,null,"No Sabe","Habla","Lee","Escribe","No Tiene","Si Tiene"]
["302.1 Tipo de documento de Identidad","314. Tipo de inst. donde estudio","Corr","Escala","Gest","Secc","Fun cion","Duplex","Fmt","Leng",null,null,null,null,null,"Tipo","Número",null,null,null,null,"SI / NO",null,null,null,null,null,null,null,null,null,null,null,null,null,null,null,null,null,null,"1º","2º","3º","4º","5º","1º","2º","3º","4º","5º","1º","2º","3º","4º","5º","1º","2º","3º","4º","5º","1º","2º","3º","4º","5º","1º","2º","3º","4º","5º","1º","2º","3º","4º","5º","1º","2º","3º","4º","5º","1º","2º","3º","4º","5º","1º","2º","3º","4º","5º","1º","2º","3º","4º","5º","1º","2º","3º","4º","5º",null,null,null,null,null,"Nacional","Interna cional","SI / NO","SI / NO",null,null,"SI / NO","SI / NO","SI / NO","SI / NO",null,"SI / NO","SI / NO"]
["01: DNI.","01: IESP (Público)",1,{"$f":"IF(AND(LEFT(R20,2)=\"01\",LEFT(Y20,2)=\"01\",LEFT(X20,2)=\"01\",E20=1),1,0)","v":0},{"$f":"$B$16","v":""},{"$f":"COUNTIF(AO20:CV20,\"X\")","v":0},{"$f":"IF(R20<>\"\",VALUE(LEFT(R20,2)),0)","v":0},{"$f":"IF(Q20<>\"\",COUNTIF($Q$20:$Q$319,Q20),0)","v":0},{"$f":"IF(L20<>\"\",1,0)","v":0},{"$f":"IF(AND(R20=\"01: Docente\",V20=\"SI\"),1,0)","v":0},null,{"$f":"IF($C20<=$B$5,C20,\"\")","v":""}]
["02: Carnet Ext.","02: IESP (Privado)",2,0,{"$f":"$B$16","v":""},{"$f":"COUNTIF(AO21:CV21,\"X\")","v":0},{"$f":"IF(R21<>\"\",VALUE(LEFT(R21,2)),0)","v":0},{"$f":"IF(Q21<>\"\",COUNTIF($Q$20:$Q$319,Q21),0)","v":0},0,{"$f":"IF(AND(R21=\"01: Docente\",V21=\"SI\"),1,0)","v":0},null,{"$f":"IF($C21<=$B$5,C21,\"\")","v":""}]
["03: Pasaporte","03: Universidad Privada",3,0,"",0,0,0,0,0,null,""]
[null,"04: Universidad Pública",4,0,"",0,0,0,0,0,null,""]
["303. Tipo de Personal",null,5,0,"",0,0,0,0,0,null,""]
["01: Docente","315. Segunda Especialidad",6,0,"",0,0,0,0,0,null,""]
["02: Administrativo","Utilice las especialidades de la tabla de códigos 313.",7,0,"",0,0,0,0,0,null,""]
["03: Aux. de Educación",null,8,0,"",0,0,0,0,0,null,""]
[null,"316. Estudios de Postgrado en Pedagogía",9,0,"",0,0,0,0,0,null,""]
["305. Sexo","Estudios de Maestría y doctorado",10,0,"",0,0,0,0,0,null,""]
["Hombre","01: Maestria concluida con grado",11,0,"",0,0,0,0,0,null,""]
["Mujer","02: Maestria concluida sin grado",12,0,"",0,0,0,0,0,null,""]
[null,"03: Maestria en proceso",13,0,"",0,0,0,0,0,null,""]
["306. Lengua Materna","04: Doctorado concluido con grado",14,0,"",0,0,0,0,0,null,""]
["0100: Castellano","05: Doctorado concluido sin grado",15,0,"",0,0,0,0,0,null,""]
["0200: Achuar","06: Doctorado en proceso",16,0,"",0,0,0,0,0,null,""]
["0300: Aimara","07: Sin Postgrado",17,0,"",0,0,0,0,0,null,""]
["0400: Amahuaca",null,18,0,"",0,0,0,0,0,null,""]
["0500: Arabela",null,19,0,"",0,0,0,0,0,null,""]
["0600: Asháninka","317. Tiempo de Servicio",20,0,"",0,0,0,0,0,null,""]
["0610: Asheninka","Solo personal Nombrado.",21,0,"",0,0,0,0,0,null,""]
["0700: Awajún","Tiempo contado expresado en años desde su fecha de Nombramiento",22,0,"",0,0,0,0,0,null,""]
["0800: Bora",null,23,0,"",0,0,0,0,0,null,""]
["0900: Kapanawa","318. Años de Experiencia Laboral",24,0,"",0,0,0,0,0,null,""]
["1000: Cashinahua","Registre el total de años que tiene como experiencia",25,0,"",0,0,0,0,0,null,""]
["1100: Kawki","en el Tipo de Personal que se está registrando (Tabla 301.)",26,0,"",0,0,0,0,0,null,""]
["1200: Chamikuro",null,27,0,"",0,0,0,0,0,null,""]
["1300: Ese eja","319. Años de experiencia laboral en este servicio/ nivel educativo",28,0,"",0,0,0,0,0,null,""]
["1400: Harakbut","Anote el N° de años de experiencia prestando servicios",29,0,"",0,0,0,0,0,null,""]
["1500: Iñapari","en este servicio/nivel educativo por el tipo de personal",30,0,"",0,0,0,0,0,null,""]
["1600: Ikuitu","que se está registrando (Tabla 301.)",31,0,"",0,0,0,0,0,null,""]
["1700: Iskonawa",null,32,0,"",0,0,0,0,0,null,""]
["1800: Jaqaru","320. Escala Magisterial",33,0,"",0,0,0,0,0,null,""]
["1900: Kakataibo","Complete los datos de Escala Magisterial, según corresponda",34,0,"",0,0,0,0,0,null,""]
["2000: Kakinte (caquinte)","01: Primera",35,0,"",0,0,0,0,0,null,""]
["2110: Kandozi (Chapra)","02: Segunda",36,0,"",0,0,0,0,0,null,""]
["2120: Kandozi (Kandozi)","03: Tercera",37,0,"",0,0,0,0,0,null,""]
["2200: Kukama-kukamiria","04: Cuarta",38,0,"",0,0,0,0,0,null,""]
["2300: Madija (culina)","05: Quinta",39,0,"",0,0,0,0,0,null,""]
["2400: Maijiki","06: Sexta",40,0,"",0,0,0,0,0,null,""]
["2500: Matsés","07: Séptima",41,0,"",0,0,0,0,0,null,""]
["2600: Matsigenka","08: Octava",42,0,"",0,0,0,0,0,null,""]
["2700: Munichi","09: Sin Escala",43,0,"",0,0,0,0,0,null,""]
["2800: Murui-muinani",null,44,0,"",0,0,0,0,0,null,""]
["2900: Matsigenka-montetokunirira","321. Función o Cargo",45,0,"",0,0,0,0,0,null,""]
["3000: Nomatsigenga","(Desempeñado a la fecha de reporte)",46,0,"",0,0,0,0,0,null,""]
["3100: Ocaina","Docentes",47,0,"",0,0,0,0,0,null,""]
["3200: Omagua","01: (101)-Director General",48,0,"",0,0,0,0,0,null,""]
["3310: Quechua amazónico (Kichwa)","02: (102)-Director",49,0,"",0,0,0,0,0,null,""]
["3321: Quechua central (Ancash)","03: (103)-Sub Director",50,0,"",0,0,0,0,0,null,""]
["3322: Quechua central (Huánuco)","04: (106)-Coordinador, Asesor",51,0,"",0,0,0,0,0,null,""]
["3323: Quechua central (Wanka)","05: (111)-Docente por horas",52,0,"",0,0,0,0,0,null,""]
["3324: Quechua central (Pasco)","06: (117)-Docente de Educación Física",53,0,"",0,0,0,0,0,null,""]
["3331: Quechua norteño (Cajamarca)","07: (118)-Docente de Computación",54,0,"",0,0,0,0,0,null,""]
["3332: Quechua norteño (Inkawasi Kañaris)","08: (119)-Docente de Aula de Innovación Pedagógica",55,0,"",0,0,0,0,0,null,""]
["3341: Quechua sureño (Chanka)","09: (139)-Otro Docente",56,0,"",0,0,0,0,0,null,""]
["3342: Quechua sureño (Collao)","10: (104)-Director Académico",57,0,"",0,0,0,0,0,null,""]
["3400: Resígaro","11: (105)-Director de Bienestar y Desarrollo",58,0,"",0,0,0,0,0,null,""]
["3500: Secoya","12: (107)-Coordinador Psicopedagógico",59,0,"",0,0,0,0,0,null,""]
["3600: Sharanahua","13: (133)-Asistente de Dirección General",60,0,"",0,0,0,0,0,null,""]
["3700: Shawi","14: (134)-Asistente de Dirección Académica",61,0,"",0,0,0,0,0,null,""]
["3800: Shipibo-Konibo","15: (135)-Asistente de Dirección de Bienestar Estudiantil",62,0,"",0,0,0,0,0,null,""]
["3900: Shiwilu","16: (120)-Docente COAR*",63,0,"",0,0,0,0,0,null,""]
["4000: Taushiro","17: (138)-Docente Tutor",64,0,"",0,0,0,0,0,null,""]
["4100: Ticuna","18: (121)-Docente Acompañante Especializado",65,{"$f":"IF(AND(LEFT(R84,2)=\"01\",LEFT(Y84,2)=\"01\",LEFT(X84,2)=\"01\",E84=1),1,0)","v":0},"",0,0,0,{"$f":"IF(L84<>\"\",1,0)","v":0},0,null,""]
["4200: Urarina","19: (122)-Docente Coordinador de Monografía",66,0,{"$f":"$B$16","v":""},{"$f":"COUNTIF(AO85:CV85,\"X\")","v":0},{"$f":"IF(R85<>\"\",VALUE(LEFT(R85,2)),0)","v":0},{"$f":"IF(Q85<>\"\",COUNTIF($Q$20:$Q$319,Q85),0)","v":0},0,{"$f":"IF(AND(R85=\"01: Docente\",V85=\"SI\"),1,0)","v":0},null,{"$f":"IF($C85<=$B$5,C85,\"\")","v":""}]
["4300: Wampis","20: (140)-Docente monitor",67,0,"",0,0,0,0,0,null,""]
["4400: Yagua","Administrativos",68,0,"",0,0,0,0,0,null,""]
["4500: Yaminahua","21: (501)-Psicólogo",69,0,"",0,0,0,0,0,null,""]
["4600: Yanesha","22: (502)-Trabajo Social / Servicio Social",70,0,"",0,0,0,0,0,null,""]
["4700: Yine","23: (503)-Personal de Salud",71,0,"",0,0,0,0,0,null,""]
["4800: Nahua","24: (504)-Administrador / Contador",72,0,"",0,0,0,0,0,null,""]
["5100: Alemán","25: (506)-Auxiliar de Biblioteca",73,0,"",0,0,0,0,0,null,""]
["5200: Inglés","26: (507)-Auxiliar de Laboratorio",74,0,"",0,0,0,0,0,null,""]
["5300: Italiano","27: (508)-Secretaria u Oficinista",75,0,"",0,0,0,0,0,null,""]
["5400: Japonés","28: (511)-Asistente Administrativo",76,0,"",0,0,0,0,0,null,""]
["5500: Portugués","29: (537)-Guía intérprete de sordoceguera",77,0,"",0,0,0,0,0,null,""]
["5600: Ruso","30: (538)-Intérprete de Lengua de Señas Peruana",78,0,"",0,0,0,0,0,null,""]
["5700: Francés","31: (539)-Modelo Lingüistico",79,0,"",0,0,0,0,0,null,""]
["5800: Otra lengua extranjera","32: (512)-Personal de Servicio - Mantenimiento",80,0,"",0,0,0,0,0,null,""]
[null,"33: (513)-Personal de Servicio - Cocina",81,0,"",0,0,0,0,0,null,""]
["308. Lengua Originaria","34: (514)-Personal de Servicio - Limpieza",82,0,"",0,0,0,0,0,null,""]
["De: 0200 a 4800","35: (515)-Personal de Servicio - Portero",83,0,"",0,0,0,0,0,null,""]
[null,"36: (516)-Personal de Servicio - Vigilante",84,0,"",0,0,0,0,0,null,""]
["309. Fuente de Financiamiento","37: (517)-Otro personal de servicio",85,0,"",0,0,0,0,0,null,""]
["01: Sector Educación","38: (524)-Coordinador de bienestar estudiantil",86,0,"",0,0,0,0,0,null,""]
["02: Otro sector público","39: (527)-Responsable de convivencia",87,0,"",0,0,0,0,0,null,""]
["03: Municipalidad","40: (522)-Bibliotecólogo",88,0,"",0,0,0,0,0,null,""]
["04: Gobierno Regional","41: (523)-Técnico en Biblioteca/ Archivista",89,0,"",0,0,0,0,0,null,""]
["05: APAFA","42: (521)-Monitores de salud",90,0,"",0,0,0,0,0,null,""]
["06: Otra fuente Privada","43: (519)-Auxiliar Académico",91,0,"",0,0,0,0,0,null,""]
[null,"44: (520)-Auxiliar de Convivencia",92,0,"",0,0,0,0,0,null,""]
["310. Condición Laboral","45: (528)-Soporte Técnico-Informático",93,0,"",0,0,0,0,0,null,""]
["01: Nombrado","46: (525)-Coordinador administrativo de residencia",94,0,"",0,0,0,0,0,null,""]
["02: Contratado","47: (526)-Coordinador de bienestar y residencia",95,0,"",0,0,0,0,0,null,""]
["03: No aplica","48: (529)-Gestores educativos",96,0,"",0,0,0,0,0,null,""]
[null,"49: (530)-Promotor de bienestar",97,0,"",0,0,0,0,0,null,""]
["311. Modalidad de Contrato","50: (531)-Coordinador de CRFA",98,0,"",0,0,0,0,0,null,""]
["Contrato Público","51: (505)-Otro personal profesional",99,0,"",0,0,0,0,0,null,""]
["01: A plazo fijo D. Leg. 728","52: (518)-Otro personal no profesional",100,0,"",0,0,0,0,0,null,""]
["02: Locación de Serv. / Honorarios",null,101,0,"",0,0,0,0,0,null,""]
["03: CAS - D. Leg. 1057","99: (999)-Auxiliar de Educación",102,0,"",0,0,0,0,0,null,""]
["04: Contrato D. Leg. 276",null,103,0,"",0,0,0,0,0,null,""]
["05: Contrato Ley 30328","322. Situación en el Cargo Directivo",104,0,"",0,0,0,0,0,null,""]
["06: Otra modalidad","01: Titular ratificado eval.2014",105,0,"",0,0,0,0,0,null,""]
["Contrato Privado","02: Titular designado eval. 2015, 2016 y 2018",106,0,"",0,0,0,0,0,null,""]
["07: A plazo indefinido (Permanente)","03: Titular otro",107,0,"",0,0,0,0,0,null,""]
["08: Plazo fijo (Tiempo determinado)","04: Encargado por función, sin doc. formal",108,0,"",0,0,0,0,0,null,""]
["09: A tiempo parcial (por horas)","05: Encargado",109,0,"",0,0,0,0,0,null,""]
["10: Locación de Serv. / Honorarios",null,110,0,"",0,0,0,0,0,null,""]
["11: Otra modalidad","323. Destaque o Licencia",111,0,"",0,0,0,0,0,null,""]
[null,"01: Cubriendo una licencia",112,0,"",0,0,0,0,0,null,""]
["312. Máximo Nivel Educativo Alcanzado","02: De otra I.E./DRE/UGEL",113,0,"",0,0,0,0,0,null,""]
["01: EP.Concluidos con título","03: No Aplica",114,0,"",0,0,0,0,0,null,""]
["02: EP.Concluidos sin título",null,115,0,"",0,0,0,0,0,null,""]
["03: EP.No concluidos",null,116,0,"",0,0,0,0,0,null,""]
["04: NP.Concluidos con título",null,117,0,"",0,0,0,0,0,null,""]
["05: NP.Concluidos sin título","324. Jornada Laboral (Nombramiento / Contrato)",118,0,"",0,0,0,0,0,null,""]
["06: NP.No concluidos","40: 40 horas",119,0,"",0,0,0,0,0,null,""]
["07: Secundaria","30: 30 horas",120,0,"",0,0,0,0,0,null,""]
["08: Primaria","25: 25 horas",121,0,"",0,0,0,0,0,null,""]
[null,"24: 24 horas",122,0,"",0,0,0,0,0,null,""]
["313. Especialidad del Título","23: Menos 24 horas",123,0,"",0,0,0,0,0,null,""]
["01: Educación Inicial",null,124,0,"",0,0,0,0,0,null,""]
["02: Educación Primaria","SI / NO",125,0,"",0,0,0,0,0,null,""]
["03: E.I. Intercultural Bilingüe","SI",126,0,"",0,0,0,0,0,null,""]
["04: E.P. Intercultural Bilingüe","NO",127,0,"",0,0,0,0,0,null,""]
["05: Educación Básica Alternativa",null,128,0,"",0,0,0,0,0,null,""]
["06: Educación Especial","331. Especialidad Artistica",129,{"$f":"IF(AND(LEFT(R148,2)=\"01\",LEFT(Y148,2)=\"01\",LEFT(X148,2)=\"01\",E148=1),1,0)","v":0},"",0,0,0,{"$f":"IF(L148<>\"\",1,0)","v":0},0,null,""]
["07: Educación Física","01: Danza",130,0,{"$f":"$B$16","v":""},{"$f":"COUNTIF(AO149:CV149,\"X\")","v":0},{"$f":"IF(R149<>\"\",VALUE(LEFT(R149,2)),0)","v":0},{"$f":"IF(Q149<>\"\",COUNTIF($Q$20:$Q$319,Q149),0)","v":0},0,{"$f":"IF(AND(R149=\"01: Docente\",V149=\"SI\"),1,0)","v":0},null,{"$f":"IF($C149<=$B$5,C149,\"\")","v":""}]
["08: Educación Artística","02: Música",131,0,"",0,0,0,0,0,null,""]
["09: E.S. Lengua y Literatura","03: Teatro",132,0,"",0,0,0,0,0,null,""]
["10: E.S. Comunicación","04: Artes visuales",133,0,"",0,0,0,0,0,null,""]
["11: E.S. Matemática y Física","05: Otra",134,0,"",0,0,0,0,0,null,""]
["12: E.S. Matemática","336.2 ¿Cuál es el tipo de discapacidad?",135,0,"",0,0,0,0,0,null,""]
["13: E.S. CCSS y Filosofía","01: Auditiva",136,0,"",0,0,0,0,0,null,""]
["14: E.S. Ciencias Sociales","02: Visual",137,0,"",0,0,0,0,0,null,""]
["15: E.S. Ciencias Naturales","03: Física o Motora",138,0,"",0,0,0,0,0,null,""]
["16: E.S. Ciencia Tecnología y Ambiente","04: Otras",139,0,"",0,0,0,0,0,null,""]
["17: E.S. Alimentación y Nutrición",null,140,0,"",0,0,0,0,0,null,""]
["18: E.S. Biología y Química","337.3 Asistencia Técnica",141,0,"",0,0,0,0,0,null,""]
["19: E.S. Historia y Geografía","01: Uso pedagógico de los cuadernos",142,0,"",0,0,0,0,0,null,""]
["20: E.S. CC.HH. Sociales","02: TICs",143,0,"",0,0,0,0,0,null,""]
["21: E.S. Idioma Inglés","03: Inclusión Financiera",144,0,"",0,0,0,0,0,null,""]
["22: Educación Religiosa","04: Prevención de la violencia",145,0,"",0,0,0,0,0,null,""]
["23: E.S. Educación Familiar","05: Otro",146,0,"",0,0,0,0,0,null,""]
["24: E.T. Artes Industriales","06: No recibió asistencia técnica",147,0,"",0,0,0,0,0,null,""]
["25: E.T. Artesanía",null,148,0,"",0,0,0,0,0,null,""]
["26: E.T. Agropecuaria","339.3 ¿Cuál fue el tipo de estudios en EIB?",149,0,"",0,0,0,0,0,null,""]
["27: E.T. Construcción en madera","01: Doctorado",150,0,"",0,0,0,0,0,null,""]
["28: E.T. Computación e Informática","02: Maestría",151,0,"",0,0,0,0,0,null,""]
["29: E.T. Carpintería/Ebanistería","03: Segunda especialidad",152,0,"",0,0,0,0,0,null,""]
["30: E.T. Electricidad","04: Especialización",153,0,"",0,0,0,0,0,null,""]
["31: E.T. Electrónica","05: Actualización",154,0,"",0,0,0,0,0,null,""]
["32: E.T. Ebanistería","06: Otro",155,0,"",0,0,0,0,0,null,""]
["33: E.T. Industria del Vestido",null,156,0,"",0,0,0,0,0,null,""]
["34: E.T. Industria del Vestido Alimentación y Alta Costura","Parroquiales",157,0,"",0,0,0,0,0,null,""]
["35: E.T. en Industria del Vestido y Alta Costura","05: APAFA",158,0,"",0,0,0,0,0,null,""]
["36: E.T.Técnica Esp. Ind. del Vestido Ind.Alimentaria y Artes","06: Otra fuente Privada",159,0,"",0,0,0,0,0,null,""]
["37: E.T. Industria Alimentaria","01: Sector Educación",160,0,"",0,0,0,0,0,null,""]
["38: E.T. Mecánica Automotriz",null,161,0,"",0,0,0,0,0,null,""]
["39: E.T. Mecánica de Producción",null,162,0,"",0,0,0,0,0,null,""]
["40: E.T. Mecánica de Producción y Soldadura",null,163,0,"",0,0,0,0,0,null,""]
["41: E.T. Textilería",null,164,0,"",0,0,0,0,0,null,""]
["42: Otra pedagógica",null,165,0,"",0,0,0,0,0,null,""]
[null,null,166,0,"",0,0,0,0,0,null,""]
[null,null,167,0,"",0,0,0,0,0,null,""]
["Area curriculares",null,168,0,"",0,0,0,0,0,null,""]
["01: Matemática",null,169,0,"",0,0,0,0,0,null,""]
["02: Comunicación",null,170,0,"",0,0,0,0,0,null,""]
["03: Ingles",null,171,0,"",0,0,0,0,0,null,""]
["04: Ciencias Sociales",null,172,0,"",0,0,0,0,0,null,""]
["05: Desarrollo personal ciudadania …",null,173,0,"",0,0,0,0,0,null,""]
["06: Educación Física",null,174,0,"",0,0,0,0,0,null,""]
["07: Ciencia y Tecnología",null,175,0,"",0,0,0,0,0,null,""]
["08: Castellano como segunda lengua",null,176,0,"",0,0,0,0,0,null,""]
["09: Educación para el trabajo",null,177,0,"",0,0,0,0,0,null,""]
["10: Educación religiosa",null,178,0,"",0,0,0,0,0,null,""]
["11: Tutoría y Orientación Educativa",null,179,0,"",0,0,0,0,0,null,""]
["12: Arte y cultura",null,180,0,"",0,0,0,0,0,null,""]
[null,null,181,0,"",0,0,0,0,0,null,""]
[null,null,182,0,"",0,0,0,0,0,null,""]
[null,null,183,0,"",0,0,0,0,0,null,""]
[null,null,184,0,"",0,0,0,0,0,null,""]
[null,null,185,0,"",0,0,0,0,0,null,""]
[null,null,186,0,"",0,0,0,0,0,null,""]
[null,null,187,0,"",0,0,0,0,0,null,""]
[null,null,188,0,"",0,0,0,0,0,null,""]
[null,null,189,0,"",0,0,0,0,0,null,""]
[null,null,190,0,"",0,0,0,0,0,null,""]
[null,null,191,0,"",0,0,0,0,0,null,""]
[null,null,192,0,"",0,0,0,0,0,null,""]
[null,null,193,{"$f":"IF(AND(LEFT(R212,2)=\"01\",LEFT(Y212,2)=\"01\",LEFT(X212,2)=\"01\",E212=1),1,0)","v":0},"",0,0,0,{"$f":"IF(L212<>\"\",1,0)","v":0},0,null,""]
[null,null,194,0,{"$f":"$B$16","v":""},{"$f":"COUNTIF(AO213:CV213,\"X\")","v":0},{"$f":"IF(R213<>\"\",VALUE(LEFT(R213,2)),0)","v":0},{"$f":"IF(Q213<>\"\",COUNTIF($Q$20:$Q$319,Q213),0)","v":0},0,{"$f":"IF(AND(R213=\"01: Docente\",V213=\"SI\"),1,0)","v":0},null,{"$f":"IF($C213<=$B$5,C213,\"\")","v":""}]
[null,null,195,0,"",0,0,0,0,0,null,""]
[null,null,196,0,"",0,0,0,0,0,null,""]
[null,null,197,0,"",0,0,0,0,0,null,""]
[null,null,198,0,"",0,0,0,0,0,null,""]
[null,null,199,0,"",0,0,0,0,0,null,""]
[null,null,200,0,"",0,{"$f":"IF(R219<>\"\",VALUE(LEFT(R219,2)),0)","v":0},0,{"$f":"IF(L219<>\"\",1,0)","v":0},0,null,""]
[null,null,201,0,"",0,{"$f":"IF(R220<>\"\",VALUE(LEFT(R220,2)),0)","v":0},0,{"$f":"IF(L220<>\"\",1,0)","v":0},0,null,""]
[null,null,202,0,"",0,0,0,0,0,null,""]
[null,null,203,0,"",0,0,0,0,0,null,""]
[null,null,204,0,"",0,0,0,0,0,null,""]
[null,null,205,0,"",0,0,0,0,0,null,""]
[null,null,206,0,"",0,0,0,0,0,null,""]
[null,null,207,0,"",0,0,0,0,0,null,""]
[null,null,208,0,"",0,0,0,0,0,null,""]
[null,null,209,0,"",0,0,0,0,0,null,""]
[null,null,210,0,"",0,0,0,0,0,null,""]
[null,null,211,0,"",0,0,0,0,0,null,""]
[null,null,212,0,"",0,0,0,0,0,null,""]
[null,null,213,0,"",0,0,0,0,0,null,""]
[null,null,214,0,"",0,0,0,0,0,null,""]
[null,null,215,0,"",0,0,0,0,0,null,""]
[null,null,216,0,"",0,0,0,0,0,null,""]
[null,null,217,0,"",0,0,0,0,0,null,""]
[null,null,218,0,"",0,0,0,0,0,null,""]
[null,null,219,0,"",0,0,0,0,0,null,""]
[null,null,220,0,"",0,0,0,0,0,null,""]
[null,null,221,0,"",0,0,0,0,0,null,""]
[null,null,222,0,"",0,0,0,0,0,null,""]
[null,null,223,0,"",0,0,0,0,0,null,""]
[null,null,224,0,"",0,0,0,0,0,null,""]
[null,null,225,0,"",0,0,0,0,0,null,""]
[null,null,226,0,"",0,0,0,0,0,null,""]
[null,null,227,0,"",0,0,0,0,0,null,""]
[null,null,228,0,"",0,0,0,0,0,null,""]
[null,null,229,0,"",0,0,0,0,0,null,""]
[null,null,230,0,"",0,0,0,0,0,null,""]
[null,null,231,0,"",0,0,0,0,0,null,""]
[null,null,232,0,"",0,0,0,0,0,null,""]
[null,null,233,0,"",0,0,0,0,0,null,""]
[null,null,234,0,"",0,0,0,0,0,null,""]
[null,null,235,0,"",0,0,0,0,0,null,""]
[null,null,236,0,"",0,0,0,0,0,null,""]
[null,null,237,0,"",0,0,0,0,0,null,""]
[null,null,238,0,"",0,0,0,0,0,null,""]
[null,null,239,0,"",0,0,0,0,0,null,""]
[null,null,240,0,"",0,0,0,0,0,null,""]
[null,null,241,0,"",0,0,0,0,0,null,""]
[null,null,242,0,"",0,0,0,0,0,null,""]
[null,null,243,0,"",0,0,0,0,0,null,""]
[null,null,244,0,"",0,0,0,0,0,null,""]
[null,null,245,0,"",0,0,0,0,0,null,""]
[null,null,246,0,"",0,0,0,0,0,null,""]
[null,null,247,0,"",0,0,0,0,0,null,""]
[null,null,248,0,"",0,0,0,0,0,null,""]
[null,null,249,0,"",0,0,0,0,0,null,""]
[null,null,250,0,"",0,0,0,0,0,null,""]
[null,null,251,0,"",0,0,0,0,0,null,""]
[null,null,252,0,"",0,0,0,0,0,null,""]
[null,null,253,0,"",0,0,0,0,0,null,""]
[null,null,254,0,"",0,0,0,0,0,null,""]
[null,null,255,0,"",0,0,0,0,0,null,""]
[null,null,256,0,"",0,0,0,0,0,null,""]
[null,null,257,{"$f":"IF(AND(LEFT(R276,2)=\"01\",LEFT(Y276,2)=\"01\",LEFT(X276,2)=\"01\",E276=1),1,0)","v":0},"",0,0,0,0,0,null,""]
[null,null,258,0,{"$f":"$B$16","v":""},{"$f":"COUNTIF(AO277:CV277,\"X\")","v":0},0,{"$f":"IF(Q277<>\"\",COUNTIF($Q$20:$Q$319,Q277),0)","v":0},0,{"$f":"IF(AND(R277=\"01: Docente\",V277=\"SI\"),1,0)","v":0},null,{"$f":"IF($C277<=$B$5,C277,\"\")","v":""}]
[null,null,259,0,"",0,0,0,0,0,null,""]
[null,null,260,0,"",0,0,0,0,0,null,""]
[null,null,261,0,"",0,0,0,0,0,null,""]
[null,null,262,0,"",0,0,0,0,0,null,""]
[null,null,263,0,"",0,0,0,0,0,null,""]
[null,null,264,0,"",0,0,0,0,0,null,""]
[null,null,265,0,"",0,{"$f":"IF(R284<>\"\",VALUE(LEFT(R284,2)),0)","v":0},0,{"$f":"IF(L284<>\"\",1,0)","v":0},0,null,""]
[null,null,266,0,"",0,0,0,0,0,null,""]
[null,null,267,0,"",0,0,0,0,0,null,""]
[null,null,268,0,"",0,0,0,0,0,null,""]
[null,null,269,0,"",0,0,0,0,0,null,""]
[null,null,270,0,"",0,0,0,0,0,null,""]
[null,null,271,0,"",0,0,0,0,0,null,""]
[null,null,272,0,"",0,0,0,0,0,null,""]
[null,null,273,0,"",0,0,0,0,0,null,""]
[null,null,274,0,"",0,0,0,0,0,null,""]
[null,null,275,0,"",0,0,0,0,0,null,""]
[null,null,276,0,"",0,0,0,0,0,null,""]
[null,null,277,0,"",0,0,0,0,0,null,""]
[null,null,278,0,"",0,0,0,0,0,null,""]
[null,null,279,0,"",0,0,0,0,0,null,""]
[null,null,280,0,"",0,0,0,0,0,null,""]
[null,null,281,0,"",0,0,0,0,0,null,""]
[null,null,282,0,"",0,0,0,0,0,null,""]
[null,null,283,0,"",0,0,0,0,0,null,""]
[null,null,284,0,"",0,0,0,0,0,null,""]
[null,null,285,0,"",0,0,0,0,0,null,""]
[null,null,286,0,"",0,0,0,0,0,null,""]
[null,null,287,0,"",0,0,0,0,0,null,""]
[null,null,288,0,"",0,0,0,0,0,null,""]
[null,null,289,0,"",0,0,0,0,0,null,""]
[null,null,290,0,"",0,0,0,0,0,null,""]
[null,null,291,0,"",0,0,0,0,0,null,""]
[null,null,292,0,"",0,0,0,0,0,null,""]
[null,null,293,0,"",0,0,0,0,0,null,""]
[null,null,294,0,"",0,0,0,0,0,null,""]
[null,null,295,0,"",0,0,0,0,0,null,""]
[null,null,296,0,"",0,0,0,0,0,null,""]
[null,null,297,0,"",0,0,0,0,0,null,""]
[null,null,298,0,"",0,0,0,0,0,null,""]
[null,null,299,0,"",0,0,0,0,0,null,""]
[null,null,300,0,"",0,{"$f":"IF(R319<>\"\",VALUE(LEFT(R319,2)),0)","v":0},0,{"$f":"IF(L319<>\"\",1,0)","v":0},0,null,""]
[]
[null,null,null,null,null,null,null,null,null,null,null,null,"---","---","---","---","---","---","---","---","---","---","---","---","---","---","---","---","---","---","---","---","---","---","---","---","---","---","---","---","---","---","---","---","---","---","---","---","---","---","---","---","---","---","---","---","---","---","---","---","---","---","---","---","---","---","---","---","---","---","---","---","---","---","---","---","---","---","---","---","---","---","---","---","---","---","---","---","---","---","---","---","---","---","---","---","---","---","---","---","---","---","---","---","---","---","---","---","---","---","---","---","---","---","---","---","---","---","---","---"]
[null,null,null,null,null,null,null,null,null,null,null,null,null,null,null,null,null,"","","","",null,"","","",null,"","",null,"",null,null,"",null,null,"","","","","","",null,null,null,null,null,null,null,null,null,null,null,null,null,null,null,null,null,null,null,null,null,null,null,null,null,null,null,null,null,null,null,null,"","","",null,null,null,null,null,null,null,null,null,null,null,null,null,"","","",null,null,"","","",null,null,null,"","","","","",null,null,null,null,null,null,null,null,""]
[null,null,null,null,null,null,null,null,null,null,null,null,null,null,null,null,null,"","","","",null,"","","",null,"","",null,"",null,null,"",null,null,"","","","","","",null,null,null,null,null,null,null,null,null,null,null,null,null,null,null,null,null,null,null,null,null,null,null,null,null,null,null,null,null,null,null,null,"","","",null,null,null,null,null,null,null,null,null,null,null,null,null,"","","",null,null,"","","",null,null,null,"","","","","",null,null,null,null,null,null,null,null,""]
[null,null,null,null,null,null,null,null,null,null,null,null,null,null,null,null,null,"","","","",null,"","","",null,"","",null,"",null,null,"",null,null,"","","","","","",null,null,null,null,null,null,null,null,null,null,null,null,null,null,null,null,null,null,null,null,null,null,null,null,null,null,null,null,null,null,null,null,"","","",null,null,null,null,null,null,null,null,null,null,null,null,null,"","","",null,null,"","","",null,null,null,"","","","","",null,null,null,null,null,null,null,null,""]
[null,null,null,null,null,null,null,null,null,null,null,null,null,null,null,null,null,"","","","",null,"","","",null,"","",null,"",null,null,"",null,null,"","","","","","",null,null,null,null,null,null,null,null,null,null,null,null,null,null,null,null,null,null,null,null,null,null,null,null,null,null,null,null,null,null,null,null,"","","",null,null,null,null,null,null,null,null,null,null,null,null,null,"","","",null,null,"","","",null,null,null,"","","","","",null,null,null,null,null,null,null,null,""]
[null,null,null,null,null,null,null,null,null,null,null,null,null,null,null,null,null,"","","","",null,"","","",null,"","",null,"",null,null,"",null,null,"","","","","","",null,null,null,null,null,null,null,null,null,null,null,null,null,null,null,null,null,null,null,null,null,null,null,null,null,null,null,null,null,null,null,null,"","","",null,null,null,null,null,null,null,null,null,null,null,null,null,"","","",null,null,"","","",null,null,null,"","","","","",null,null,null,null,null,null,null,null,""]
[null,null,null,null,null,null,null,null,null,null,null,null,null,null,null,null,null,"","","","",null,"","","",null,"","",null,"",null,null,"",null,null,"","","","","","",null,null,null,null,null,null,null,null,null,null,null,null,null,null,null,null,null,null,null,null,null,null,null,null,null,null,null,null,null,null,null,null,"","","",null,null,null,null,null,null,null,null,null,null,null,null,null,"","","",null,null,"","","",null,null,null,"","","","","",null,null,null,null,null,null,null,null,""]
[null,null,null,null,null,null,null,null,null,null,null,null,null,null,null,null,null,"","","","",null,"","","",null,"","",null,"",null,null,"",null,null,"","","","","","",null,null,null,null,null,null,null,null,null,null,null,null,null,null,null,null,null,null,null,null,null,null,null,null,null,null,null,null,null,null,null,null,"","","",null,null,null,null,null,null,null,null,null,null,null,null,null,"","","",null,null,"","","",null,null,null,"","","","","",null,null,null,null,null,null,null,null,""]
[null,null,null,null,null,null,null,null,null,null,null,null,null,null,null,null,null,"","","","",null,"","","",null,"","",null,"",null,null,"",null,null,"","","","","","",null,null,null,null,null,null,null,null,null,null,null,null,null,null,null,null,null,null,null,null,null,null,null,null,null,null,null,null,null,null,null,null,"","","",null,null,null,null,null,null,null,null,null,null,null,null,null,"","","",null,null,"","","",null,null,null,"","","","","",null,null,null,null,null,null,null,null,""]
[null,null,null,null,null,null,null,null,null,null,null,null,null,null,null,null,null,"","","","",null,"","","",null,"","",null,"",null,null,"",null,null,"","","","","","",null,null,null,null,null,null,null,null,null,null,null,null,null,null,null,null,null,null,null,null,null,null,null,null,null,null,null,null,null,null,null,null,"","","",null,null,null,null,null,null,null,null,null,null,null,null,null,"","","",null,null,"","","",null,null,null,"","","","","",null,null,null,null,null,null,null,null,""]
[null,null,null,null,null,null,null,null,null,null,null,null,null,null,null,null,null,"","","","",null,"","","",null,"","",null,"",null,null,"",null,null,"","","","","","",null,null,null,null,null,null,null,null,null,null,null,null,null,null,null,null,null,null,null,null,null,null,null,null,null,null,null,null,null,null,null,null,"","","",null,null,null,null,null,null,null,null,null,null,null,null,null,"","","",null,null,"","","",null,null,null,"","","","","",null,null,null,null,null,null,null,null,""]
[null,null,null,null,null,null,null,null,null,null,null,null,null,null,null,null,null,"","","","",null,"","","",null,"","",null,"",null,null,"",null,null,"","","","","","",null,null,null,null,null,null,null,null,null,null,null,null,null,null,null,null,null,null,null,null,null,null,null,null,null,null,null,null,null,null,null,null,"","","",null,null,null,null,null,null,null,null,null,null,null,null,null,"","","",null,null,"","","",null,null,null,"","","","","",null,null,null,null,null,null,null,null,""]
[null,null,null,null,null,null,null,null,null,null,null,null,null,null,null,null,null,"","","","",null,"","","",null,"","",null,"",null,null,"",null,null,"","","","","","",null,null,null,null,null,null,null,null,null,null,null,null,null,null,null,null,null,null,null,null,null,null,null,null,null,null,null,null,null,null,null,null,"","","",null,null,null,null,null,null,null,null,null,null,null,null,null,"","","",null,null,"","","",null,null,null,"","","","","",null,null,null,null,null,null,null,null,""]
[null,null,null,null,null,null,null,null,null,null,null,null,null,null,null,null,null,"","","","",null,"","","",null,"","",null,"",null,null,"",null,null,"","","","","","",null,null,null,null,null,null,null,null,null,null,null,null,null,null,null,null,null,null,null,null,null,null,null,null,null,null,null,null,null,null,null,null,"","","",null,null,null,null,null,null,null,null,null,null,null,null,null,"","","",null,null,"","","",null,null,null,"","","","","",null,null,null,null,null,null,null,null,""]
[null,null,null,null,null,null,null,null,null,null,null,null,null,null,null,null,null,"","","","",null,"","","",null,"","",null,"",null,null,"",null,null,"","","","","","",null,null,null,null,null,null,null,null,null,null,null,null,null,null,null,null,null,null,null,null,null,null,null,null,null,null,null,null,null,null,null,null,"","","",null,null,null,null,null,null,null,null,null,null,null,null,null,"","","",null,null,"","","",null,null,null,"","","","","",null,null,null,null,null,null,null,null,""]
[null,null,null,null,null,null,null,null,null,null,null,null,null,null,null,null,null,"","","","",null,"","","",null,"","",null,"",null,null,"",null,null,"","","","","","",null,null,null,null,null,null,null,null,null,null,null,null,null,null,null,null,null,null,null,null,null,null,null,null,null,null,null,null,null,null,null,null,"","","",null,null,null,null,null,null,null,null,null,null,null,null,null,"","","",null,null,"","","",null,null,null,"","","","","",null,null,null,null,null,null,null,null,""]
[null,null,null,null,null,null,null,null,null,null,null,null,null,null,null,null,null,"","","","",null,"","","",null,"","",null,"",null,null,"",null,null,"","","","","","",null,null,null,null,null,null,null,null,null,null,null,null,null,null,null,null,null,null,null,null,null,null,null,null,null,null,null,null,null,null,null,null,"","","",null,null,null,null,null,null,null,null,null,null,null,null,null,"","","",null,null,"","","",null,null,null,"","","","","",null,null,null,null,null,null,null,null,""]
[null,null,null,null,null,null,null,null,null,null,null,null,null,null,null,null,null,"","","","",null,"","","",null,"","",null,"",null,null,"",null,null,"","","","","","",null,null,null,null,null,null,null,null,null,null,null,null,null,null,null,null,null,null,null,null,null,null,null,null,null,null,null,null,null,null,null,null,"","","",null,null,null,null,null,null,null,null,null,null,null,null,null,"","","",null,null,"","","",null,null,null,"","","","","",null,null,null,null,null,null,null,null,""]
[null,null,null,null,null,null,null,null,null,null,null,null,null,null,null,null,null,"","","","",null,"","","",null,"","",null,"",null,null,"",null,null,"","","","","","",null,null,null,null,null,null,null,null,null,null,null,null,null,null,null,null,null,null,null,null,null,null,null,null,null,null,null,null,null,null,null,null,"","","",null,null,null,null,null,null,null,null,null,null,null,null,null,"","","",null,null,"","","",null,null,null,"","","","","",null,null,null,null,null,null,null,null,""]
[null,null,null,null,null,null,null,null,null,null,null,null,null,null,null,null,null,"","","","",null,"","","",null,"","",null,"",null,null,"",null,null,"","","","","","",null,null,null,null,null,null,null,null,null,null,null,null,null,null,null,null,null,null,null,null,null,null,null,null,null,null,null,null,null,null,null,null,"","","",null,null,null,null,null,null,null,null,null,null,null,null,null,"","","",null,null,"","","",null,null,null,"","","","","",null,null,null,null,null,null,null,null,""]
[null,null,null,null,null,null,null,null,null,null,null,null,null,null,null,null,null,"","","","",null,"","","",null,"","",null,"",null,null,"",null,null,"","","","","","",null,null,null,null,null,null,null,null,null,null,null,null,null,null,null,null,null,null,null,null,null,null,null,null,null,null,null,null,null,null,null,null,"","","",null,null,null,null,null,null,null,null,null,null,null,null,null,"","","",null,null,"","","",null,null,null,"","","","","",null,null,null,null,null,null,null,null,""]
[null,null,null,null,null,null,null,null,null,null,null,null,null,null,null,null,null,"","","","",null,"","","",null,"","",null,"",null,null,"",null,null,"","","","","","",null,null,null,null,null,null,null,null,null,null,null,null,null,null,null,null,null,null,null,null,null,null,null,null,null,null,null,null,null,null,null,null,"","","",null,null,null,null,null,null,null,null,null,null,null,null,null,"","","",null,null,"","","",null,null,null,"","","","","",null,null,null,null,null,null,null,null,""]
[null,null,null,null,null,null,null,null,null,null,null,null,null,null,null,null,null,"","","","",null,"","","",null,"","",null,"",null,null,"",null,null,"","","","","","",null,null,null,null,null,null,null,null,null,null,null,null,null,null,null,null,null,null,null,null,null,null,null,null,null,null,null,null,null,null,null,null,"","","",null,null,null,null,null,null,null,null,null,null,null,null,null,"","","",null,null,"","","",null,null,null,"","","","","",null,null,null,null,null,null,null,null,""]
[null,null,null,null,null,null,null,null,null,null,null,null,null,null,null,null,null,"","","","",null,"","","",null,"","",null,"",null,null,"",null,null,"","","","","","",null,null,null,null,null,null,null,null,null,null,null,null,null,null,null,null,null,null,null,null,null,null,null,null,null,null,null,null,null,null,null,null,"","","",null,null,null,null,null,null,null,null,null,null,null,null,null,"","","",null,null,"","","",null,null,null,"","","","","",null,null,null,null,null,null,null,null,""]
[null,null,null,null,null,null,null,null,null,null,null,null,null,null,null,null,null,"","","","",null,"","","",null,"","",null,"",null,null,"",null,null,"","","","","","",null,null,null,null,null,null,null,null,null,null,null,null,null,null,null,null,null,null,null,null,null,null,null,null,null,null,null,null,null,null,null,null,"","","",null,null,null,null,null,null,null,null,null,null,null,null,null,"","","",null,null,"","","",null,null,null,"","","","","",null,null,null,null,null,null,null,null,""]
[null,null,null,null,null,null,null,null,null,null,null,null,null,null,null,null,null,"","","","",null,"","","",null,"","",null,"",null,null,"",null,null,"","","","","","",null,null,null,null,null,null,null,null,null,null,null,null,null,null,null,null,null,null,null,null,null,null,null,null,null,null,null,null,null,null,null,null,"","","",null,null,null,null,null,null,null,null,null,null,null,null,null,"","","",null,null,"","","",null,null,null,"","","","","",null,null,null,null,null,null,null,null,""]
[null,null,null,null,null,null,null,null,null,null,null,null,null,null,null,null,null,"","","","",null,"","","",null,"","",null,"",null,null,"",null,null,"","","","","","",null,null,null,null,null,null,null,null,null,null,null,null,null,null,null,null,null,null,null,null,null,null,null,null,null,null,null,null,null,null,null,null,"","","",null,null,null,null,null,null,null,null,null,null,null,null,null,"","","",null,null,"","","",null,null,null,"","","","","",null,null,null,null,null,null,null,null,""]
[null,null,null,null,null,null,null,null,null,null,null,null,null,null,null,null,null,"","","","",null,"","","",null,"","",null,"",null,null,"",null,null,"","","","","","",null,null,null,null,null,null,null,null,null,null,null,null,null,null,null,null,null,null,null,null,null,null,null,null,null,null,null,null,null,null,null,null,"","","",null,null,null,null,null,null,null,null,null,null,null,null,null,"","","",null,null,"","","",null,null,null,"","","","","",null,null,null,null,null,null,null,null,""]
[null,null,null,null,null,null,null,null,null,null,null,null,null,null,null,null,null,"","","","",null,"","","",null,"","",null,"",null,null,"",null,null,"","","","","","",null,null,null,null,null,null,null,null,null,null,null,null,null,null,null,null,null,null,null,null,null,null,null,null,null,null,null,null,null,null,null,null,"","","",null,null,null,null,null,null,null,null,null,null,null,null,null,"","","",null,null,"","","",null,null,null,"","","","","",null,null,null,null,null,null,null,null,""]
[null,null,null,null,null,null,null,null,null,null,null,null,null,null,null,null,null,"","","","",null,"","","",null,"","",null,"",null,null,"",null,null,"","","","","","",null,null,null,null,null,null,null,null,null,null,null,null,null,null,null,null,null,null,null,null,null,null,null,null,null,null,null,null,null,null,null,null,"","","",null,null,null,null,null,null,null,null,null,null,null,null,null,"","","",null,null,"","","",null,null,null,"","","","","",null,null,null,null,null,null,null,null,""]
[null,null,null,null,null,null,null,null,null,null,null,null,null,null,null,null,null,"","","","",null,"","","",null,"","",null,"",null,null,"",null,null,"","","","","","",null,null,null,null,null,null,null,null,null,null,null,null,null,null,null,null,null,null,null,null,null,null,null,null,null,null,null,null,null,null,null,null,"","","",null,null,null,null,null,null,null,null,null,null,null,null,null,"","","",null,null,"","","",null,null,null,"","","","","",null,null,null,null,null,null,null,null,""]
[null,null,null,null,null,null,null,null,null,null,null,null,null,null,null,null,null,"","","","",null,"","","",null,"","",null,"",null,null,"",null,null,"","","","","","",null,null,null,null,null,null,null,null,null,null,null,null,null,null,null,null,null,null,null,null,null,null,null,null,null,null,null,null,null,null,null,null,"","","",null,null,null,null,null,null,null,null,null,null,null,null,null,"","","",null,null,"","","",null,null,null,"","","","","",null,null,null,null,null,null,null,null,""]
[null,null,null,null,null,null,null,null,null,null,null,null,null,null,null,null,null,"","","","",null,"","","",null,"","",null,"",null,null,"",null,null,"","","","","","",null,null,null,null,null,null,null,null,null,null,null,null,null,null,null,null,null,null,null,null,null,null,null,null,null,null,null,null,null,null,null,null,"","","",null,null,null,null,null,null,null,null,null,null,null,null,null,"","","",null,null,"","","",null,null,null,"","","","","",null,null,null,null,null,null,null,null,""]
[null,null,null,null,null,null,null,null,null,null,null,null,null,null,null,null,null,"","","","",null,"","","",null,"","",null,"",null,null,"",null,null,"","","","","","",null,null,null,null,null,null,null,null,null,null,null,null,null,null,null,null,null,null,null,null,null,null,null,null,null,null,null,null,null,null,null,null,"","","",null,null,null,null,null,null,null,null,null,null,null,null,null,"","","",null,null,"","","",null,null,null,"","","","","",null,null,null,null,null,null,null,null,""]
[null,null,null,null,null,null,null,null,null,null,null,null,null,null,null,null,null,"","","","",null,"","","",null,"","",null,"",null,null,"",null,null,"","","","","","",null,null,null,null,null,null,null,null,null,null,null,null,null,null,null,null,null,null,null,null,null,null,null,null,null,null,null,null,null,null,null,null,"","","",null,null,null,null,null,null,null,null,null,null,null,null,null,"","","",null,null,"","","",null,null,null,"","","","","",null,null,null,null,null,null,null,null,""]
[null,null,null,null,null,null,null,null,null,null,null,null,null,null,null,null,null,"","","","",null,"","","",null,"","",null,"",null,null,"",null,null,"","","","","","",null,null,null,null,null,null,null,null,null,null,null,null,null,null,null,null,null,null,null,null,null,null,null,null,null,null,null,null,null,null,null,null,"","","",null,null,null,null,null,null,null,null,null,null,null,null,null,"","","",null,null,"","","",null,null,null,"","","","","",null,null,null,null,null,null,null,null,""]
[null,null,null,null,null,null,null,null,null,null,null,null,null,null,null,null,null,"","","","",null,"","","",null,"","",null,"",null,null,"",null,null,"","","","","","",null,null,null,null,null,null,null,null,null,null,null,null,null,null,null,null,null,null,null,null,null,null,null,null,null,null,null,null,null,null,null,null,"","","",null,null,null,null,null,null,null,null,null,null,null,null,null,"","","",null,null,"","","",null,null,null,"","","","","",null,null,null,null,null,null,null,null,""]
[null,null,null,null,null,null,null,null,null,null,null,null,null,null,null,null,null,"","","","",null,"","","",null,"","",null,"",null,null,"",null,null,"","","","","","",null,null,null,null,null,null,null,null,null,null,null,null,null,null,null,null,null,null,null,null,null,null,null,null,null,null,null,null,null,null,null,null,"","","",null,null,null,null,null,null,null,null,null,null,null,null,null,"","","",null,null,"","","",null,null,null,"","","","","",null,null,null,null,null,null,null,null,""]
[null,null,null,null,null,null,null,null,null,null,null,null,null,null,null,null,null,"","","","",null,"","","",null,"","",null,"",null,null,"",null,null,"","","","","","",null,null,null,null,null,null,null,null,null,null,null,null,null,null,null,null,null,null,null,null,null,null,null,null,null,null,null,null,null,null,null,null,"","","",null,null,null,null,null,null,null,null,null,null,null,null,null,"","","",null,null,"","","",null,null,null,"","","","","",null,null,null,null,null,null,null,null,""]
[null,null,null,null,null,null,null,null,null,null,null,null,null,null,null,null,null,"","","","",null,"","","",null,"","",null,"",null,null,"",null,null,"","","","","","",null,null,null,null,null,null,null,null,null,null,null,null,null,null,null,null,null,null,null,null,null,null,null,null,null,null,null,null,null,null,null,null,"","","",null,null,null,null,null,null,null,null,null,null,null,null,null,"","","",null,null,"","","",null,null,null,"","","","","",null,null,null,null,null,null,null,null,""]
[null,null,null,null,null,null,null,null,null,null,null,null,null,null,null,null,null,"","","","",null,"","","",null,"","",null,"",null,null,"",null,null,"","","","","","",null,null,null,null,null,null,null,null,null,null,null,null,null,null,null,null,null,null,null,null,null,null,null,null,null,null,null,null,null,null,null,null,"","","",null,null,null,null,null,null,null,null,null,null,null,null,null,"","","",null,null,"","","",null,null,null,"","","","","",null,null,null,null,null,null,null,null,""]
[null,null,null,null,null,null,null,null,null,null,null,null,null,null,null,null,null,"","","","",null,"","","",null,"","",null,"",null,null,"",null,null,"","","","","","",null,null,null,null,null,null,null,null,null,null,null,null,null,null,null,null,null,null,null,null,null,null,null,null,null,null,null,null,null,null,null,null,"","","",null,null,null,null,null,null,null,null,null,null,null,null,null,"","","",null,null,"","","",null,null,null,"","","","","",null,null,null,null,null,null,null,null,""]
[null,null,null,null,null,null,null,null,null,null,null,null,null,null,null,null,null,"","","","",null,"","","",null,"","",null,"",null,null,"",null,null,"","","","","","",null,null,null,null,null,null,null,null,null,null,null,null,null,null,null,null,null,null,null,null,null,null,null,null,null,null,null,null,null,null,null,null,"","","",null,null,null,null,null,null,null,null,null,null,null,null,null,"","","",null,null,"","","",null,null,null,"","","","","",null,null,null,null,null,null,null,null,""]
[null,null,null,null,null,null,null,null,null,null,null,null,null,null,null,null,null,"","","","",null,"","","",null,"","",null,"",null,null,"",null,null,"","","","","","",null,null,null,null,null,null,null,null,null,null,null,null,null,null,null,null,null,null,null,null,null,null,null,null,null,null,null,null,null,null,null,null,"","","",null,null,null,null,null,null,null,null,null,null,null,null,null,"","","",null,null,"","","",null,null,null,"","","","","",null,null,null,null,null,null,null,null,""]
[null,null,null,null,null,null,null,null,null,null,null,null,null,null,null,null,null,"","","","",null,"","","",null,"","",null,"",null,null,"",null,null,"","","","","","",null,null,null,null,null,null,null,null,null,null,null,null,null,null,null,null,null,null,null,null,null,null,null,null,null,null,null,null,null,null,null,null,"","","",null,null,null,null,null,null,null,null,null,null,null,null,null,"","","",null,null,"","","",null,null,null,"","","","","",null,null,null,null,null,null,null,null,""]
[null,null,null,null,null,null,null,null,null,null,null,null,null,null,null,null,null,"","","","",null,"","","",null,"","",null,"",null,null,"",null,null,"","","","","","",null,null,null,null,null,null,null,null,null,null,null,null,null,null,null,null,null,null,null,null,null,null,null,null,null,null,null,null,null,null,null,null,"","","",null,null,null,null,null,null,null,null,null,null,null,null,null,"","","",null,null,"","","",null,null,null,"","","","","",null,null,null,null,null,null,null,null,""]
[null,null,null,null,null,null,null,null,null,null,null,null,null,null,null,null,null,"","","","",null,"","","",null,"","",null,"",null,null,"",null,null,"","","","","","",null,null,null,null,null,null,null,null,null,null,null,null,null,null,null,null,null,null,null,null,null,null,null,null,null,null,null,null,null,null,null,null,"","","",null,null,null,null,null,null,null,null,null,null,null,null,null,"","","",null,null,"","","",null,null,null,"","","","","",null,null,null,null,null,null,null,null,""]
[null,null,null,null,null,null,null,null,null,null,null,null,null,null,null,null,null,"","","","",null,"","","",null,"","",null,"",null,null,"",null,null,"","","","","","",null,null,null,null,null,null,null,null,null,null,null,null,null,null,null,null,null,null,null,null,null,null,null,null,null,null,null,null,null,null,null,null,"","","",null,null,null,null,null,null,null,null,null,null,null,null,null,"","","",null,null,"","","",null,null,null,"","","","","",null,null,null,null,null,null,null,null,""]
[null,null,null,null,null,null,null,null,null,null,null,null,null,null,null,null,null,"","","","",null,"","","",null,"","",null,"",null,null,"",null,null,"","","","","","",null,null,null,null,null,null,null,null,null,null,null,null,null,null,null,null,null,null,null,null,null,null,null,null,null,null,null,null,null,null,null,null,"","","",null,null,null,null,null,null,null,null,null,null,null,null,null,"","","",null,null,"","","",null,null,null,"","","","","",null,null,null,null,null,null,null,null,""]
[null,null,null,null,null,null,null,null,null,null,null,null,null,null,null,null,null,"","","","",null,"","","",null,"","",null,"",null,null,"",null,null,"","","","","","",null,null,null,null,null,null,null,null,null,null,null,null,null,null,null,null,null,null,null,null,null,null,null,null,null,null,null,null,null,null,null,null,"","","",null,null,null,null,null,null,null,null,null,null,null,null,null,"","","",null,null,"","","",null,null,null,"","","","","",null,null,null,null,null,null,null,null,""]
[null,null,null,null,null,null,null,null,null,null,null,null,null,null,null,null,null,"","","","",null,"","","",null,"","",null,"",null,null,"",null,null,"","","","","","",null,null,null,null,null,null,null,null,null,null,null,null,null,null,null,null,null,null,null,null,null,null,null,null,null,null,null,null,null,null,null,null,"","","",null,null,null,null,null,null,null,null,null,null,null,null,null,"","","",null,null,"","","",null,null,null,"","","","","",null,null,null,null,null,null,null,null,""]
[null,null,null,null,null,null,null,null,null,null,null,null,null,null,null,null,null,"","","","",null,"","","",null,"","",null,"",null,null,"",null,null,"","","","","","",null,null,null,null,null,null,null,null,null,null,null,null,null,null,null,null,null,null,null,null,null,null,null,null,null,null,null,null,null,null,null,null,"","","",null,null,null,null,null,null,null,null,null,null,null,null,null,"","","",null,null,"","","",null,null,null,"","","","","",null,null,null,null,null,null,null,null,""]
[null,null,null,null,null,null,null,null,null,null,null,null,null,null,null,null,null,"","","","",null,"","","",null,"","",null,"",null,null,"",null,null,"","","","","","",null,null,null,null,null,null,null,null,null,null,null,null,null,null,null,null,null,null,null,null,null,null,null,null,null,null,null,null,null,null,null,null,"","","",null,null,null,null,null,null,null,null,null,null,null,null,null,"","","",null,null,"","","",null,null,null,"","","","","",null,null,null,null,null,null,null,null,""]
[null,null,null,null,null,null,null,null,null,null,null,null,null,null,null,null,null,"","","","",null,"","","",null,"","",null,"",null,null,"",null,null,"","","","","","",null,null,null,null,null,null,null,null,null,null,null,null,null,null,null,null,null,null,null,null,null,null,null,null,null,null,null,null,null,null,null,null,"","","",null,null,null,null,null,null,null,null,null,null,null,null,null,"","","",null,null,"","","",null,null,null,"","","","","",null,null,null,null,null,null,null,null,""]
[null,null,null,null,null,null,null,null,null,null,null,null,null,null,null,null,null,"","","","",null,"","","",null,"","",null,"",null,null,"",null,null,"","","","","","",null,null,null,null,null,null,null,null,null,null,null,null,null,null,null,null,null,null,null,null,null,null,null,null,null,null,null,null,null,null,null,null,"","","",null,null,null,null,null,null,null,null,null,null,null,null,null,"","","",null,null,"","","",null,null,null,"","","","","",null,null,null,null,null,null,null,null,""]
[null,null,null,null,null,null,null,null,null,null,null,null,null,null,null,null,null,"","","","",null,"","","",null,"","",null,"",null,null,"",null,null,"","","","","","",null,null,null,null,null,null,null,null,null,null,null,null,null,null,null,null,null,null,null,null,null,null,null,null,null,null,null,null,null,null,null,null,"","","",null,null,null,null,null,null,null,null,null,null,null,null,null,"","","",null,null,"","","",null,null,null,"","","","","",null,null,null,null,null,null,null,null,""]
[null,null,null,null,null,null,null,null,null,null,null,null,null,null,null,null,null,"","","","",null,"","","",null,"","",null,"",null,null,"",null,null,"","","","","","",null,null,null,null,null,null,null,null,null,null,null,null,null,null,null,null,null,null,null,null,null,null,null,null,null,null,null,null,null,null,null,null,"","","",null,null,null,null,null,null,null,null,null,null,null,null,null,"","","",null,null,"","","",null,null,null,"","","","","",null,null,null,null,null,null,null,null,""]
[null,null,null,null,null,null,null,null,null,null,null,null,null,null,null,null,null,"","","","",null,"","","",null,"","",null,"",null,null,"",null,null,"","","","","","",null,null,null,null,null,null,null,null,null,null,null,null,null,null,null,null,null,null,null,null,null,null,null,null,null,null,null,null,null,null,null,null,"","","",null,null,null,null,null,null,null,null,null,null,null,null,null,"","","",null,null,"","","",null,null,null,"","","","","",null,null,null,null,null,null,null,null,""]
[null,null,null,null,null,null,null,null,null,null,null,null,null,null,null,null,null,"","","","",null,"","","",null,"","",null,"",null,null,"",null,null,"","","","","","",null,null,null,null,null,null,null,null,null,null,null,null,null,null,null,null,null,null,null,null,null,null,null,null,null,null,null,null,null,null,null,null,"","","",null,null,null,null,null,null,null,null,null,null,null,null,null,"","","",null,null,"","","",null,null,null,"","","","","",null,null,null,null,null,null,null,null,""]
[null,null,null,null,null,null,null,null,null,null,null,null,null,null,null,null,null,"","","","",null,"","","",null,"","",null,"",null,null,"",null,null,"","","","","","",null,null,null,null,null,null,null,null,null,null,null,null,null,null,null,null,null,null,null,null,null,null,null,null,null,null,null,null,null,null,null,null,"","","",null,null,null,null,null,null,null,null,null,null,null,null,null,"","","",null,null,"","","",null,null,null,"","","","","",null,null,null,null,null,null,null,null,""]
[null,null,null,null,null,null,null,null,null,null,null,null,null,null,null,null,null,"","","","",null,"","","",null,"","",null,"",null,null,"",null,null,"","","","","","",null,null,null,null,null,null,null,null,null,null,null,null,null,null,null,null,null,null,null,null,null,null,null,null,null,null,null,null,null,null,null,null,"","","",null,null,null,null,null,null,null,null,null,null,null,null,null,"","","",null,null,"","","",null,null,null,"","","","","",null,null,null,null,null,null,null,null,""]
[null,null,null,null,null,null,null,null,null,null,null,null,null,null,null,null,null,"","","","",null,"","","",null,"","",null,"",null,null,"",null,null,"","","","","","",null,null,null,null,null,null,null,null,null,null,null,null,null,null,null,null,null,null,null,null,null,null,null,null,null,null,null,null,null,null,null,null,"","","",null,null,null,null,null,null,null,null,null,null,null,null,null,"","","",null,null,"","","",null,null,null,"","","","","",null,null,null,null,null,null,null,null,""]
[null,null,null,null,null,null,null,null,null,null,null,null,null,null,null,null,null,"","","","",null,"","","",null,"","",null,"",null,null,"",null,null,"","","","","","",null,null,null,null,null,null,null,null,null,null,null,null,null,null,null,null,null,null,null,null,null,null,null,null,null,null,null,null,null,null,null,null,"","","",null,null,null,null,null,null,null,null,null,null,null,null,null,"","","",null,null,"","","",null,null,null,"","","","","",null,null,null,null,null,null,null,null,""]
[null,null,null,null,null,null,null,null,null,null,null,null,null,null,null,null,null,"","","","",null,"","","",null,"","",null,"",null,null,"",null,null,"","","","","","",null,null,null,null,null,null,null,null,null,null,null,null,null,null,null,null,null,null,null,null,null,null,null,null,null,null,null,null,null,null,null,null,"","","",null,null,null,null,null,null,null,null,null,null,null,null,null,"","","",null,null,"","","",null,null,null,"","","","","",null,null,null,null,null,null,null,null,""]
[null,null,null,null,null,null,null,null,null,null,null,null,null,null,null,null,null,"","","","",null,"","","",null,"","",null,"",null,null,"",null,null,"","","","","","",null,null,null,null,null,null,null,null,null,null,null,null,null,null,null,null,null,null,null,null,null,null,null,null,null,null,null,null,null,null,null,null,"","","",null,null,null,null,null,null,null,null,null,null,null,null,null,"","","",null,null,"","","",null,null,null,"","","","","",null,null,null,null,null,null,null,null,""]
[null,null,null,null,null,null,null,null,null,null,null,null,null,null,null,null,null,"","","","",null,"","","",null,"","",null,"",null,null,"",null,null,"","","","","","",null,null,null,null,null,null,null,null,null,null,null,null,null,null,null,null,null,null,null,null,null,null,null,null,null,null,null,null,null,null,null,null,"","","",null,null,null,null,null,null,null,null,null,null,null,null,null,"","","",null,null,"","","",null,null,null,"","","","","",null,null,null,null,null,null,null,null,""]
[null,null,null,null,null,null,null,null,null,null,null,null,null,null,null,null,null,"","","","",null,"","","",null,"","",null,"",null,null,"",null,null,"","","","","","",null,null,null,null,null,null,null,null,null,null,null,null,null,null,null,null,null,null,null,null,null,null,null,null,null,null,null,null,null,null,null,null,"","","",null,null,null,null,null,null,null,null,null,null,null,null,null,"","","",null,null,"","","",null,null,null,"","","","","",null,null,null,null,null,null,null,null,""]
[null,null,null,null,null,null,null,null,null,null,null,null,null,null,null,null,null,"","","","",null,"","","",null,"","",null,"",null,null,"",null,null,"","","","","","",null,null,null,null,null,null,null,null,null,null,null,null,null,null,null,null,null,null,null,null,null,null,null,null,null,null,null,null,null,null,null,null,"","","",null,null,null,null,null,null,null,null,null,null,null,null,null,"","","",null,null,"","","",null,null,null,"","","","","",null,null,null,null,null,null,null,null,""]
[null,null,null,null,null,null,null,null,null,null,null,null,null,null,null,null,null,"","","","",null,"","","",null,"","",null,"",null,null,"",null,null,"","","","","","",null,null,null,null,null,null,null,null,null,null,null,null,null,null,null,null,null,null,null,null,null,null,null,null,null,null,null,null,null,null,null,null,"","","",null,null,null,null,null,null,null,null,null,null,null,null,null,"","","",null,null,"","","",null,null,null,"","","","","",null,null,null,null,null,null,null,null,""]
[null,null,null,null,null,null,null,null,null,null,null,null,null,null,null,null,null,"","","","",null,"","","",null,"","",null,"",null,null,"",null,null,"","","","","","",null,null,null,null,null,null,null,null,null,null,null,null,null,null,null,null,null,null,null,null,null,null,null,null,null,null,null,null,null,null,null,null,"","","",null,null,null,null,null,null,null,null,null,null,null,null,null,"","","",null,null,"","","",null,null,null,"","","","","",null,null,null,null,null,null,null,null,""]
[null,null,null,null,null,null,null,null,null,null,null,null,null,null,null,null,null,"","","","",null,"","","",null,"","",null,"",null,null,"",null,null,"","","","","","",null,null,null,null,null,null,null,null,null,null,null,null,null,null,null,null,null,null,null,null,null,null,null,null,null,null,null,null,null,null,null,null,"","","",null,null,null,null,null,null,null,null,null,null,null,null,null,"","","",null,null,"","","",null,null,null,"","","","","",null,null,null,null,null,null,null,null,""]
[null,null,null,null,null,null,null,null,null,null,null,null,null,null,null,null,null,"","","","",null,"","","",null,"","",null,"",null,null,"",null,null,"","","","","","",null,null,null,null,null,null,null,null,null,null,null,null,null,null,null,null,null,null,null,null,null,null,null,null,null,null,null,null,null,null,null,null,"","","",null,null,null,null,null,null,null,null,null,null,null,null,null,"","","",null,null,"","","",null,null,null,"","","","","",null,null,null,null,null,null,null,null,""]
[null,null,null,null,null,null,null,null,null,null,null,null,null,null,null,null,null,"","","","",null,"","","",null,"","",null,"",null,null,"",null,null,"","","","","","",null,null,null,null,null,null,null,null,null,null,null,null,null,null,null,null,null,null,null,null,null,null,null,null,null,null,null,null,null,null,null,null,"","","",null,null,null,null,null,null,null,null,null,null,null,null,null,"","","",null,null,"","","",null,null,null,"","","","","",null,null,null,null,null,null,null,null,""]
[null,null,null,null,null,null,null,null,null,null,null,null,null,null,null,null,null,"","","","",null,"","","",null,"","",null,"",null,null,"",null,null,"","","","","","",null,null,null,null,null,null,null,null,null,null,null,null,null,null,null,null,null,null,null,null,null,null,null,null,null,null,null,null,null,null,null,null,"","","",null,null,null,null,null,null,null,null,null,null,null,null,null,"","","",null,null,"","","",null,null,null,"","","","","",null,null,null,null,null,null,null,null,""]
[null,null,null,null,null,null,null,null,null,null,null,null,null,null,null,null,null,"","","","",null,"","","",null,"","",null,"",null,null,"",null,null,"","","","","","",null,null,null,null,null,null,null,null,null,null,null,null,null,null,null,null,null,null,null,null,null,null,null,null,null,null,null,null,null,null,null,null,"","","",null,null,null,null,null,null,null,null,null,null,null,null,null,"","","",null,null,"","","",null,null,null,"","","","","",null,null,null,null,null,null,null,null,""]
[null,null,null,null,null,null,null,null,null,null,null,null,null,null,null,null,null,"","","","",null,"","","",null,"","",null,"",null,null,"",null,null,"","","","","","",null,null,null,null,null,null,null,null,null,null,null,null,null,null,null,null,null,null,null,null,null,null,null,null,null,null,null,null,null,null,null,null,"","","",null,null,null,null,null,null,null,null,null,null,null,null,null,"","","",null,null,"","","",null,null,null,"","","","","",null,null,null,null,null,null,null,null,""]
[null,null,null,null,null,null,null,null,null,null,null,null,null,null,null,null,null,"","","","",null,"","","",null,"","",null,"",null,null,"",null,null,"","","","","","",null,null,null,null,null,null,null,null,null,null,null,null,null,null,null,null,null,null,null,null,null,null,null,null,null,null,null,null,null,null,null,null,"","","",null,null,null,null,null,null,null,null,null,null,null,null,null,"","","",null,null,"","","",null,null,null,"","","","","",null,null,null,null,null,null,null,null,""]
[null,null,null,null,null,null,null,null,null,null,null,null,null,null,null,null,null,"","","","",null,"","","",null,"","",null,"",null,null,"",null,null,"","","","","","",null,null,null,null,null,null,null,null,null,null,null,null,null,null,null,null,null,null,null,null,null,null,null,null,null,null,null,null,null,null,null,null,"","","",null,null,null,null,null,null,null,null,null,null,null,null,null,"","","",null,null,"","","",null,null,null,"","","","","",null,null,null,null,null,null,null,null,""]
[null,null,null,null,null,null,null,null,null,null,null,null,null,null,null,null,null,"","","","",null,"","","",null,"","",null,"",null,null,"",null,null,"","","","","","",null,null,null,null,null,null,null,null,null,null,null,null,null,null,null,null,null,null,null,null,null,null,null,null,null,null,null,null,null,null,null,null,"","","",null,null,null,null,null,null,null,null,null,null,null,null,null,"","","",null,null,"","","",null,null,null,"","","","","",null,null,null,null,null,null,null,null,""]
[null,null,null,null,null,null,null,null,null,null,null,null,null,null,null,null,null,"","","","",null,"","","",null,"","",null,"",null,null,"",null,null,"","","","","","",null,null,null,null,null,null,null,null,null,null,null,null,null,null,null,null,null,null,null,null,null,null,null,null,null,null,null,null,null,null,null,null,"","","",null,null,null,null,null,null,null,null,null,null,null,null,null,"","","",null,null,"","","",null,null,null,"","","","","",null,null,null,null,null,null,null,null,""]
[null,null,null,null,null,null,null,null,null,null,null,null,null,null,null,null,null,"","","","",null,"","","",null,"","",null,"",null,null,"",null,null,"","","","","","",null,null,null,null,null,null,null,null,null,null,null,null,null,null,null,null,null,null,null,null,null,null,null,null,null,null,null,null,null,null,null,null,"","","",null,null,null,null,null,null,null,null,null,null,null,null,null,"","","",null,null,"","","",null,null,null,"","","","","",null,null,null,null,null,null,null,null,""]
[null,null,null,null,null,null,null,null,null,null,null,null,null,null,null,null,null,"","","","",null,"","","",null,"","",null,"",null,null,"",null,null,"","","","","","",null,null,null,null,null,null,null,null,null,null,null,null,null,null,null,null,null,null,null,null,null,null,null,null,null,null,null,null,null,null,null,null,"","","",null,null,null,null,null,null,null,null,null,null,null,null,null,"","","",null,null,"","","",null,null,null,"","","","","",null,null,null,null,null,null,null,null,""]
[null,null,null,null,null,null,null,null,null,null,null,null,null,null,null,null,null,"","","","",null,"","","",null,"","",null,"",null,null,"",null,null,"","","","","","",null,null,null,null,null,null,null,null,null,null,null,null,null,null,null,null,null,null,null,null,null,null,null,null,null,null,null,null,null,null,null,null,"","","",null,null,null,null,null,null,null,null,null,null,null,null,null,"","","",null,null,"","","",null,null,null,"","","","","",null,null,null,null,null,null,null,null,""]
[null,null,null,null,null,null,null,null,null,null,null,null,null,null,null,null,null,"","","","",null,"","","",null,"","",null,"",null,null,"",null,null,"","","","","","",null,null,null,null,null,null,null,null,null,null,null,null,null,null,null,null,null,null,null,null,null,null,null,null,null,null,null,null,null,null,null,null,"","","",null,null,null,null,null,null,null,null,null,null,null,null,null,"","","",null,null,"","","",null,null,null,"","","","","",null,null,null,null,null,null,null,null,""]
[null,null,null,null,null,null,null,null,null,null,null,null,null,null,null,null,null,"","","","",null,"","","",null,"","",null,"",null,null,"",null,null,"","","","","","",null,null,null,null,null,null,null,null,null,null,null,null,null,null,null,null,null,null,null,null,null,null,null,null,null,null,null,null,null,null,null,null,"","","",null,null,null,null,null,null,null,null,null,null,null,null,null,"","","",null,null,"","","",null,null,null,"","","","","",null,null,null,null,null,null,null,null,""]
[null,null,null,null,null,null,null,null,null,null,null,null,null,null,null,null,null,"","","","",null,"","","",null,"","",null,"",null,null,"",null,null,"","","","","","",null,null,null,null,null,null,null,null,null,null,null,null,null,null,null,null,null,null,null,null,null,null,null,null,null,null,null,null,null,null,null,null,"","","",null,null,null,null,null,null,null,null,null,null,null,null,null,"","","",null,null,"","","",null,null,null,"","","","","",null,null,null,null,null,null,null,null,""]
[null,null,null,null,null,null,null,null,null,null,null,null,null,null,null,null,null,"","","","",null,"","","",null,"","",null,"",null,null,"",null,null,"","","","","","",null,null,null,null,null,null,null,null,null,null,null,null,null,null,null,null,null,null,null,null,null,null,null,null,null,null,null,null,null,null,null,null,"","","",null,null,null,null,null,null,null,null,null,null,null,null,null,"","","",null,null,"","","",null,null,null,"","","","","",null,null,null,null,null,null,null,null,""]
[null,null,null,null,null,null,null,null,null,null,null,null,null,null,null,null,null,"","","","",null,"","","",null,"","",null,"",null,null,"",null,null,"","","","","","",null,null,null,null,null,null,null,null,null,null,null,null,null,null,null,null,null,null,null,null,null,null,null,null,null,null,null,null,null,null,null,null,"","","",null,null,null,null,null,null,null,null,null,null,null,null,null,"","","",null,null,"","","",null,null,null,"","","","","",null,null,null,null,null,null,null,null,""]
[null,null,null,null,null,null,null,null,null,null,null,null,null,null,null,null,null,"","","","",null,"","","",null,"","",null,"",null,null,"",null,null,"","","","","","",null,null,null,null,null,null,null,null,null,null,null,null,null,null,null,null,null,null,null,null,null,null,null,null,null,null,null,null,null,null,null,null,"","","",null,null,null,null,null,null,null,null,null,null,null,null,null,"","","",null,null,"","","",null,null,null,"","","","","",null,null,null,null,null,null,null,null,""]
[null,null,null,null,null,null,null,null,null,null,null,null,null,null,null,null,null,"","","","",null,"","","",null,"","",null,"",null,null,"",null,null,"","","","","","",null,null,null,null,null,null,null,null,null,null,null,null,null,null,null,null,null,null,null,null,null,null,null,null,null,null,null,null,null,null,null,null,"","","",null,null,null,null,null,null,null,null,null,null,null,null,null,"","","",null,null,"","","",null,null,null,"","","","","",null,null,null,null,null,null,null,null,""]
[null,null,null,null,null,null,null,null,null,null,null,null,null,null,null,null,null,"","","","",null,"","","",null,"","",null,"",null,null,"",null,null,"","","","","","",null,null,null,null,null,null,null,null,null,null,null,null,null,null,null,null,null,null,null,null,null,null,null,null,null,null,null,null,null,null,null,null,"","","",null,null,null,null,null,null,null,null,null,null,null,null,null,"","","",null,null,"","","",null,null,null,"","","","","",null,null,null,null,null,null,null,null,""]
[null,null,null,null,null,null,null,null,null,null,null,null,null,null,null,null,null,"","","","",null,"","","",null,"","",null,"",null,null,"",null,null,"","","","","","",null,null,null,null,null,null,null,null,null,null,null,null,null,null,null,null,null,null,null,null,null,null,null,null,null,null,null,null,null,null,null,null,"","","",null,null,null,null,null,null,null,null,null,null,null,null,null,"","","",null,null,"","","",null,null,null,"","","","","",null,null,null,null,null,null,null,null,""]
[null,null,null,null,null,null,null,null,null,null,null,null,null,null,null,null,null,"","","","",null,"","","",null,"","",null,"",null,null,"",null,null,"","","","","","",null,null,null,null,null,null,null,null,null,null,null,null,null,null,null,null,null,null,null,null,null,null,null,null,null,null,null,null,null,null,null,null,"","","",null,null,null,null,null,null,null,null,null,null,null,null,null,"","","",null,null,"","","",null,null,null,"","","","","",null,null,null,null,null,null,null,null,""]
[null,null,null,null,null,null,null,null,null,null,null,null,null,null,null,null,null,"","","","",null,"","","",null,"","",null,"",null,null,"",null,null,"","","","","","",null,null,null,null,null,null,null,null,null,null,null,null,null,null,null,null,null,null,null,null,null,null,null,null,null,null,null,null,null,null,null,null,"","","",null,null,null,null,null,null,null,null,null,null,null,null,null,"","","",null,null,"","","",null,null,null,"","","","","",null,null,null,null,null,null,null,null,""]
[null,null,null,null,null,null,null,null,null,null,null,null,null,null,null,null,null,"","","","",null,"","","",null,"","",null,"",null,null,"",null,null,"","","","","","",null,null,null,null,null,null,null,null,null,null,null,null,null,null,null,null,null,null,null,null,null,null,null,null,null,null,null,null,null,null,null,null,"","","",null,null,null,null,null,null,null,null,null,null,null,null,null,"","","",null,null,"","","",null,null,null,"","","","","",null,null,null,null,null,null,null,null,""]
[null,null,null,null,null,null,null,null,null,null,null,null,null,null,null,null,null,"","","","",null,"","","",null,"","",null,"",null,null,"",null,null,"","","","","","",null,null,null,null,null,null,null,null,null,null,null,null,null,null,null,null,null,null,null,null,null,null,null,null,null,null,null,null,null,null,null,null,"","","",null,null,null,null,null,null,null,null,null,null,null,null,null,"","","",null,null,"","","",null,null,null,"","","","","",null,null,null,null,null,null,null,null,""]
[null,null,null,null,null,null,null,null,null,null,null,null,null,null,null,null,null,"","","","",null,"","","",null,"","",null,"",null,null,"",null,null,"","","","","","",null,null,null,null,null,null,null,null,null,null,null,null,null,null,null,null,null,null,null,null,null,null,null,null,null,null,null,null,null,null,null,null,"","","",null,null,null,null,null,null,null,null,null,null,null,null,null,"","","",null,null,"","","",null,null,null,"","","","","",null,null,null,null,null,null,null,null,""]
[null,null,null,null,null,null,null,null,null,null,null,null,null,null,null,null,null,"","","","",null,"","","",null,"","",null,"",null,null,"",null,null,"","","","","","",null,null,null,null,null,null,null,null,null,null,null,null,null,null,null,null,null,null,null,null,null,null,null,null,null,null,null,null,null,null,null,null,"","","",null,null,null,null,null,null,null,null,null,null,null,null,null,"","","",null,null,"","","",null,null,null,"","","","","",null,null,null,null,null,null,null,null,""]
[null,null,null,null,null,null,null,null,null,null,null,null,null,null,null,null,null,"","","","",null,"","","",null,"","",null,"",null,null,"",null,null,"","","","","","",null,null,null,null,null,null,null,null,null,null,null,null,null,null,null,null,null,null,null,null,null,null,null,null,null,null,null,null,null,null,null,null,"","","",null,null,null,null,null,null,null,null,null,null,null,null,null,"","","",null,null,"","","",null,null,null,"","","","","",null,null,null,null,null,null,null,null,""]
[null,null,null,null,null,null,null,null,null,null,null,null,null,null,null,null,null,"","","","",null,"","","",null,"","",null,"",null,null,"",null,null,"","","","","","",null,null,null,null,null,null,null,null,null,null,null,null,null,null,null,null,null,null,null,null,null,null,null,null,null,null,null,null,null,null,null,null,"","","",null,null,null,null,null,null,null,null,null,null,null,null,null,"","","",null,null,"","","",null,null,null,"","","","","",null,null,null,null,null,null,null,null,""]
[null,null,null,null,null,null,null,null,null,null,null,null,null,null,null,null,null,"","","","",null,"","","",null,"","",null,"",null,null,"",null,null,"","","","","","",null,null,null,null,null,null,null,null,null,null,null,null,null,null,null,null,null,null,null,null,null,null,null,null,null,null,null,null,null,null,null,null,"","","",null,null,null,null,null,null,null,null,null,null,null,null,null,"","","",null,null,"","","",null,null,null,"","","","","",null,null,null,null,null,null,null,null,""]
[null,null,null,null,null,null,null,null,null,null,null,null,null,null,null,null,null,"","","","",null,"","","",null,"","",null,"",null,null,"",null,null,"","","","","","",null,null,null,null,null,null,null,null,null,null,null,null,null,null,null,null,null,null,null,null,null,null,null,null,null,null,null,null,null,null,null,null,"","","",null,null,null,null,null,null,null,null,null,null,null,null,null,"","","",null,null,"","","",null,null,null,"","","","","",null,null,null,null,null,null,null,null,""]
[null,null,null,null,null,null,null,null,null,null,null,null,null,null,null,null,null,"","","","",null,"","","",null,"","",null,"",null,null,"",null,null,"","","","","","",null,null,null,null,null,null,null,null,null,null,null,null,null,null,null,null,null,null,null,null,null,null,null,null,null,null,null,null,null,null,null,null,"","","",null,null,null,null,null,null,null,null,null,null,null,null,null,"","","",null,null,"","","",null,null,null,"","","","","",null,null,null,null,null,null,null,null,""]
[null,null,null,null,null,null,null,null,null,null,null,null,null,null,null,null,null,"","","","",null,"","","",null,"","",null,"",null,null,"",null,null,"","","","","","",null,null,null,null,null,null,null,null,null,null,null,null,null,null,null,null,null,null,null,null,null,null,null,null,null,null,null,null,null,null,null,null,"","","",null,null,null,null,null,null,null,null,null,null,null,null,null,"","","",null,null,"","","",null,null,null,"","","","","",null,null,null,null,null,null,null,null,""]
[null,null,null,null,null,null,null,null,null,null,null,null,null,null,null,null,null,"","","","",null,"","","",null,"","",null,"",null,null,"",null,null,"","","","","","",null,null,null,null,null,null,null,null,null,null,null,null,null,null,null,null,null,null,null,null,null,null,null,null,null,null,null,null,null,null,null,null,"","","",null,null,null,null,null,null,null,null,null,null,null,null,null,"","","",null,null,"","","",null,null,null,"","","","","",null,null,null,null,null,null,null,null,""]
[null,null,null,null,null,null,null,null,null,null,null,null,null,null,null,null,null,"","","","",null,"","","",null,"","",null,"",null,null,"",null,null,"","","","","","",null,null,null,null,null,null,null,null,null,null,null,null,null,null,null,null,null,null,null,null,null,null,null,null,null,null,null,null,null,null,null,null,"","","",null,null,null,null,null,null,null,null,null,null,null,null,null,"","","",null,null,"","","",null,null,null,"","","","","",null,null,null,null,null,null,null,null,""]
[null,null,null,null,null,null,null,null,null,null,null,null,null,null,null,null,null,"","","","",null,"","","",null,"","",null,"",null,null,"",null,null,"","","","","","",null,null,null,null,null,null,null,null,null,null,null,null,null,null,null,null,null,null,null,null,null,null,null,null,null,null,null,null,null,null,null,null,"","","",null,null,null,null,null,null,null,null,null,null,null,null,null,"","","",null,null,"","","",null,null,null,"","","","","",null,null,null,null,null,null,null,null,""]
[null,null,null,null,null,null,null,null,null,null,null,null,null,null,null,null,null,"","","","",null,"","","",null,"","",null,"",null,null,"",null,null,"","","","","","",null,null,null,null,null,null,null,null,null,null,null,null,null,null,null,null,null,null,null,null,null,null,null,null,null,null,null,null,null,null,null,null,"","","",null,null,null,null,null,null,null,null,null,null,null,null,null,"","","",null,null,"","","",null,null,null,"","","","","",null,null,null,null,null,null,null,null,""]
[null,null,null,null,null,null,null,null,null,null,null,null,null,null,null,null,null,"","","","",null,"","","",null,"","",null,"",null,null,"",null,null,"","","","","","",null,null,null,null,null,null,null,null,null,null,null,null,null,null,null,null,null,null,null,null,null,null,null,null,null,null,null,null,null,null,null,null,"","","",null,null,null,null,null,null,null,null,null,null,null,null,null,"","","",null,null,"","","",null,null,null,"","","","","",null,null,null,null,null,null,null,null,""]
[null,null,null,null,null,null,null,null,null,null,null,null,null,null,null,null,null,"","","","",null,"","","",null,"","",null,"",null,null,"",null,null,"","","","","","",null,null,null,null,null,null,null,null,null,null,null,null,null,null,null,null,null,null,null,null,null,null,null,null,null,null,null,null,null,null,null,null,"","","",null,null,null,null,null,null,null,null,null,null,null,null,null,"","","",null,null,"","","",null,null,null,"","","","","",null,null,null,null,null,null,null,null,""]
[null,null,null,null,null,null,null,null,null,null,null,null,null,null,null,null,null,"","","","",null,"","","",null,"","",null,"",null,null,"",null,null,"","","","","","",null,null,null,null,null,null,null,null,null,null,null,null,null,null,null,null,null,null,null,null,null,null,null,null,null,null,null,null,null,null,null,null,"","","",null,null,null,null,null,null,null,null,null,null,null,null,null,"","","",null,null,"","","",null,null,null,"","","","","",null,null,null,null,null,null,null,null,""]
[null,null,null,null,null,null,null,null,null,null,null,null,null,null,null,null,null,"","","","",null,"","","",null,"","",null,"",null,null,"",null,null,"","","","","","",null,null,null,null,null,null,null,null,null,null,null,null,null,null,null,null,null,null,null,null,null,null,null,null,null,null,null,null,null,null,null,null,"","","",null,null,null,null,null,null,null,null,null,null,null,null,null,"","","",null,null,"","","",null,null,null,"","","","","",null,null,null,null,null,null,null,null,""]
[null,null,null,null,null,null,null,null,null,null,null,null,null,null,null,null,null,"","","","",null,"","","",null,"","",null,"",null,null,"",null,null,"","","","","","",null,null,null,null,null,null,null,null,null,null,null,null,null,null,null,null,null,null,null,null,null,null,null,null,null,null,null,null,null,null,null,null,"","","",null,null,null,null,null,null,null,null,null,null,null,null,null,"","","",null,null,"","","",null,null,null,"","","","","",null,null,null,null,null,null,null,null,""]
[null,null,null,null,null,null,null,null,null,null,null,null,null,null,null,null,null,"","","","",null,"","","",null,"","",null,"",null,null,"",null,null,"","","","","","",null,null,null,null,null,null,null,null,null,null,null,null,null,null,null,null,null,null,null,null,null,null,null,null,null,null,null,null,null,null,null,null,"","","",null,null,null,null,null,null,null,null,null,null,null,null,null,"","","",null,null,"","","",null,null,null,"","","","","",null,null,null,null,null,null,null,null,""]
[null,null,null,null,null,null,null,null,null,null,null,null,null,null,null,null,null,"","","","",null,"","","",null,"","",null,"",null,null,"",null,null,"","","","","","",null,null,null,null,null,null,null,null,null,null,null,null,null,null,null,null,null,null,null,null,null,null,null,null,null,null,null,null,null,null,null,null,"","","",null,null,null,null,null,null,null,null,null,null,null,null,null,"","","",null,null,"","","",null,null,null,"","","","","",null,null,null,null,null,null,null,null,""]
[null,null,null,null,null,null,null,null,null,null,null,null,null,null,null,null,null,"","","","",null,"","","",null,"","",null,"",null,null,"",null,null,"","","","","","",null,null,null,null,null,null,null,null,null,null,null,null,null,null,null,null,null,null,null,null,null,null,null,null,null,null,null,null,null,null,null,null,"","","",null,null,null,null,null,null,null,null,null,null,null,null,null,"","","",null,null,"","","",null,null,null,"","","","","",null,null,null,null,null,null,null,null,""]
[null,null,null,null,null,null,null,null,null,null,null,null,null,null,null,null,null,"","","","",null,"","","",null,"","",null,"",null,null,"",null,null,"","","","","","",null,null,null,null,null,null,null,null,null,null,null,null,null,null,null,null,null,null,null,null,null,null,null,null,null,null,null,null,null,null,null,null,"","","",null,null,null,null,null,null,null,null,null,null,null,null,null,"","","",null,null,"","","",null,null,null,"","","","","",null,null,null,null,null,null,null,null,""]
[null,null,null,null,null,null,null,null,null,null,null,null,null,null,null,null,null,"","","","",null,"","","",null,"","",null,"",null,null,"",null,null,"","","","","","",null,null,null,null,null,null,null,null,null,null,null,null,null,null,null,null,null,null,null,null,null,null,null,null,null,null,null,null,null,null,null,null,"","","",null,null,null,null,null,null,null,null,null,null,null,null,null,"","","",null,null,"","","",null,null,null,"","","","","",null,null,null,null,null,null,null,null,""]
[null,null,null,null,null,null,null,null,null,null,null,null,null,null,null,null,null,"","","","",null,"","","",null,"","",null,"",null,null,"",null,null,"","","","","","",null,null,null,null,null,null,null,null,null,null,null,null,null,null,null,null,null,null,null,null,null,null,null,null,null,null,null,null,null,null,null,null,"","","",null,null,null,null,null,null,null,null,null,null,null,null,null,"","","",null,null,"","","",null,null,null,"","","","","",null,null,null,null,null,null,null,null,""]
[null,null,null,null,null,null,null,null,null,null,null,null,null,null,null,null,null,"","","","",null,"","","",null,"","",null,"",null,null,"",null,null,"","","","","","",null,null,null,null,null,null,null,null,null,null,null,null,null,null,null,null,null,null,null,null,null,null,null,null,null,null,null,null,null,null,null,null,"","","",null,null,null,null,null,null,null,null,null,null,null,null,null,"","","",null,null,"","","",null,null,null,"","","","","",null,null,null,null,null,null,null,null,""]
[null,null,null,null,null,null,null,null,null,null,null,null,null,null,null,null,null,"","","","",null,"","","",null,"","",null,"",null,null,"",null,null,"","","","","","",null,null,null,null,null,null,null,null,null,null,null,null,null,null,null,null,null,null,null,null,null,null,null,null,null,null,null,null,null,null,null,null,"","","",null,null,null,null,null,null,null,null,null,null,null,null,null,"","","",null,null,"","","",null,null,null,"","","","","",null,null,null,null,null,null,null,null,""]
[null,null,null,null,null,null,null,null,null,null,null,null,null,null,null,null,null,"","","","",null,"","","",null,"","",null,"",null,null,"",null,null,"","","","","","",null,null,null,null,null,null,null,null,null,null,null,null,null,null,null,null,null,null,null,null,null,null,null,null,null,null,null,null,null,null,null,null,"","","",null,null,null,null,null,null,null,null,null,null,null,null,null,"","","",null,null,"","","",null,null,null,"","","","","",null,null,null,null,null,null,null,null,""]
[null,null,null,null,null,null,null,null,null,null,null,null,null,null,null,null,null,"","","","",null,"","","",null,"","",null,"",null,null,"",null,null,"","","","","","",null,null,null,null,null,null,null,null,null,null,null,null,null,null,null,null,null,null,null,null,null,null,null,null,null,null,null,null,null,null,null,null,"","","",null,null,null,null,null,null,null,null,null,null,null,null,null,"","","",null,null,"","","",null,null,null,"","","","","",null,null,null,null,null,null,null,null,""]
[null,null,null,null,null,null,null,null,null,null,null,null,null,null,null,null,null,"","","","",null,"","","",null,"","",null,"",null,null,"",null,null,"","","","","","",null,null,null,null,null,null,null,null,null,null,null,null,null,null,null,null,null,null,null,null,null,null,null,null,null,null,null,null,null,null,null,null,"","","",null,null,null,null,null,null,null,null,null,null,null,null,null,"","","",null,null,"","","",null,null,null,"","","","","",null,null,null,null,null,null,null,null,""]
[null,null,null,null,null,null,null,null,null,null,null,null,null,null,null,null,null,"","","","",null,"","","",null,"","",null,"",null,null,"",null,null,"","","","","","",null,null,null,null,null,null,null,null,null,null,null,null,null,null,null,null,null,null,null,null,null,null,null,null,null,null,null,null,null,null,null,null,"","","",null,null,null,null,null,null,null,null,null,null,null,null,null,"","","",null,null,"","","",null,null,null,"","","","","",null,null,null,null,null,null,null,null,""]
[null,null,null,null,null,null,null,null,null,null,null,null,null,null,null,null,null,"","","","",null,"","","",null,"","",null,"",null,null,"",null,null,"","","","","","",null,null,null,null,null,null,null,null,null,null,null,null,null,null,null,null,null,null,null,null,null,null,null,null,null,null,null,null,null,null,null,null,"","","",null,null,null,null,null,null,null,null,null,null,null,null,null,"","","",null,null,"","","",null,null,null,"","","","","",null,null,null,null,null,null,null,null,""]
[null,null,null,null,null,null,null,null,null,null,null,null,null,null,null,null,null,"","","","",null,"","","",null,"","",null,"",null,null,"",null,null,"","","","","","",null,null,null,null,null,null,null,null,null,null,null,null,null,null,null,null,null,null,null,null,null,null,null,null,null,null,null,null,null,null,null,null,"","","",null,null,null,null,null,null,null,null,null,null,null,null,null,"","","",null,null,"","","",null,null,null,"","","","","",null,null,null,null,null,null,null,null,""]
[null,null,null,null,null,null,null,null,null,null,null,null,null,null,null,null,null,"","","","",null,"","","",null,"","",null,"",null,null,"",null,null,"","","","","","",null,null,null,null,null,null,null,null,null,null,null,null,null,null,null,null,null,null,null,null,null,null,null,null,null,null,null,null,null,null,null,null,"","","",null,null,null,null,null,null,null,null,null,null,null,null,null,"","","",null,null,"","","",null,null,null,"","","","","",null,null,null,null,null,null,null,null,""]
[null,null,null,null,null,null,null,null,null,null,null,null,null,null,null,null,null,"","","","",null,"","","",null,"","",null,"",null,null,"",null,null,"","","","","","",null,null,null,null,null,null,null,null,null,null,null,null,null,null,null,null,null,null,null,null,null,null,null,null,null,null,null,null,null,null,null,null,"","","",null,null,null,null,null,null,null,null,null,null,null,null,null,"","","",null,null,"","","",null,null,null,"","","","","",null,null,null,null,null,null,null,null,""]
[null,null,null,null,null,null,null,null,null,null,null,null,null,null,null,null,null,"","","","",null,"","","",null,"","",null,"",null,null,"",null,null,"","","","","","",null,null,null,null,null,null,null,null,null,null,null,null,null,null,null,null,null,null,null,null,null,null,null,null,null,null,null,null,null,null,null,null,"","","",null,null,null,null,null,null,null,null,null,null,null,null,null,"","","",null,null,"","","",null,null,null,"","","","","",null,null,null,null,null,null,null,null,""]
[null,null,null,null,null,null,null,null,null,null,null,null,null,null,null,null,null,"","","","",null,"","","",null,"","",null,"",null,null,"",null,null,"","","","","","",null,null,null,null,null,null,null,null,null,null,null,null,null,null,null,null,null,null,null,null,null,null,null,null,null,null,null,null,null,null,null,null,"","","",null,null,null,null,null,null,null,null,null,null,null,null,null,"","","",null,null,"","","",null,null,null,"","","","","",null,null,null,null,null,null,null,null,""]
[null,null,null,null,null,null,null,null,null,null,null,null,null,null,null,null,null,"","","","",null,"","","",null,"","",null,"",null,null,"",null,null,"","","","","","",null,null,null,null,null,null,null,null,null,null,null,null,null,null,null,null,null,null,null,null,null,null,null,null,null,null,null,null,null,null,null,null,"","","",null,null,null,null,null,null,null,null,null,null,null,null,null,"","","",null,null,"","","",null,null,null,"","","","","",null,null,null,null,null,null,null,null,""]
[null,null,null,null,null,null,null,null,null,null,null,null,null,null,null,null,null,"","","","",null,"","","",null,"","",null,"",null,null,"",null,null,"","","","","","",null,null,null,null,null,null,null,null,null,null,null,null,null,null,null,null,null,null,null,null,null,null,null,null,null,null,null,null,null,null,null,null,"","","",null,null,null,null,null,null,null,null,null,null,null,null,null,"","","",null,null,"","","",null,null,null,"","","","","",null,null,null,null,null,null,null,null,""]
[null,null,null,null,null,null,null,null,null,null,null,null,null,null,null,null,null,"","","","",null,"","","",null,"","",null,"",null,null,"",null,null,"","","","","","",null,null,null,null,null,null,null,null,null,null,null,null,null,null,null,null,null,null,null,null,null,null,null,null,null,null,null,null,null,null,null,null,"","","",null,null,null,null,null,null,null,null,null,null,null,null,null,"","","",null,null,"","","",null,null,null,"","","","","",null,null,null,null,null,null,null,null,""]
[null,null,null,null,null,null,null,null,null,null,null,null,null,null,null,null,null,"","","","",null,"","","",null,"","",null,"",null,null,"",null,null,"","","","","","",null,null,null,null,null,null,null,null,null,null,null,null,null,null,null,null,null,null,null,null,null,null,null,null,null,null,null,null,null,null,null,null,"","","",null,null,null,null,null,null,null,null,null,null,null,null,null,"","","",null,null,"","","",null,null,null,"","","","","",null,null,null,null,null,null,null,null,""]
[null,null,null,null,null,null,null,null,null,null,null,null,null,null,null,null,null,"","","","",null,"","","",null,"","",null,"",null,null,"",null,null,"","","","","","",null,null,null,null,null,null,null,null,null,null,null,null,null,null,null,null,null,null,null,null,null,null,null,null,null,null,null,null,null,null,null,null,"","","",null,null,null,null,null,null,null,null,null,null,null,null,null,"","","",null,null,"","","",null,null,null,"","","","","",null,null,null,null,null,null,null,null,""]
[null,null,null,null,null,null,null,null,null,null,null,null,null,null,null,null,null,"","","","",null,"","","",null,"","",null,"",null,null,"",null,null,"","","","","","",null,null,null,null,null,null,null,null,null,null,null,null,null,null,null,null,null,null,null,null,null,null,null,null,null,null,null,null,null,null,null,null,"","","",null,null,null,null,null,null,null,null,null,null,null,null,null,"","","",null,null,"","","",null,null,null,"","","","","",null,null,null,null,null,null,null,null,""]
[null,null,null,null,null,null,null,null,null,null,null,null,null,null,null,null,null,"","","","",null,"","","",null,"","",null,"",null,null,"",null,null,"","","","","","",null,null,null,null,null,null,null,null,null,null,null,null,null,null,null,null,null,null,null,null,null,null,null,null,null,null,null,null,null,null,null,null,"","","",null,null,null,null,null,null,null,null,null,null,null,null,null,"","","",null,null,"","","",null,null,null,"","","","","",null,null,null,null,null,null,null,null,""]
[null,null,null,null,null,null,null,null,null,null,null,null,null,null,null,null,null,"","","","",null,"","","",null,"","",null,"",null,null,"",null,null,"","","","","","",null,null,null,null,null,null,null,null,null,null,null,null,null,null,null,null,null,null,null,null,null,null,null,null,null,null,null,null,null,null,null,null,"","","",null,null,null,null,null,null,null,null,null,null,null,null,null,"","","",null,null,"","","",null,null,null,"","","","","",null,null,null,null,null,null,null,null,""]
[null,null,null,null,null,null,null,null,null,null,null,null,null,null,null,null,null,"","","","",null,"","","",null,"","",null,"",null,null,"",null,null,"","","","","","",null,null,null,null,null,null,null,null,null,null,null,null,null,null,null,null,null,null,null,null,null,null,null,null,null,null,null,null,null,null,null,null,"","","",null,null,null,null,null,null,null,null,null,null,null,null,null,"","","",null,null,"","","",null,null,null,"","","","","",null,null,null,null,null,null,null,null,""]
[null,null,null,null,null,null,null,null,null,null,null,null,null,null,null,null,null,"","","","",null,"","","",null,"","",null,"",null,null,"",null,null,"","","","","","",null,null,null,null,null,null,null,null,null,null,null,null,null,null,null,null,null,null,null,null,null,null,null,null,null,null,null,null,null,null,null,null,"","","",null,null,null,null,null,null,null,null,null,null,null,null,null,"","","",null,null,"","","",null,null,null,"","","","","",null,null,null,null,null,null,null,null,""]
[null,null,null,null,null,null,null,null,null,null,null,null,null,null,null,null,null,"","","","",null,"","","",null,"","",null,"",null,null,"",null,null,"","","","","","",null,null,null,null,null,null,null,null,null,null,null,null,null,null,null,null,null,null,null,null,null,null,null,null,null,null,null,null,null,null,null,null,"","","",null,null,null,null,null,null,null,null,null,null,null,null,null,"","","",null,null,"","","",null,null,null,"","","","","",null,null,null,null,null,null,null,null,""]
[null,null,null,null,null,null,null,null,null,null,null,null,null,null,null,null,null,"","","","",null,"","","",null,"","",null,"",null,null,"",null,null,"","","","","","",null,null,null,null,null,null,null,null,null,null,null,null,null,null,null,null,null,null,null,null,null,null,null,null,null,null,null,null,null,null,null,null,"","","",null,null,null,null,null,null,null,null,null,null,null,null,null,"","","",null,null,"","","",null,null,null,"","","","","",null,null,null,null,null,null,null,null,""]
[null,null,null,null,null,null,null,null,null,null,null,null,null,null,null,null,null,"","","","",null,"","","",null,"","",null,"",null,null,"",null,null,"","","","","","",null,null,null,null,null,null,null,null,null,null,null,null,null,null,null,null,null,null,null,null,null,null,null,null,null,null,null,null,null,null,null,null,"","","",null,null,null,null,null,null,null,null,null,null,null,null,null,"","","",null,null,"","","",null,null,null,"","","","","",null,null,null,null,null,null,null,null,""]
[null,null,null,null,null,null,null,null,null,null,null,null,null,null,null,null,null,"","","","",null,"","","",null,"","",null,"",null,null,"",null,null,"","","","","","",null,null,null,null,null,null,null,null,null,null,null,null,null,null,null,null,null,null,null,null,null,null,null,null,null,null,null,null,null,null,null,null,"","","",null,null,null,null,null,null,null,null,null,null,null,null,null,"","","",null,null,"","","",null,null,null,"","","","","",null,null,null,null,null,null,null,null,""]
[null,null,null,null,null,null,null,null,null,null,null,null,null,null,null,null,null,"","","","",null,"","","",null,"","",null,"",null,null,"",null,null,"","","","","","",null,null,null,null,null,null,null,null,null,null,null,null,null,null,null,null,null,null,null,null,null,null,null,null,null,null,null,null,null,null,null,null,"","","",null,null,null,null,null,null,null,null,null,null,null,null,null,"","","",null,null,"","","",null,null,null,"","","","","",null,null,null,null,null,null,null,null,""]
[null,null,null,null,null,null,null,null,null,null,null,null,null,null,null,null,null,"","","","",null,"","","",null,"","",null,"",null,null,"",null,null,"","","","","","",null,null,null,null,null,null,null,null,null,null,null,null,null,null,null,null,null,null,null,null,null,null,null,null,null,null,null,null,null,null,null,null,"","","",null,null,null,null,null,null,null,null,null,null,null,null,null,"","","",null,null,"","","",null,null,null,"","","","","",null,null,null,null,null,null,null,null,""]
[null,null,null,null,null,null,null,null,null,null,null,null,null,null,null,null,null,"","","","",null,"","","",null,"","",null,"",null,null,"",null,null,"","","","","","",null,null,null,null,null,null,null,null,null,null,null,null,null,null,null,null,null,null,null,null,null,null,null,null,null,null,null,null,null,null,null,null,"","","",null,null,null,null,null,null,null,null,null,null,null,null,null,"","","",null,null,"","","",null,null,null,"","","","","",null,null,null,null,null,null,null,null,""]
[null,null,null,null,null,null,null,null,null,null,null,null,null,null,null,null,null,"","","","",null,"","","",null,"","",null,"",null,null,"",null,null,"","","","","","",null,null,null,null,null,null,null,null,null,null,null,null,null,null,null,null,null,null,null,null,null,null,null,null,null,null,null,null,null,null,null,null,"","","",null,null,null,null,null,null,null,null,null,null,null,null,null,"","","",null,null,"","","",null,null,null,"","","","","",null,null,null,null,null,null,null,null,""]
[null,null,null,null,null,null,null,null,null,null,null,null,null,null,null,null,null,"","","","",null,"","","",null,"","",null,"",null,null,"",null,null,"","","","","","",null,null,null,null,null,null,null,null,null,null,null,null,null,null,null,null,null,null,null,null,null,null,null,null,null,null,null,null,null,null,null,null,"","","",null,null,null,null,null,null,null,null,null,null,null,null,null,"","","",null,null,"","","",null,null,null,"","","","","",null,null,null,null,null,null,null,null,""]
[null,null,null,null,null,null,null,null,null,null,null,null,null,null,null,null,null,"","","","",null,"","","",null,"","",null,"",null,null,"",null,null,"","","","","","",null,null,null,null,null,null,null,null,null,null,null,null,null,null,null,null,null,null,null,null,null,null,null,null,null,null,null,null,null,null,null,null,"","","",null,null,null,null,null,null,null,null,null,null,null,null,null,"","","",null,null,"","","",null,null,null,"","","","","",null,null,null,null,null,null,null,null,""]
[null,null,null,null,null,null,null,null,null,null,null,null,null,null,null,null,null,"","","","",null,"","","",null,"","",null,"",null,null,"",null,null,"","","","","","",null,null,null,null,null,null,null,null,null,null,null,null,null,null,null,null,null,null,null,null,null,null,null,null,null,null,null,null,null,null,null,null,"","","",null,null,null,null,null,null,null,null,null,null,null,null,null,"","","",null,null,"","","",null,null,null,"","","","","",null,null,null,null,null,null,null,null,""]
[null,null,null,null,null,null,null,null,null,null,null,null,null,null,null,null,null,"","","","",null,"","","",null,"","",null,"",null,null,"",null,null,"","","","","","",null,null,null,null,null,null,null,null,null,null,null,null,null,null,null,null,null,null,null,null,null,null,null,null,null,null,null,null,null,null,null,null,"","","",null,null,null,null,null,null,null,null,null,null,null,null,null,"","","",null,null,"","","",null,null,null,"","","","","",null,null,null,null,null,null,null,null,""]
[null,null,null,null,null,null,null,null,null,null,null,null,null,null,null,null,null,"","","","",null,"","","",null,"","",null,"",null,null,"",null,null,"","","","","","",null,null,null,null,null,null,null,null,null,null,null,null,null,null,null,null,null,null,null,null,null,null,null,null,null,null,null,null,null,null,null,null,"","","",null,null,null,null,null,null,null,null,null,null,null,null,null,"","","",null,null,"","","",null,null,null,"","","","","",null,null,null,null,null,null,null,null,""]
[null,null,null,null,null,null,null,null,null,null,null,null,null,null,null,null,null,"","","","",null,"","","",null,"","",null,"",null,null,"",null,null,"","","","","","",null,null,null,null,null,null,null,null,null,null,null,null,null,null,null,null,null,null,null,null,null,null,null,null,null,null,null,null,null,null,null,null,"","","",null,null,null,null,null,null,null,null,null,null,null,null,null,"","","",null,null,"","","",null,null,null,"","","","","",null,null,null,null,null,null,null,null,""]
[null,null,null,null,null,null,null,null,null,null,null,null,null,null,null,null,null,"","","","",null,"","","",null,"","",null,"",null,null,"",null,null,"","","","","","",null,null,null,null,null,null,null,null,null,null,null,null,null,null,null,null,null,null,null,null,null,null,null,null,null,null,null,null,null,null,null,null,"","","",null,null,null,null,null,null,null,null,null,null,null,null,null,"","","",null,null,"","","",null,null,null,"","","","","",null,null,null,null,null,null,null,null,""]
[null,null,null,null,null,null,null,null,null,null,null,null,null,null,null,null,null,"","","","",null,"","","",null,"","",null,"",null,null,"",null,null,"","","","","","",null,null,null,null,null,null,null,null,null,null,null,null,null,null,null,null,null,null,null,null,null,null,null,null,null,null,null,null,null,null,null,null,"","","",null,null,null,null,null,null,null,null,null,null,null,null,null,"","","",null,null,"","","",null,null,null,"","","","","",null,null,null,null,null,null,null,null,""]
[null,null,null,null,null,null,null,null,null,null,null,null,null,null,null,null,null,"","","","",null,"","","",null,"","",null,"",null,null,"",null,null,"","","","","","",null,null,null,null,null,null,null,null,null,null,null,null,null,null,null,null,null,null,null,null,null,null,null,null,null,null,null,null,null,null,null,null,"","","",null,null,null,null,null,null,null,null,null,null,null,null,null,"","","",null,null,"","","",null,null,null,"","","","","",null,null,null,null,null,null,null,null,""]
[null,null,null,null,null,null,null,null,null,null,null,null,null,null,null,null,null,"","","","",null,"","","",null,"","",null,"",null,null,"",null,null,"","","","","","",null,null,null,null,null,null,null,null,null,null,null,null,null,null,null,null,null,null,null,null,null,null,null,null,null,null,null,null,null,null,null,null,"","","",null,null,null,null,null,null,null,null,null,null,null,null,null,"","","",null,null,"","","",null,null,null,"","","","","",null,null,null,null,null,null,null,null,""]
[null,null,null,null,null,null,null,null,null,null,null,null,null,null,null,null,null,"","","","",null,"","","",null,"","",null,"",null,null,"",null,null,"","","","","","",null,null,null,null,null,null,null,null,null,null,null,null,null,null,null,null,null,null,null,null,null,null,null,null,null,null,null,null,null,null,null,null,"","","",null,null,null,null,null,null,null,null,null,null,null,null,null,"","","",null,null,"","","",null,null,null,"","","","","",null,null,null,null,null,null,null,null,""]
[null,null,null,null,null,null,null,null,null,null,null,null,null,null,null,null,null,"","","","",null,"","","",null,"","",null,"",null,null,"",null,null,"","","","","","",null,null,null,null,null,null,null,null,null,null,null,null,null,null,null,null,null,null,null,null,null,null,null,null,null,null,null,null,null,null,null,null,"","","",null,null,null,null,null,null,null,null,null,null,null,null,null,"","","",null,null,"","","",null,null,null,"","","","","",null,null,null,null,null,null,null,null,""]
[null,null,null,null,null,null,null,null,null,null,null,null,null,null,null,null,null,"","","","",null,"","","",null,"","",null,"",null,null,"",null,null,"","","","","","",null,null,null,null,null,null,null,null,null,null,null,null,null,null,null,null,null,null,null,null,null,null,null,null,null,null,null,null,null,null,null,null,"","","",null,null,null,null,null,null,null,null,null,null,null,null,null,"","","",null,null,"","","",null,null,null,"","","","","",null,null,null,null,null,null,null,null,""]
[null,null,null,null,null,null,null,null,null,null,null,null,null,null,null,null,null,"","","","",null,"","","",null,"","",null,"",null,null,"",null,null,"","","","","","",null,null,null,null,null,null,null,null,null,null,null,null,null,null,null,null,null,null,null,null,null,null,null,null,null,null,null,null,null,null,null,null,"","","",null,null,null,null,null,null,null,null,null,null,null,null,null,"","","",null,null,"","","",null,null,null,"","","","","",null,null,null,null,null,null,null,null,""]
[null,null,null,null,null,null,null,null,null,null,null,null,null,null,null,null,null,"","","","",null,"","","",null,"","",null,"",null,null,"",null,null,"","","","","","",null,null,null,null,null,null,null,null,null,null,null,null,null,null,null,null,null,null,null,null,null,null,null,null,null,null,null,null,null,null,null,null,"","","",null,null,null,null,null,null,null,null,null,null,null,null,null,"","","",null,null,"","","",null,null,null,"","","","","",null,null,null,null,null,null,null,null,""]
[null,null,null,null,null,null,null,null,null,null,null,null,null,null,null,null,null,"","","","",null,"","","",null,"","",null,"",null,null,"",null,null,"","","","","","",null,null,null,null,null,null,null,null,null,null,null,null,null,null,null,null,null,null,null,null,null,null,null,null,null,null,null,null,null,null,null,null,"","","",null,null,null,null,null,null,null,null,null,null,null,null,null,"","","",null,null,"","","",null,null,null,"","","","","",null,null,null,null,null,null,null,null,""]
[null,null,null,null,null,null,null,null,null,null,null,null,null,null,null,null,null,"","","","",null,"","","",null,"","",null,"",null,null,"",null,null,"","","","","","",null,null,null,null,null,null,null,null,null,null,null,null,null,null,null,null,null,null,null,null,null,null,null,null,null,null,null,null,null,null,null,null,"","","",null,null,null,null,null,null,null,null,null,null,null,null,null,"","","",null,null,"","","",null,null,null,"","","","","",null,null,null,null,null,null,null,null,""]
[null,null,null,null,null,null,null,null,null,null,null,null,null,null,null,null,null,"","","","",null,"","","",null,"","",null,"",null,null,"",null,null,"","","","","","",null,null,null,null,null,null,null,null,null,null,null,null,null,null,null,null,null,null,null,null,null,null,null,null,null,null,null,null,null,null,null,null,"","","",null,null,null,null,null,null,null,null,null,null,null,null,null,"","","",null,null,"","","",null,null,null,"","","","","",null,null,null,null,null,null,null,null,""]
[null,null,null,null,null,null,null,null,null,null,null,null,null,null,null,null,null,"","","","",null,"","","",null,"","",null,"",null,null,"",null,null,"","","","","","",null,null,null,null,null,null,null,null,null,null,null,null,null,null,null,null,null,null,null,null,null,null,null,null,null,null,null,null,null,null,null,null,"","","",null,null,null,null,null,null,null,null,null,null,null,null,null,"","","",null,null,"","","",null,null,null,"","","","","",null,null,null,null,null,null,null,null,""]
[null,null,null,null,null,null,null,null,null,null,null,null,null,null,null,null,null,"","","","",null,"","","",null,"","",null,"",null,null,"",null,null,"","","","","","",null,null,null,null,null,null,null,null,null,null,null,null,null,null,null,null,null,null,null,null,null,null,null,null,null,null,null,null,null,null,null,null,"","","",null,null,null,null,null,null,null,null,null,null,null,null,null,"","","",null,null,"","","",null,null,null,"","","","","",null,null,null,null,null,null,null,null,""]
[null,null,null,null,null,null,null,null,null,null,null,null,null,null,null,null,null,"","","","",null,"","","",null,"","",null,"",null,null,"",null,null,"","","","","","",null,null,null,null,null,null,null,null,null,null,null,null,null,null,null,null,null,null,null,null,null,null,null,null,null,null,null,null,null,null,null,null,"","","",null,null,null,null,null,null,null,null,null,null,null,null,null,"","","",null,null,"","","",null,null,null,"","","","","",null,null,null,null,null,null,null,null,""]
[null,null,null,null,null,null,null,null,null,null,null,null,null,null,null,null,null,"","","","",null,"","","",null,"","",null,"",null,null,"",null,null,"","","","","","",null,null,null,null,null,null,null,null,null,null,null,null,null,null,null,null,null,null,null,null,null,null,null,null,null,null,null,null,null,null,null,null,"","","",null,null,null,null,null,null,null,null,null,null,null,null,null,"","","",null,null,"","","",null,null,null,"","","","","",null,null,null,null,null,null,null,null,""]
[null,null,null,null,null,null,null,null,null,null,null,null,null,null,null,null,null,"","","","",null,"","","",null,"","",null,"",null,null,"",null,null,"","","","","","",null,null,null,null,null,null,null,null,null,null,null,null,null,null,null,null,null,null,null,null,null,null,null,null,null,null,null,null,null,null,null,null,"","","",null,null,null,null,null,null,null,null,null,null,null,null,null,"","","",null,null,"","","",null,null,null,"","","","","",null,null,null,null,null,null,null,null,""]
[null,null,null,null,null,null,null,null,null,null,null,null,null,null,null,null,null,"","","","",null,"","","",null,"","",null,"",null,null,"",null,null,"","","","","","",null,null,null,null,null,null,null,null,null,null,null,null,null,null,null,null,null,null,null,null,null,null,null,null,null,null,null,null,null,null,null,null,"","","",null,null,null,null,null,null,null,null,null,null,null,null,null,"","","",null,null,"","","",null,null,null,"","","","","",null,null,null,null,null,null,null,null,""]
[null,null,null,null,null,null,null,null,null,null,null,null,null,null,null,null,null,"","","","",null,"","","",null,"","",null,"",null,null,"",null,null,"","","","","","",null,null,null,null,null,null,null,null,null,null,null,null,null,null,null,null,null,null,null,null,null,null,null,null,null,null,null,null,null,null,null,null,"","","",null,null,null,null,null,null,null,null,null,null,null,null,null,"","","",null,null,"","","",null,null,null,"","","","","",null,null,null,null,null,null,null,null,""]
[null,null,null,null,null,null,null,null,null,null,null,null,null,null,null,null,null,"","","","",null,"","","",null,"","",null,"",null,null,"",null,null,"","","","","","",null,null,null,null,null,null,null,null,null,null,null,null,null,null,null,null,null,null,null,null,null,null,null,null,null,null,null,null,null,null,null,null,"","","",null,null,null,null,null,null,null,null,null,null,null,null,null,"","","",null,null,"","","",null,null,null,"","","","","",null,null,null,null,null,null,null,null,""]
[null,null,null,null,null,null,null,null,null,null,null,null,null,null,null,null,null,"","","","",null,"","","",null,"","",null,"",null,null,"",null,null,"","","","","","",null,null,null,null,null,null,null,null,null,null,null,null,null,null,null,null,null,null,null,null,null,null,null,null,null,null,null,null,null,null,null,null,"","","",null,null,null,null,null,null,null,null,null,null,null,null,null,"","","",null,null,"","","",null,null,null,"","","","","",null,null,null,null,null,null,null,null,""]
[null,null,null,null,null,null,null,null,null,null,null,null,null,null,null,null,null,"","","","",null,"","","",null,"","",null,"",null,null,"",null,null,"","","","","","",null,null,null,null,null,null,null,null,null,null,null,null,null,null,null,null,null,null,null,null,null,null,null,null,null,null,null,null,null,null,null,null,"","","",null,null,null,null,null,null,null,null,null,null,null,null,null,"","","",null,null,"","","",null,null,null,"","","","","",null,null,null,null,null,null,null,null,""]
[null,null,null,null,null,null,null,null,null,null,null,null,null,null,null,null,null,"","","","",null,"","","",null,"","",null,"",null,null,"",null,null,"","","","","","",null,null,null,null,null,null,null,null,null,null,null,null,null,null,null,null,null,null,null,null,null,null,null,null,null,null,null,null,null,null,null,null,"","","",null,null,null,null,null,null,null,null,null,null,null,null,null,"","","",null,null,"","","",null,null,null,"","","","","",null,null,null,null,null,null,null,null,""]
[null,null,null,null,null,null,null,null,null,null,null,null,null,null,null,null,null,"","","","",null,"","","",null,"","",null,"",null,null,"",null,null,"","","","","","",null,null,null,null,null,null,null,null,null,null,null,null,null,null,null,null,null,null,null,null,null,null,null,null,null,null,null,null,null,null,null,null,"","","",null,null,null,null,null,null,null,null,null,null,null,null,null,"","","",null,null,"","","",null,null,null,"","","","","",null,null,null,null,null,null,null,null,""]
[null,null,null,null,null,null,null,null,null,null,null,null,null,null,null,null,null,"","","","",null,"","","",null,"","",null,"",null,null,"",null,null,"","","","","","",null,null,null,null,null,null,null,null,null,null,null,null,null,null,null,null,null,null,null,null,null,null,null,null,null,null,null,null,null,null,null,null,"","","",null,null,null,null,null,null,null,null,null,null,null,null,null,"","","",null,null,"","","",null,null,null,"","","","","",null,null,null,null,null,null,null,null,""]
[null,null,null,null,null,null,null,null,null,null,null,null,null,null,null,null,null,"","","","",null,"","","",null,"","",null,"",null,null,"",null,null,"","","","","","",null,null,null,null,null,null,null,null,null,null,null,null,null,null,null,null,null,null,null,null,null,null,null,null,null,null,null,null,null,null,null,null,"","","",null,null,null,null,null,null,null,null,null,null,null,null,null,"","","",null,null,"","","",null,null,null,"","","","","",null,null,null,null,null,null,null,null,""]
[null,null,null,null,null,null,null,null,null,null,null,null,null,null,null,null,null,"","","","",null,"","","",null,"","",null,"",null,null,"",null,null,"","","","","","",null,null,null,null,null,null,null,null,null,null,null,null,null,null,null,null,null,null,null,null,null,null,null,null,null,null,null,null,null,null,null,null,"","","",null,null,null,null,null,null,null,null,null,null,null,null,null,"","","",null,null,"","","",null,null,null,"","","","","",null,null,null,null,null,null,null,null,""]
[null,null,null,null,null,null,null,null,null,null,null,null,null,null,null,null,null,"","","","",null,"","","",null,"","",null,"",null,null,"",null,null,"","","","","","",null,null,null,null,null,null,null,null,null,null,null,null,null,null,null,null,null,null,null,null,null,null,null,null,null,null,null,null,null,null,null,null,"","","",null,null,null,null,null,null,null,null,null,null,null,null,null,"","","",null,null,"","","",null,null,null,"","","","","",null,null,null,null,null,null,null,null,""]
[null,null,null,null,null,null,null,null,null,null,null,null,null,null,null,null,null,"","","","",null,"","","",null,"","",null,"",null,null,"",null,null,"","","","","","",null,null,null,null,null,null,null,null,null,null,null,null,null,null,null,null,null,null,null,null,null,null,null,null,null,null,null,null,null,null,null,null,"","","",null,null,null,null,null,null,null,null,null,null,null,null,null,"","","",null,null,"","","",null,null,null,"","","","","",null,null,null,null,null,null,null,null,""]
[null,null,null,null,null,null,null,null,null,null,null,null,null,null,null,null,null,"","","","",null,"","","",null,"","",null,"",null,null,"",null,null,"","","","","","",null,null,null,null,null,null,null,null,null,null,null,null,null,null,null,null,null,null,null,null,null,null,null,null,null,null,null,null,null,null,null,null,"","","",null,null,null,null,null,null,null,null,null,null,null,null,null,"","","",null,null,"","","",null,null,null,"","","","","",null,null,null,null,null,null,null,null,""]
[null,null,null,null,null,null,null,null,null,null,null,null,null,null,null,null,null,"","","","",null,"","","",null,"","",null,"",null,null,"",null,null,"","","","","","",null,null,null,null,null,null,null,null,null,null,null,null,null,null,null,null,null,null,null,null,null,null,null,null,null,null,null,null,null,null,null,null,"","","",null,null,null,null,null,null,null,null,null,null,null,null,null,"","","",null,null,"","","",null,null,null,"","","","","",null,null,null,null,null,null,null,null,""]
[null,null,null,null,null,null,null,null,null,null,null,null,null,null,null,null,null,"","","","",null,"","","",null,"","",null,"",null,null,"",null,null,"","","","","","",null,null,null,null,null,null,null,null,null,null,null,null,null,null,null,null,null,null,null,null,null,null,null,null,null,null,null,null,null,null,null,null,"","","",null,null,null,null,null,null,null,null,null,null,null,null,null,"","","",null,null,"","","",null,null,null,"","","","","",null,null,null,null,null,null,null,null,""]
[null,null,null,null,null,null,null,null,null,null,null,null,null,null,null,null,null,"","","","",null,"","","",null,"","",null,"",null,null,"",null,null,"","","","","","",null,null,null,null,null,null,null,null,null,null,null,null,null,null,null,null,null,null,null,null,null,null,null,null,null,null,null,null,null,null,null,null,"","","",null,null,null,null,null,null,null,null,null,null,null,null,null,"","","",null,null,"","","",null,null,null,"","","","","",null,null,null,null,null,null,null,null,""]
[null,null,null,null,null,null,null,null,null,null,null,null,null,null,null,null,null,"","","","",null,"","","",null,"","",null,"",null,null,"",null,null,"","","","","","",null,null,null,null,null,null,null,null,null,null,null,null,null,null,null,null,null,null,null,null,null,null,null,null,null,null,null,null,null,null,null,null,"","","",null,null,null,null,null,null,null,null,null,null,null,null,null,"","","",null,null,"","","",null,null,null,"","","","","",null,null,null,null,null,null,null,null,""]
[null,null,null,null,null,null,null,null,null,null,null,null,null,null,null,null,null,"","","","",null,"","","",null,"","",null,"",null,null,"",null,null,"","","","","","",null,null,null,null,null,null,null,null,null,null,null,null,null,null,null,null,null,null,null,null,null,null,null,null,null,null,null,null,null,null,null,null,"","","",null,null,null,null,null,null,null,null,null,null,null,null,null,"","","",null,null,"","","",null,null,null,"","","","","",null,null,null,null,null,null,null,null,""]
[null,null,null,null,null,null,null,null,null,null,null,null,null,null,null,null,null,"","","","",null,"","","",null,"","",null,"",null,null,"",null,null,"","","","","","",null,null,null,null,null,null,null,null,null,null,null,null,null,null,null,null,null,null,null,null,null,null,null,null,null,null,null,null,null,null,null,null,"","","",null,null,null,null,null,null,null,null,null,null,null,null,null,"","","",null,null,"","","",null,null,null,"","","","","",null,null,null,null,null,null,null,null,""]
[null,null,null,null,null,null,null,null,null,null,null,null,null,null,null,null,null,"","","","",null,"","","",null,"","",null,"",null,null,"",null,null,"","","","","","",null,null,null,null,null,null,null,null,null,null,null,null,null,null,null,null,null,null,null,null,null,null,null,null,null,null,null,null,null,null,null,null,"","","",null,null,null,null,null,null,null,null,null,null,null,null,null,"","","",null,null,"","","",null,null,null,"","","","","",null,null,null,null,null,null,null,null,""]
[null,null,null,null,null,null,null,null,null,null,null,null,null,null,null,null,null,"","","","",null,"","","",null,"","",null,"",null,null,"",null,null,"","","","","","",null,null,null,null,null,null,null,null,null,null,null,null,null,null,null,null,null,null,null,null,null,null,null,null,null,null,null,null,null,null,null,null,"","","",null,null,null,null,null,null,null,null,null,null,null,null,null,"","","",null,null,"","","",null,null,null,"","","","","",null,null,null,null,null,null,null,null,""]
[null,null,null,null,null,null,null,null,null,null,null,null,null,null,null,null,null,"","","","",null,"","","",null,"","",null,"",null,null,"",null,null,"","","","","","",null,null,null,null,null,null,null,null,null,null,null,null,null,null,null,null,null,null,null,null,null,null,null,null,null,null,null,null,null,null,null,null,"","","",null,null,null,null,null,null,null,null,null,null,null,null,null,"","","",null,null,"","","",null,null,null,"","","","","",null,null,null,null,null,null,null,null,""]
[null,null,null,null,null,null,null,null,null,null,null,null,null,null,null,null,null,"","","","",null,"","","",null,"","",null,"",null,null,"",null,null,"","","","","","",null,null,null,null,null,null,null,null,null,null,null,null,null,null,null,null,null,null,null,null,null,null,null,null,null,null,null,null,null,null,null,null,"","","",null,null,null,null,null,null,null,null,null,null,null,null,null,"","","",null,null,"","","",null,null,null,"","","","","",null,null,null,null,null,null,null,null,""]
[null,null,null,null,null,null,null,null,null,null,null,null,null,null,null,null,null,"","","","",null,"","","",null,"","",null,"",null,null,"",null,null,"","","","","","",null,null,null,null,null,null,null,null,null,null,null,null,null,null,null,null,null,null,null,null,null,null,null,null,null,null,null,null,null,null,null,null,"","","",null,null,null,null,null,null,null,null,null,null,null,null,null,"","","",null,null,"","","",null,null,null,"","","","","",null,null,null,null,null,null,null,null,""]
[null,null,null,null,null,null,null,null,null,null,null,null,null,null,null,null,null,"","","","",null,"","","",null,"","",null,"",null,null,"",null,null,"","","","","","",null,null,null,null,null,null,null,null,null,null,null,null,null,null,null,null,null,null,null,null,null,null,null,null,null,null,null,null,null,null,null,null,"","","",null,null,null,null,null,null,null,null,null,null,null,null,null,"","","",null,null,"","","",null,null,null,"","","","","",null,null,null,null,null,null,null,null,""]
[null,null,null,null,null,null,null,null,null,null,null,null,null,null,null,null,null,"","","","",null,"","","",null,"","",null,"",null,null,"",null,null,"","","","","","",null,null,null,null,null,null,null,null,null,null,null,null,null,null,null,null,null,null,null,null,null,null,null,null,null,null,null,null,null,null,null,null,"","","",null,null,null,null,null,null,null,null,null,null,null,null,null,"","","",null,null,"","","",null,null,null,"","","","","",null,null,null,null,null,null,null,null,""]
[null,null,null,null,null,null,null,null,null,null,null,null,null,null,null,null,null,"","","","",null,"","","",null,"","",null,"",null,null,"",null,null,"","","","","","",null,null,null,null,null,null,null,null,null,null,null,null,null,null,null,null,null,null,null,null,null,null,null,null,null,null,null,null,null,null,null,null,"","","",null,null,null,null,null,null,null,null,null,null,null,null,null,"","","",null,null,"","","",null,null,null,"","","","","",null,null,null,null,null,null,null,null,""]
[null,null,null,null,null,null,null,null,null,null,null,null,null,null,null,null,null,"","","","",null,"","","",null,"","",null,"",null,null,"",null,null,"","","","","","",null,null,null,null,null,null,null,null,null,null,null,null,null,null,null,null,null,null,null,null,null,null,null,null,null,null,null,null,null,null,null,null,"","","",null,null,null,null,null,null,null,null,null,null,null,null,null,"","","",null,null,"","","",null,null,null,"","","","","",null,null,null,null,null,null,null,null,""]

{"sheet":"C338","index":5,"n_rows":154,"n_cols":23,"rows_kept":154,"cut":false,"hidden":false,"merged":[[13,17,14,17],[13,16,14,16],[1,8,1,16],[2,8,2,16],[50,12,51,12],[50,13,51,13],[6,13,7,15],[13,15,14,15],[50,7,51,7],[49,9,49,11],[50,6,51,6],[50,8,51,8],[50,9,50,11]]}
[]
[null,null,null,null,null,null,null,null,"CENSO EDUCATIVO 2023"]
[null,null,null,null,null,null,null,null,"MATRÍCULA, DOCENTES Y MATERIALES EDUCATIVOS"]
[]
[]
[]
[null,null,null,null,null,"338.  EN ESTE SERVICIO/NIVEL EDUCATIVO, ¿SE DESARROLLAN LAS",null,null,null,null,null,null,null,"339. ÁREA DE INGLÉS"]
[null,null,null,null,null,null,"  COMPETENCIAS DE ARTE Y CULTURA?"]
[]
[null,null,null,null,null,"Sí   ",null,null,null,"No  ",null,null,null,"339.1 ¿CUÁNTAS HORAS SE ASIGNAN AL ÁREA DE INGLÉS?"]
[]
[null,null,null,null,null,null,null,null,null,null,null,null,null,"339.2 ¿CUÁNTOS DOCENTES ESTÁN A CARGO DEL ÁREA DE INGLÉS?"]
[null,null,null,null,null,null,null,"¿Cuántos docentes están asignados"]
[null,null,null,null,null,null,null,"al dictado de la asignatura?",null,null,null,null,null,null,null,"TOTAL","Especialidad de Inglés","Otra Especialidad"]
[]
[null,null,null,null,null,null,null,null,null,null,null,null,null,null,null,{"$f":"Q16+R16","v":0}]
[null,null,null,null,null,null,null,"¿El desarrollo de las competencias en Arte y Cultura"]
[null,null,null,null,null,null,null,"se realizan dentro del horario regular?",null,null,null,null,null,"339.3 ¿RECIBE ATENCIÓN PEDAGÓGICA O SOPORTE TÉCNICO PARA EL ÁREA"]
[null,null,null,null,null,null,null,null,null,null,null,null,null,"DE INGLÉS POR PARTE DE LA UGEL?"]
[null,null,null,null,null,null,null,null,"Sí"]
[null,null,null,null,null,null,null,null,null,null,null,null,null,"Sí   ",null,"No  "]
[null,null,null,null,null,null,null,null,"No"]
[null,null,null,null,null,null,null,null,null,null,null,null,null,"339.4 ¿CUENTA CON CUADERNOS DE TRABAJO DE INGLÉS NUNCA"]
[null,null,null,null,null,null,null,null,null,null,null,null,null,"USADOS PARA ESTUDIANTES?"]
[null,null,null,null,null,null,null,"¿Cuántas horas a la semana se destinan"]
[null,null,null,null,null,null,null,"para el desarrollo de las competencias",null,null,null,null,null,"Sí   ",null,null,"¿Cuántos?  "]
[null,null,null,null,null,null,null,"en Arte y Cultura?"]
[null,null,null,null,null,null,null,null,null,null,null,null,null,"No  "]
[]
[]
[null,null,null,null,null,"DOCENTES QUE DOMINAN LENGUA ORIGINARIA  (Solo para II.EE. Públicas)"]
[]
[null,null,null,null,null,"340. DOCENTES QUE DOMINAN LENGUA ORIGINARIA                                                                   341. JEFE O RESPONSABLE DE TALLER EN EL ÁREA DE  EDUCACIÓN PARA EL TRABAJO."]
[null,null,null,null,null,"340. SEGÚN LO ANOTADO EN LA PREGUNTA 307 ¿CUENTA CON ",null,null,null,null,null,null,null,"341.  ¿CUENTA CON JEFE(S) O RESPONSABLE(S) DE TALLER"]
[null,null,null,null,null,"  DOCENTE(s) QUE DOMINE(N) UNA LENGUA ORIGINARIA?",null,null,null,null,null,null,null,"EN EL ÁREA DE EDUCACIÓN PARA EL TRABAJO?"]
[]
[null,null,null,null,null,null,null,null,null,null,null,null,null,"Sí   ",null,null,"¿Cuántos?",{"$f":"SUM(S40:S46)","v":0}]
[null,null,null,null,null,null,null,"Sí   "]
[null,null,null,null,null,null,null,null,null,null,null,null,null,null,null,null,"Nro","DNI"]
[null,null,null,null,null,null,null,null,null,"¿Cuántos?",null,null,null,null,null,null,1,null,{"$f":"IF(R40<>\"\",1,0)","v":0}]
["GESTIÓN",null,null,null,null,null,null,null,null,null,null,null,null,null,null,null,2,null,0]
[{"$f":"IF(OR(UPPER('C100'!J29)=\"X\",UPPER('C100'!O29)=\"X\"),\"X\",IF(UPPER('C100'!T29)=\"X\",\"\",\"\"))","v":""},null,null,null,null,null,null,"No  ",null,null,"Pase a la sección 341.",null,null,null,null,null,3,null,0]
[{"$f":"IF(OR(UPPER('C100'!J29)=\"X\",UPPER('C100'!O29)=\"X\"),1,IF(UPPER('C100'!T29)=\"X\",3,\"\"))","v":""},null,null,null,null,null,null,null,null,null,null,null,null,null,null,null,4,null,0]
[null,null,null,null,null,null,"Para revisar los docentes que dominan una lengua originaria",null,null,null,null,null,null,null,null,null,5,null,0]
[null,null,null,null,null,null,null,null,null,null,null,null,null,null,null,null,6,null,0]
[null,null,null,null,null,null,null,null,null,null,null,null,null,null,null,null,7,null,0]
[null,null,null,null,null,null,"hacer click en el botón [Verificar]",null,null,null,null,null,null,"No  "]
[null,null,null,null,null,null,null,null,null,null,null,null,null,null,null,null,"Pase a la SECCIÓN 400."]
[]
[null,null,null,null,null,null,null,null,null,"340.1",null,null,"340.2","340.3","340.4","340.5","340.6","340.7"]
[null,null,null,null,null,null,"Nº","Nº de fila registrado en la Sección 300, pregunta 307","Documento de Identidad","Conocimiento de lengua originaria",null,null,"¿Cuenta con estudios en Educación Intercultural Bilingüe?","Solo si respondió SÍ en la pregunta 340.2. ¿Cuál fue el tipo de estudios en EIB?","¿Ha recibido capacita- ción en EIB?","¿El docente enseña en lengua originaria?","¿El material recibido coincide con la lengua que enseña?","¿En la actualidad el Docente se encuentra en el Registro de Docentes Bilingües?"]
["330.3 ¿Cuál fue el tipo de estudios en EIB?","Corr","Gest","Fmt",null,null,null,null,null,"Habla","Lee","Escribe",null,null," SI - NO"," SI - NO"," SI - NO","SI - NO"]
["01: Doctorado",1,{"$f":"$A$43","v":""},{"$f":"IF(G53<>\"\",1,0)","v":0},null,null,{"$f":"IF(AND($B53<=$L$40,$C53=1),$B53,\"\")","v":""},null,null,null,null,null,null,null,null,null,null,null,"",""]
["02: Maestría",{"$f":"B53+1","v":2},"",0,null,null,{"$f":"IF(AND($B54<=$L$40,$C54=1),$B54,\"\")","v":""},null,null,null,null,null,null,null,null,null,null,null,"",""]
["03: Segunda especialidad",{"$f":"B54+1","v":3},"",0,null,null,"",null,null,null,null,null,null,null,null,null,null,null,"",""]
["04: Especialización",4,"",0,null,null,"",null,null,null,null,null,null,null,null,null,null,null,"",""]
["05: Actualización",5,"",0,null,null,"",null,null,null,null,null,null,null,null,null,null,null,"",""]
["06: Otro",6,"",0,null,null,"",null,null,null,null,null,null,null,null,null,null,null,"","","","",""]
[null,7,"",0,null,null,"",null,null,null,null,null,null,null,null,null,null,null,"","","","",""]
[null,8,"",0,null,null,"",null,null,null,null,null,null,null,null,null,null,null,"","","","",""]
["SI",9,"",0,null,null,"",null,null,null,null,null,null,null,null,null,null,null,"","","","",""]
["NO",10,"",0,null,null,"",null,null,null,null,null,null,null,null,null,null,null,"","","","",""]
[null,11,"",0,null,null,"",null,null,null,null,null,null,null,null,null,null,null,"","","","",""]
[null,12,"",0,null,null,"",null,null,null,null,null,null,null,null,null,null,null,"","","","",""]
[null,13,"",0,null,null,"",null,null,null,null,null,null,null,null,null,null,null,"","","","",""]
[null,14,"",0,null,null,"",null,null,null,null,null,null,null,null,null,null,null,"","","","",""]
[null,15,"",0,null,null,"",null,null,null,null,null,null,null,null,null,null,null,"","","","",""]
[null,16,"",0,null,null,"",null,null,null,null,null,null,null,null,null,null,null,"","","","",""]
[null,17,"",0,null,null,"",null,null,null,null,null,null,null,null,null,null,null,"","","","",""]
[null,18,"",0,null,null,"",null,null,null,null,null,null,null,null,null,null,null,"","","","",""]
[null,19,"",0,null,null,"",null,null,null,null,null,null,null,null,null,null,null,"","","","",""]
[null,20,"",0,null,null,"",null,null,null,null,null,null,null,null,null,null,null,"","","","",""]
[null,21,"",0,null,null,"",null,null,null,null,null,null,null,null,null,null,null,"","","","",""]
[null,22,"",0,null,null,"",null,null,null,null,null,null,null,null,null,null,null,"","","","",""]
[null,23,"",0,null,null,"",null,null,null,null,null,null,null,null,null,null,null,"","","","",""]
[null,24,"",0,null,null,"",null,null,null,null,null,null,null,null,null,null,null,"","","","",""]
[null,25,"",0,null,null,"",null,null,null,null,null,null,null,null,null,null,null,"","","","",""]
[null,26,"",0,null,null,"",null,null,null,null,null,null,null,null,null,null,null,"","","","",""]
[null,27,"",0,null,null,"",null,null,null,null,null,null,null,null,null,null,null,"","","","",""]
[null,28,"",0,null,null,"",null,null,null,null,null,null,null,null,null,null,null,"","","","",""]
[null,29,"",0,null,null,"",null,null,null,null,null,null,null,null,null,null,null,"","","","",""]
[null,30,"",0,null,null,"",null,null,null,null,null,null,null,null,null,null,null,"","","","",""]
[null,31,"",0,null,null,"",null,null,null,null,null,null,null,null,null,null,null,"","","","",""]
[null,32,"",0,null,null,"",null,null,null,null,null,null,null,null,null,null,null,"","","","",""]
[null,33,"",{"$f":"IF(G85<>\"\",1,0)","v":0},null,null,"",null,null,null,null,null,null,null,null,null,null,null,"","","","",""]
[null,34,"",0,null,null,"",null,null,null,null,null,null,null,null,null,null,null,"","","","",""]
[null,35,"",0,null,null,"",null,null,null,null,null,null,null,null,null,null,null,"","","","",""]
[null,36,"",0,null,null,"",null,null,null,null,null,null,null,null,null,null,null,"","","","",""]
[null,37,"",0,null,null,"",null,null,null,null,null,null,null,null,null,null,null,"","","","",""]
[null,38,"",0,null,null,"",null,null,null,null,null,null,null,null,null,null,null,"","","","",""]
[null,39,"",0,null,null,"",null,null,null,null,null,null,null,null,null,null,null,"","","","",""]
[null,40,"",0,null,null,"",null,null,null,null,null,null,null,null,null,null,null,"","","","",""]
[null,41,"",0,null,null,"",null,null,null,null,null,null,null,null,null,null,null,"","","","",""]
[null,42,"",0,null,null,"",null,null,null,null,null,null,null,null,null,null,null,"","","","",""]
[null,43,"",0,null,null,"",null,null,null,null,null,null,null,null,null,null,null,"","","","",""]
[null,44,"",0,null,null,"",null,null,null,null,null,null,null,null,null,null,null,"","","","",""]
[null,45,"",0,null,null,"",null,null,null,null,null,null,null,null,null,null,null,"","","","",""]
[null,46,"",0,null,null,"",null,null,null,null,null,null,null,null,null,null,null,"","","","",""]
[null,47,"",0,null,null,"",null,null,null,null,null,null,null,null,null,null,null,"","","","",""]
[null,48,"",0,null,null,"",null,null,null,null,null,null,null,null,null,null,null,"","","","",""]
[null,49,"",0,null,null,"",null,null,null,null,null,null,null,null,null,null,null,"","","","",""]
[null,50,"",0,null,null,"",null,null,null,null,null,null,null,null,null,null,null,"","","","",""]
[null,51,"",0,null,null,"",null,null,null,null,null,null,null,null,null,null,null,"","","","",""]
[null,52,"",0,null,null,"",null,null,null,null,null,null,null,null,null,null,null,"","","","",""]
[null,53,"",0,null,null,"",null,null,null,null,null,null,null,null,null,null,null,"","","","",""]
[null,54,"",0,null,null,"",null,null,null,null,null,null,null,null,null,null,null,"","","","",""]
[null,55,"",0,null,null,"",null,null,null,null,null,null,null,null,null,null,null,"","","","",""]
[null,56,"",0,null,null,"",null,null,null,null,null,null,null,null,null,null,null,"","","","",""]
[null,57,"",0,null,null,"",null,null,null,null,null,null,null,null,null,null,null,"","","","",""]
[null,58,"",0,null,null,"",null,null,null,null,null,null,null,null,null,null,null,"","","","",""]
[null,59,"",0,null,null,"",null,null,null,null,null,null,null,null,null,null,null,"","","","",""]
[null,60,"",0,null,null,"",null,null,null,null,null,null,null,null,null,null,null,"","","","",""]
[null,61,"",0,null,null,"",null,null,null,null,null,null,null,null,null,null,null,"","","","",""]
[null,62,"",0,null,null,"",null,null,null,null,null,null,null,null,null,null,null,"","","","",""]
[null,63,"",0,null,null,"",null,null,null,null,null,null,null,null,null,null,null,"","","","",""]
[null,64,"",0,null,null,"",null,null,null,null,null,null,null,null,null,null,null,"","","","",""]
[null,65,{"$f":"$A$43","v":""},{"$f":"IF(G117<>\"\",1,0)","v":0},null,null,"",null,null,null,null,null,null,null,null,null,null,null,"","","","",""]
[null,66,"",0,null,null,{"$f":"IF(AND($B118<=$L$40,$C118=1),$B118,\"\")","v":""},null,null,null,null,null,null,null,null,null,null,null,"","","","",""]
[null,{"$f":"B118+1","v":67},"",0,null,null,"",null,null,null,null,null,null,null,null,null,null,null,"","","","",""]
[null,68,"",0,null,null,"",null,null,null,null,null,null,null,null,null,null,null,"","","","",""]
[null,69,"",0,null,null,"",null,null,null,null,null,null,null,null,null,null,null,"","","","",""]
[null,70,"",0,null,null,"",null,null,null,null,null,null,null,null,null,null,null,"","","","",""]
[null,71,"",0,null,null,"",null,null,null,null,null,null,null,null,null,null,null,"","","","",""]
[null,72,"",0,null,null,"",null,null,null,null,null,null,null,null,null,null,null,"","","","",""]
[null,73,"",0,null,null,"",null,null,null,null,null,null,null,null,null,null,null,"","","","",""]
[null,74,"",0,null,null,"",null,null,null,null,null,null,null,null,null,null,null,"","","","",""]
[null,75,"",0,null,null,"",null,null,null,null,null,null,null,null,null,null,null,"","","","",""]
[null,76,"",0,null,null,"",null,null,null,null,null,null,null,null,null,null,null,"","","","",""]
[null,77,"",0,null,null,"",null,null,null,null,null,null,null,null,null,null,null,"","","","",""]
[null,78,"",0,null,null,"",null,null,null,null,null,null,null,null,null,null,null,"","","","",""]
[null,79,"",0,null,null,"",null,null,null,null,null,null,null,null,null,null,null,"","","","",""]
[null,80,"",0,null,null,"",null,null,null,null,null,null,null,null,null,null,null,"","","","",""]
[null,81,"",0,null,null,"",null,null,null,null,null,null,null,null,null,null,null,"","","","",""]
[null,82,"",0,null,null,"",null,null,null,null,null,null,null,null,null,null,null,"","","","",""]
[null,83,"",0,null,null,"",null,null,null,null,null,null,null,null,null,null,null,"","","","",""]
[null,84,"",0,null,null,"",null,null,null,null,null,null,null,null,null,null,null,"","","","",""]
[null,85,"",0,null,null,"",null,null,null,null,null,null,null,null,null,null,null,"","","","",""]
[null,86,"",0,null,null,""]
[null,87,"",0,null,null,""]
[null,88,"",0,null,null,""]
[null,89,"",0,null,null,""]
[null,90,"",0,null,null,""]
[null,91,"",0,null,null,""]
[null,92,"",0,null,null,""]
[null,93,"",0,null,null,""]
[null,94,"",0,null,null,""]
[null,95,"",0,null,null,""]
[null,96,"",0,null,null,""]
[null,97,"",0,null,null,""]
[null,98,"",0,null,null,""]
[null,99,"",0,null,null,""]
[null,100,"",0,null,null,"",null,null,null,null,null,null,null,null,null,null,null,"","","","",""]
[null,null,null,null,null,null,null,null,""]
[null,null,null,null,null,null,"-----","-----","-----","-----","-----","-----","-----","-----","-----","-----","-----","-----"]

{"sheet":"C400","index":6,"n_rows":41,"n_cols":30,"rows_kept":41,"cut":false,"hidden":false,"merged":[[28,18,28,22],[28,23,29,23],[28,24,28,28],[26,23,27,28],[26,3,29,4],[26,8,28,8],[26,9,28,9],[26,11,27,16],[26,17,27,22],[26,10,28,10],[26,5,28,7],[32,3,33,4],[34,3,39,4],[1,4,1,14],[2,4,2,14],[6,2,6,17],[30,3,31,4],[28,11,29,11],[28,12,28,16],[28,17,29,17]]}
[]
[null,null,null,null,"CENSO EDUCATIVO 2023"]
[null,null,null,null,"MATRÍCULA, DOCENTES Y MATERIALES EDUCATIVOS"]
[]
[]
[]
["",null,"400. MATERIALES EDUCATIVOS (SOLO GESTIÓN PÚBLICA)"]
[""]
["GESTIÓN",null,"401. ¿DURANTE LOS ÚLTIMOS MESES DEL AÑO 2022 O INICIOS DEL AÑO 2023, EL SERVICIO/NIVEL EDUCATIVO RECIBIÓ LA DOTACIÓN DE"]
[{"$f":"IF(OR(UPPER('C100'!J29)=\"X\",UPPER('C100'!O29)=\"X\"),\"X\",IF(UPPER('C100'!T29)=\"X\",\"\",\"\"))","v":""},null,null,"MATERIALES EDUCATIVOS 2022, PROVISTOS POR EL MINISTERIO DE EDUCACIÓN PARA SU USO EN EL PRESENTE AÑO ESCOLAR?"]
[]
[null,null,null," Sí",null,"No  ",null,null,"Pase a la SECCIÓN 500."]
[]
[]
[null,null,"402. ¿RECIBIÓ CUADERNOS DE TRABAJO EN LENGUA ORIGINARIA?"]
[]
[null,null,null," Sí",null," No  "]
[]
[null,null,null,null,null,"¿CORRESPONDEN A LA LENGUA DE LOS ESTUDIANTES DE ESTE SERVICIO/NIVEL EDUCATIVO?",null,null,null,null,null," Sí  ",null,null," No  "]
[]
[]
[null,null,null,null,null,null,"",null,null,""]
[]
[1]
[null,null,"403. DETALLE DE CUADERNOS DE TRABAJO Y GUÍA DOCENTE CORRESPONDIENTES A LA DOTACIÓN 2023 POR GRADO"]
[]
[null,null,null,"BENEFICIARIO",null,"MATERIAL EDUCATIVO",null,null,"¿Recibió los materiales?","Primera Fecha de Recepción","Última Fecha de Recepción","CANTIDAD DE MATERIAL RECIBIDO",null,null,null,null,null,"CANTIDAD DE MATERIAL SOBRANTE",null,null,null,null,null,"CANTIDAD DE MATERIAL FALTANTE"]
[]
[null,null,null,null,null,null,null,null,null,null,null,"TOTAL RECIBIDO","GRADO DE ESTUDIO",null,null,null,null,"TOTAL SOBRANTE","GRADO DE ESTUDIO",null,null,null,null,"TOTAL FALTANTE","GRADO DE ESTUDIO"]
[null,null,null,null,null,null,null,null," SI - NO","Día / Mes / Año","Día / Mes / Año",null,"1º","2º","3º","4º","5º",null,"1º","2º","3º","4º","5º",null,"1º","2º","3º","4º","5º"]
["01",null,{"$f":"COUNTIF(I31:I40,\"NO\")","v":0},"ESTUDIANTES",null,"Fichas de aprendizaje de Comunicación",null,null,null,null,null,{"$f":"SUM(M31:Q31)","v":0},null,null,null,null,null,{"$f":"SUM(S31:W31)","v":0},null,null,null,null,null,{"$f":"SUM(Y31:AC31)","v":0},null,null,null,null,null,"01"]
["02",null,null,null,null,"Fichas de aprendizaje de Matemática",null,null,null,null,null,{"$f":"SUM(M32:Q32)","v":0},null,null,null,null,null,{"$f":"SUM(S32:W32)","v":0},null,null,null,null,null,{"$f":"SUM(Y32:AC32)","v":0},null,null,null,null,null,"02"]
["03",null,null,"ESTUDIANTES EIB",null,"Cuaderno de trabajo de Comunicación en lengua originaria",null,null,null,null,null,0,null,null,null,null,null,0,null,null,null,null,null,0,null,null,null,null,null,"03"]
["04",null,null,null,null,"Fichas de trabajo de Comunicación en lengua originaria",null,null,null,null,null,0,null,null,null,null,null,0,null,null,null,null,null,0,null,null,null,null,null,"04"]
["05",null,null,"ESTUDIANTE DE SECUNDARIA EN ÁMBITO RURAL (MSE)",null,"Cuaderno de trabajo un tiempo para mi tutoría ",null,null,null,null,null,0,null,null,null,null,null,0,null,null,null,null,null,0,null,null,null,null,null,"05"]
["06",null,null,null,null,"Fichas de autoaprendizaje a distancia ciencia y tecnología",null,null,null,null,null,0,null,null,null,null,null,0,null,null,null,null,null,0,null,null,null,null,null,"06"]
["07",null,null,null,null,"Fichas de autoaprendizaje a distancia ciencias sociales",null,null,null,null,null,0,null,null,null,null,null,0,null,null,null,null,null,0,null,null,null,null,null,"07"]
["08",null,null,null,null,"Fichas de autoaprendizaje a distancia comunicación",null,null,null,null,null,0,null,null,null,null,null,0,null,null,null,null,null,0,null,null,null,null,null,"08"]
["09",null,null,null,null,"Fichas de autoaprendizaje a distancia matemática",null,null,null,null,null,0,null,null,null,null,null,0,null,null,null,null,null,0,null,null,null,null,null,"09"]
["10",null,null,null,null,"Cuaderno de relación para secundaria en alternancia",null,null,null,null,null,0,null,null,null,null,null,0,null,null,null,null,null,0,null,null,null,null,null,"10"]
[null,null,null,null,null,null,null,null,{"$f":"COUNTIF(I31:I40,\"SI\")+COUNTIF(I31:I40,\"NO\")","v":0},null,null,{"$f":"SUM(L31:L40)","v":0},null,null,null,null,null,{"$f":"SUM(R31:R40)","v":0},null,null,null,null,null,{"$f":"SUM(X31:X40)","v":0}]

{"sheet":"C500","index":7,"n_rows":144,"n_cols":22,"rows_kept":144,"cut":false,"hidden":false,"merged":[[15,16,15,18],[14,14,14,15],[15,11,15,13],[19,11,19,13],[20,11,20,13],[18,14,18,15],[17,14,17,15],[16,14,16,15],[23,16,23,18],[21,16,21,18],[15,14,15,15],[16,16,16,18],[17,16,17,18],[19,14,19,15],[20,14,20,15],[18,11,18,13],[19,16,19,18],[20,16,20,18],[18,16,18,18],[16,11,16,13],[17,11,17,13],[21,14,21,15],[21,11,21,13],[22,14,22,15],[9,4,11,9],[9,11,11,13],[12,16,12,18],[13,16,13,18],[13,14,13,15],[12,14,12,15],[12,11,12,13],[13,11,13,13],[14,11,14,13],[9,14,11,15],[9,16,11,18],[14,16,14,18],[143,16,143,20],[95,15,95,17],[96,15,96,17],[72,19,72,20],[73,19,73,20],[74,19,74,20],[75,19,75,20],[114,18,114,21],[115,18,115,21],[120,18,120,21],[116,18,116,21],[117,18,117,21],[118,18,118,21],[119,18,119,21],[114,16,114,17],[120,16,120,17],[111,15,113,15],[111,16,113,17],[115,16,115,17],[116,16,116,17],[117,16,117,17],[118,16,118,17],[119,16,119,17],[111,18,113,21],[119,9,119,10],[114,9,114,10],[115,9,115,10],[116,9,116,10],[117,9,117,10],[118,9,118,10],[119,13,119,14],[141,6,141,10],[54,5,54,10],[110,2,112,6],[110,8,113,8],[98,2,100,6],[98,7,99,10],[73,2,75,6],[73,7,74,10],[85,2,87,6],[85,7,86,10],[111,9,113,10],[120,9,120,10],[120,13,120,14],[114,11,114,12],[115,11,115,12],[116,11,116,12],[117,11,117,12],[118,11,118,12],[119,11,119,12],[120,11,120,12],[114,13,114,14],[115,13,115,14],[116,13,116,14],[117,13,117,14],[118,13,118,14],[24,16,24,18],[22,16,22,18],[22,11,22,13],[34,16,34,19],[111,11,113,12],[111,13,113,14],[64,18,64,21],[84,13,86,17],[84,18,84,21],[41,20,41,21],[24,11,24,13],[41,10,41,13],[24,14,24,15],[40,10,40,13],[23,11,23,13],[23,14,23,15],[46,2,46,10],[32,7,32,8],[40,8,40,9],[41,8,41,9]]}
[null,null,null,null,null,"CENSO EDUCATIVO 2023"]
["Si",null,null,null,null,"MATRÍCULA, DOCENTES Y MATERIALES EDUCATIVOS"]
["No"]
[]
[]
[null,"500. OTROS RECURSOS DISPONIBLES PARA LA ENSEÑANZA (Para II.EE. Públicas y Privadas)"]
[]
[null,null,"501. EQUIPOS Y SERVICIOS QUE DISPONE EL SERVICIO/NIVEL EDUCATIVO"]
[]
[null,null,null,null,"EQUIPOS Y SERVICIOS",null,null,null,null,null,null,"¿Cuántos tiene?",null,null,"¿Cuántos estan operativos?",null,"¿Son utilizados para la enseñanza en interacción con los estudiantes?\nSí - No"]
[null,null,null,null,null,null,null,null,null,null," SI - NO"]
[null,null,null,null,null,null,null,null,null,null,{"$f":"COUNTIF(K13:K25,\"SI\")+COUNTIF(K13:K25,\"NO\")","v":0}]
[null,null,null,null,"01","Televisor(es)",null,null,null,null,null,null,null,null,null,null,null,null,null,null,"SI"]
[null,null,null,null,"02","Computadoras (PC de escritorio)",null,null,null,null,null,null,null,null,null,null,null,null,null,null,"NO"]
[null,null,null,null,"03","Laptop convencionales"]
[null,null,null,null,"04","Laptop XO"]
[null,null,null,null,"05","Servidores (exclusivo del nivel)"]
[null,null,null,null,"06","Tablets"]
[null,null,null,null,"07","Proyector"]
[null,null,null,null,"08","Radiograbadora"]
[null,null,null,null,"09","Reproductor de DVD o Blue Ray"]
[null,null,null,null,"10","Impresoras"]
[null,null,null,null,11,"Pizarras digitales"]
[null,null,null,null,12,"Modem"]
[null,null,null,null,13,"Servicio de Internet"]
[]
[]
[null,null,"502. INICIATIVA RUTA SOLIDARIA: Solo Gestión Pública",null,null,null,null,null,null,null,null,{"$f":"IF(OR(UPPER('C100'!J29)=\"X\",UPPER('C100'!O29)=\"X\"),\"X\",IF(UPPER('C100'!T29)=\"X\",\"\",\"\"))","v":""}]
[null,null,"502.1 ¿CON CUÁNTAS BICICLETAS DE LA INICIATIVA RUTAS SOLIDARIAS (IRS) \n",null,null,null,null,null,null,null,null,null,null,"502.2 TIEMPO PROMEDIO QUE LE TOMA AL ESTUDIANTE LLEGAR DE SU"]
[null,null,null,"CUENTA ESTE SERVICIO/NIVEL EDUCATIVO?",null,null,null,null,null,null,null,null,null,null,"CASA A LA ESCUELA SEGÚN TIPO DE TRANSPORTE"]
[]
[null,null,null,null,null,null,null,null,null,null,null,null,null,null,"A pie"]
[null,null,null,"INDICAR LA CANTIDAD",null,null,null,null,null,null,null,null,null,null,"En bus"]
[null,null,null,null,null,null,null,null,null,null,null,null,null,null,"En bicicleta"]
[null,null,null,null,null,null,null,null,null,null,null,null,null,null,"Otro medio",null,null,null,null,null,null,{"$f":"SUM(U32:U35)","v":0}]
[]
[]
[null,null,"502.3 DURANTE LOS ÚLTIMOS AÑOS, ESTE SERVICIO/NIVEL EDUCATIVO, HA RECIBIDO DOTACIÓN DE BICICLETAS EN EL MARCO DE LA"]
[null,null,null,"INICIATIVA RUTAS SOLIDARIAS?"]
[]
[null,null,null,null," Sí  ",null,null,null,"TOTAL",null,"Última fecha de recepción"]
[null,null,null,null,null,null,null,null,null,null,null,null,null,null,null,"¿Cuántas bicicletas se han"]
[null,null,null,null,null,null,null,null,null,null,null,null,null,null,null,"asignado a los estudiantes?"]
[null,null,null,null,"No  ",null,null,null,"Pase a la pregunta 503"]
[]
[null,null,"SI EL NÚMERO DE BICICLETAS RECIBIDAS POR EL SERVICIO/NIVEL EDUCATIVO ES MAYOR AL NÚMERO DE BICICLETAS ENTREGADAS A LOS ESTUDIANTES, RESPONDER:"]
[null,null,"502.4 ¿PORQUÉ MOTIVO(S) NO SE HA ASIGNADO LA TOTALIDAD DE LAS BICICLETAS A LOS ESTUDIANTES?",null,null,null,null,null,null,null,null,null,null,"503.2. ¿SE LOGRARON REALIZAR LAS ACCIONES DE MANTENIMIENTO DE"]
[null,null,null,null,null,null,null,null,null,null,null,null,null,null,"BICICLETAS CON LOS RECURSOS DE PRONIED?"]
[null,null,null,null,"Los padres no quieren asumir la responsabilidad ante pérdidas"]
[null,null,null,null,"Los padres no quieren poner en riesgo a sus hijos.",null,null,null,null,null,null,null,null," Sí  ",null,"No  "]
[null,null,null,null,"No hay suficientes estudiantes que vivan lejos."]
[null,null,null,null,"Los caminos no permiten el traslado en bicicleta."]
[null,null,null,null,"Las bicicletas se encuentran en malestado."]
[null,null,null,null,"Están esperando que termine la temporada de lluvias."]
[null,null,null,null,"Otro"]
[]
[null,null,null,null,null,null,null,null,null,null,null,null,null,null,null,null,"¿Por qué no se logró realizar el mantenimiento?"]
[null,null,"503.1 ESTE SERVICIO/NIVEL EDUCATIVO, ¿HA RECIBIDO PRESUPUESTO",null,null,null,null,null,null,null,null,null,null,null,null,null,"Marque con una “X” hasta 3 opciones"]
[null,null,null,"DE PRONIED PARA EL MANTENIMIENTO DE BICICLETAS PARA EL"]
[null,null,null,"PRESENTE AÑO 2022 ?",null,null,null,null,null,null,null,null,null,null,null,{"$f":"COUNTIF(Q60:Q65,\"X\")","v":0},null,"No hay mecánicos en la zona."]
[null,null,null,null,null,null,null,null,null,null,null,null,null,null,null,null,null,"El servicio de reparación es muy costoso."]
[null,null,null,null," Sí  ",null,null,null,null,null,null,null,null,null,null,null,null,"No existen repuestos en la zona."]
[null,null,null,null,null,null,null,null,null,null,null,null,null,null,null,null,null,"Los repuestos son muy costosos."]
[null,null,null,null,null,null,null,null,null,null,null,null,null,null,null,null,null,"Aislamiento social"]
[null,null,null,null,"No  ",null,null,null,"Pase a la pregunta 504",null,null,null,null,null,null,null,null,"Otro"]
[]
[]
[]
[null,"INTERNET, SEGURIDAD E IMPLEMENTACION"]
[null,"504. SOBRE EL ACCESO A INTERNET EN LAS INSTALACIONES DONDE",null,null,null,null,null,null,null,null,null,null,"507. SEÑOR(A) DIRECTOR(A) ¿CUAL(ES) DISPOSITIVO(S) INFORMATICO(S)"]
[null,null,"   FUNCIONA EL NIVEL/SERVICIO EDUCATIVO",null,null,null,null,null,null,null,null,null,null,"UTILIZA PRINCIPALMENTE PARA REALIZAR LAS LABORES DE GESTION"]
[null,null,"  Marque con un aspa “X” según corresponda",null,null,null,null,null,null,null,null,null,null,"DE ESTE NIVEL/SERVICIO EDUCATIVO EN SU HOGAR? (PC, LAPTOP, TABLET) ?"]
[null,null,null,null,null,null,null,null,null,null,null,null,null,"Marque con una \"X\", una o más opciones"]
[null,null,"ACTOR",null,null,null,null,"¿Tienen acceso a internet en el Servicio Educativo?",null,null,null,null,null,"",null,"Trabajo con una PC"]
[null,null,null,null,null,null,null,null,null,null,null,null,null,"",null,"Trabajo con una Laptop"]
[null,null,null,null,null,null,null," Sí,"," Sí, la"," Sí,",null,null,null,"",null,"Trabajo con una Tablet"]
[null,null,null,null,null,null,{"$f":"SUM(G78:G81)","v":0},"Todos","Mayoria","Algunos","Ninguno",null,null,"",null,"Trabajo con un Celular"]
[null,null,"Los estudiantes",null,null,null,{"$f":"COUNTIF(H78:K78,\"X\")","v":0},null,null,null,null,null,null,"",null,"No cuenta con dispositivos informáticos"]
[null,null,"El personal directivo",null,null,null,{"$f":"COUNTIF(H79:K79,\"X\")","v":0}]
[null,null,"El personal docente",null,null,null,{"$f":"COUNTIF(H80:K80,\"X\")","v":0}]
[null,null,"El personal administrativo",null,null,null,{"$f":"COUNTIF(H81:K81,\"X\")","v":0},null,null,null,null,null,"508. CON RESPECTO AL CONCOCIMIENTO Y ELABORACION DE CLASES"]
[null,null,null,null,null,null,null,null,null,null,null,null,null,"  VIRTUALES PARA LOS ESTUDIANTES. ¿CUAL ES EL NIVEL DE USO LAS"]
[null,"505. SOBRE EL ACCESO A INTERNET EN EL DOMICILIO",null,null,null,null,null,null,null,null,null,null,null,"  HERRAMIENTAS O PLATAFORMAS TECNOLOGICAS PARA ESTE FIN ?"]
[null,null,"  Marque con un aspa “X” según corresponda"]
[null,null,null,null,null,null,null,null,null,null,null,null,null,"HERRAMIENTA/PLATAFORMA TECNOLÓGICA PARA LA ELABORACIÓN DE CLASES VIRTUALES",null,null,null,null,"Nivel de uso de los docentes"]
[null,null,"ACTOR",null,null,null,null,"¿Tienen acceso a internet en su domicilio?"]
[null,null,null,null,null,null,null,null,null,null,null,null,{"$f":"SUM(M88:M97)","v":0},null,null,null,null,null,"Todos","Mayoria","Algunos","Ninguno"]
[null,null,null,null,null,null,null," Sí,"," Sí, la"," Sí,",null,null,{"$f":"COUNTIF(S88:V88,\"X\")","v":0},"Moodle"]
[null,null,null,null,null,null,{"$f":"SUM(G90:G93)","v":0},"Todos","Mayoria","Algunos","Ninguno",null,0,"Canvas"]
[null,null,"Los estudiantes",null,null,null,{"$f":"COUNTIF(H90:K90,\"X\")","v":0},null,null,null,null,null,0,"Zoom"]
[null,null,"El personal directivo",null,null,null,{"$f":"COUNTIF(H91:K91,\"X\")","v":0},null,null,null,null,null,0,"Meet"]
[null,null,"El personal docente",null,null,null,{"$f":"COUNTIF(H92:K92,\"X\")","v":0},null,null,null,null,null,0,"Teams"]
[null,null,"El personal administrativo",null,null,null,{"$f":"COUNTIF(H93:K93,\"X\")","v":0},null,null,null,null,null,0,"Whatsapp"]
[null,null,null,null,null,null,null,null,null,null,null,null,0,"Facebook/Messenger"]
[null,null,null,null,null,null,null,null,null,null,null,null,0,"Classroom"]
[null,"506. EN EL PRESENTE AÑO, ¿CUENTAN CON PC O LAPTOP EN SU DOMICILIO?",null,null,null,null,null,null,null,null,null,null,0,"Otro 1",{"$f":"CONCATENATE(S96,T96,U96,V96)","v":""}]
[null,null,"Marque con un aspa “X” según corresponda",null,null,null,null,null,null,null,null,null,0,"Otro 2",{"$f":"CONCATENATE(S97,T97,U97,V97)","v":""}]
[]
[null,null,"ACTOR",null,null,null,null,"¿Cuéntan con Pc o Laptop en su domicilio?"]
[]
[null,null,null,null,null,null,null," Sí,"," Sí, la"," Sí,"]
[null,null,null,null,null,null,{"$f":"SUM(G103:G106)","v":0},"Todos","Mayoria","Algunos","Ninguno"]
[null,null,"Los estudiantes",null,null,null,{"$f":"COUNTIF(H103:K103,\"X\")","v":0}]
[null,null,"El personal directivo",null,null,null,{"$f":"COUNTIF(H104:K104,\"X\")","v":0}]
[null,null,"El personal docente",null,null,null,{"$f":"COUNTIF(H105:K105,\"X\")","v":0}]
[null,null,"El personal administrativo",null,null,null,{"$f":"COUNTIF(H106:K106,\"X\")","v":0}]
[]
[]
[null,"509. DURANTE EL 2022 ESTE SERVICIO/NIVEL EDUCATIVO ¿HA RECIBIDO ALGUNA PLAZA DE PERSONAL ADMINISTRATIVO QUE NO HA LOGRADO CUBRIR?"]
[]
[null,null,"CARGO",null,null,null,null,null,"¿Cuán-tos\nrecibio?","¿Porque no ha logrado cubrir la plaza?"]
[null,null,null,null,null,null,null,"Recibio",null,"a. La IE. no requiere al personal asignado",null,"b. No se presentaron postulantes",null,"c. Postulantes sin experiencia",null,"d. UGEL no brinda mayor información","e. Requiero otro tipo de personal",null,"f. Otro\nEspecificar"]
[]
[null,null,null,null,null,null,{"$f":"COUNTIF(H115:H121,\"SI\")+COUNTIF(H115:H121,\"NO\")","v":0}]
[null,null,"Coordinador Administrativo"]
[null,null,"Secretaria(o)"]
[null,null,"Oficinista"]
[null,null,"Trabajador guardianía y/o vigilancia"]
[null,null,"Trabajador limpieza y mantenimiento"]
[null,null,"Auxiliar de Biblioteca"]
[null,null,"Auxiliar de Laboratorio"]
[]
[]
[null,"600. EDUCACIÓN FÍSICA Y DEPORTE - Para II.EE. Públicas y Privadas"]
[]
[null,"A. SITUACIÓN DEL DEPORTE ESCOLAR"]
[null,"601. DURANTE EL AÑO 2020, EN ESTE NIVEL/SERVICIO EDUCATIVO, ¿SE",null,null,null,null,null,null,null,null,null,null,"602. ¿EL SERVICIO/NIVEL EDUCATIVO CUENTA CON LA ASIGNATURA DE"]
[null,null,"FOMENTÓ LA REALIZACIÓN DE ACTIVIDADES FÍSICAS O DEPORTE, CON LA",null,null,null,null,null,null,null,null,null,null,"  EDUCACIÓN FÍSICA?"]
[null,null,"FINALIDAD DE PRIORIZAR EL CUIDADO DEL ESTUDIANTE Y SU BIENESTAR",null,null,null,null,null,null,null,null,null,null,null,null,null,"¿Cuántas horas a la semana se dictan?"]
[null,null,"INTEGRAL?",null,null,null,null,null,null,null,null,null,null," Sí"]
[null,null,null,null,null,null,null,null,null,null,null,null,null,null,null,null,"¿Cuántos docentes están asignados al "]
[null,null,null,null,null,null,null,null,null,null,null,null,null,null,null,null,"dictado del curso?"]
[null,null," Sí",null,"No  ",null,null,null,null,null,null,null,null," No"]
[]
[null,null,null,null,null,null,null,null,null,null,null,null,"603. EN EL PRESENTE AÑO 2022, ¿ESTE NIVEL/SERVICIO EDUCATIVO TIENE"]
[null,null,null,null,null,null,null,null,null,null,null,null,null,"PLANIFICADO LA EJECUCIÓN DE TALLERES COMPLEMENTARIOS?"]
[null,null,null,"Marque con una “X”, una o más opciones"]
[null,null,null,null,"Actividades de movimiento",null,null,null,null,null,null,null,null," Sí",null,"No  "]
[null,null,null,null,"Actividades de deporte"]
[null,null,null,null,"Actividades artístico culturales"]
[null,null,null,null,"Actividades complementarias de encuentro con la comunidad educativa",null,null,null,null,null,null,null,null,null,null,"Expresarte"]
[null,null,null,null,"Otras Actividades",null,null,null,null,null,null,null,null,null,null,"Orquestando"]
[null,null,null,null,null,null,null,null,null,null,null,null,null,null,null,"Talleres deportivos recreativos"]
[null,null,null,null,null,null,null,null,null,null,null,null,null,null,null,"Otro"]

{"sheet":"C700","index":8,"n_rows":310,"n_cols":26,"rows_kept":310,"cut":false,"hidden":false,"merged":[[1,7,1,22],[2,7,2,22],[263,10,264,12],[295,9,295,10],[265,11,266,12],[265,10,266,10],[267,11,267,12],[268,11,268,12],[269,11,269,12],[238,7,238,8],[229,9,229,12],[230,9,232,9],[230,10,232,10],[230,11,232,11],[230,12,232,12],[229,6,232,8],[11,16,11,22],[12,16,12,22],[13,16,13,22],[17,16,17,22],[14,23,15,23],[16,23,17,23],[48,12,50,12],[22,23,24,23],[14,16,14,22],[12,23,13,23],[18,23,19,23],[41,12,42,12],[31,12,32,12],[37,12,38,12],[39,19,39,21],[192,16,196,18],[22,4,22,5],[20,23,21,23],[16,16,16,22],[30,19,30,21],[146,18,146,19],[71,19,71,22],[86,20,88,20],[100,8,100,10],[27,12,28,12],[48,4,52,5],[31,4,34,5],[35,4,36,5],[37,4,47,5],[44,12,45,12],[46,12,47,12],[86,23,87,24],[88,23,89,23],[88,24,89,24],[86,21,87,22],[88,22,89,22],[88,21,89,21],[181,19,181,22],[192,22,192,24],[192,19,192,21],[193,21,195,21],[142,22,142,24],[193,20,196,20],[159,22,159,24],[193,22,195,22],[298,9,298,10],[298,11,298,12],[23,7,24,11],[25,7,26,11],[27,7,28,11],[48,7,49,11],[51,7,52,11],[217,10,217,11],[208,7,208,9],[202,10,203,10],[202,5,203,9],[23,4,30,5],[29,12,30,12],[23,12,24,12],[25,12,26,12],[51,12,52,12],[86,16,88,19],[306,19,306,22],[58,22,58,24],[151,7,151,10],[193,7,193,9],[255,8,255,11],[293,11,293,12],[267,20,267,22],[225,21,225,23],[193,23,196,23],[193,24,195,24],[193,19,195,19],[205,16,205,20],[200,17,200,18],[211,18,211,20],[221,19,221,23]]}
[]
[null,null,null,null,null,null,null,"CENSO EDUCATIVO 2023"]
[null,"Si",null,null,null,null,null,"MATRÍCULA, DOCENTES Y MATERIALES EDUCATIVOS"]
[null,"No"]
[]
[]
[null,null,"700. FORTALECIMIENTO DE LA GESTIÓN"]
[]
[null,null,"701. ESTE NIVEL/SERVICIO EDUCATIVO ¿COORDINA ALGUNA ACCIÓN CON EL GOBIERNO LOCAL",null,null,null,null,null,null,null,null,null,null,null,null,"704. SOBRE LA GESTIÓN DEL RIESGO DE DESASTRES Y LA SEGURIDAD EN ESTE"]
[null,null,null,"(DISTRITAL O PROVINCIAL)  PARA MEJORAR LA PRESTACIÓN DEL SERVICIO EDUCATIVO?",null,null,null,null,null,null,null,null,null,null,null,null,"NIVEL/ SERVICIO EDUCATIVO, ATIENDA LAS SIGUIENTES PREGUNTAS:"]
[]
[null,null,null,null,null,null,null,null,null,null,null,null,null,null,null,{"$f":"SUM(P13:P25)","v":0},"PREGUNTA",null,null,null,null,null,null,"RESPUESTA"]
[null,null,"1: Siempre",null,"Sí",null,null,null,"No",null,null,"Pase a la pregunta 703.",null,null,null,{"$f":"IF(X13<>\"\",1,0)","v":0},"¿Incorpora la Gestión del Riesgo de Desastres en los instrumentos de"]
[null,null,"2: Casi Siempre",null,null,null,null,null,null,null,null,null,null,null,null,null,"Gestión y Planificación Curricular para el desarrollo de una cultura de …"]
[null,null,"3: A Veces",null,null,null,"Marque con una “X”, una opción",null,null,null,null,null,null,null,null,{"$f":"IF(X15<>\"\",1,0)","v":0},"¿El Plan de Gestión de Riesgo de Desastres contiene acciones con"]
[null,null,"4: Casi Nunca",null,null,null,"Con Municipalidad Distrital",null,null,null,null,null,null,null,null,null,"enfásis en la contingencia ante la emergencia sanitaria por Covid19?"]
[null,null,"5: Nunca",null,null,null,"Con Municipalidad Provincial",null,null,null,null,null,null,null,null,{"$f":"IF(X17<>\"\",1,0)","v":0},"Las zonas seguras para el desplazamiento de los miembros de la comu-"]
[null,null,null,null,null,null,"Con ambas",null,null,null,null,null,null,null,null,null,"nidad educativa y las rutas de evacuación ¿se encuentran señalizadas?"]
[null,null,null,null,null,null,null,null,null,null,null,null,null,null,null,{"$f":"IF(X19<>\"\",1,0)","v":0},"¿Se cuenta con el mínimo de dispositivos de seguridad"]
[null,null,"702. FRECUENCIA DE LA ACCION QUE AYUDA EL GOBIERNO LOCAL PARA MEJORAR",null,null,null,null,null,null,null,null,null,null,null,null,null,"para situaciones de emergencia y desastres?"]
[null,null,null,"LA PRESTACIÓN DEL SERVICIO",null,null,null,null,null,null,null,null,null,null,null,{"$f":"IF(X21<>\"\",1,0)","v":0},"¿Fomenta la participación, compromiso y responsabilidad"]
[null,null,null,null,null,null,null,null,null,null,null,null,null,null,null,null,"sobre la Gestión del Riesgo de Desastres en la comunidad educativa?"]
[null,null,null,{"$f":"SUM(D24:D53)","v":0},"COMPONENTE",null,"ACCIÓN",null,null,null,null,null,"FRECUENCIA",null,null,{"$f":"IF(X23<>\"\",1,0)","v":0},"¿Desarrolla actividades de soporte socioemocional como el autocuidado,"]
[null,null,null,{"$f":"IF(M24<>\"\",1,0)","v":0},"Infraes- tructura",null,"01","Proyecto de inversión pública para el mejoramiento o ampliación del local escolar",null,null,null,null,null,null,null,null,"la autoprotección y la resilencia en la comunidad educativa como"]
[null,null,null,null,null,null,null,null,null,null,null,null,null,null,null,null,"respuesta ante situaciones de emergencias y desastres?"]
[null,null,null,{"$f":"IF(M26<>\"\",1,0)","v":0},null,null,"02","Apoyo y asistencia técnica para el uso de recursos de mantenimiento preventivo",null,null,null,null,null,null,null,null,null,null,null,null,null,null,null,{"$f":"COUNTIF(X13:X25,\"SI\")+COUNTIF(X13:X25,\"NO\")","v":0}]
[]
[null,null,null,{"$f":"IF(M28<>\"\",1,0)","v":0},null,null,"03","Gestiones para el acceso a servicios básicos de IIEE   ( Agua, alcantarillado, luz)",null,null,null,null,null,null,null,"705. ¿CUÁL ES LA PRIMERA PALABRA QUE SE LE VIENE A LA MENTE CUANDO"]
[null,null,null,null,null,null,null,null,null,null,null,null,null,null,null,null,"PIENSA O ESCUCHA ‘’MINISTERIO DE EDUCACIÓN’’"]
[null,null,null,{"$f":"IF(M30<>\"\",1,0)","v":0},null,null,"04","Adquisición de mobiliario y equipamiento para la IIEE"]
[null,null,null,null,null,null,null,null,null,null,null,null,null,null,null,null,"Escriba solo una palabra"]
[null,null,null,{"$f":"IF(M32<>\"\",1,0)","v":0},"Aprendizajes",null,"05","Proyecto de inversión pública para la mejora de los aprendizajes"]
[]
[null,null,null,{"$f":"IF(M34<>\"\",1,0)","v":0},null,null,"06","Programas de reforzamiento escolar",null,null,null,null,null,null,null,"706. ¿CON CUÁL DE LOS SIGUIENTES LEMAS O FRASES ASOCIA AL MINEDU?"]
[null,null,null,{"$f":"IF(M35<>\"\",1,0)","v":0},null,null,"07","Apoyo con material educativo",null,null,null,null,null,null,null,null,null,"Marque con una “X”, una opción"]
[null,null,null,{"$f":"IF(M36<>\"\",1,0)","v":0},"Docentes",null,"08","Contratación de docentes"]
[null,null,null,{"$f":"IF(M37<>\"\",1,0)","v":0},null,null,"09","Talleres o cursos de capacitación",null,null,null,null,null,null,null,null,null,null,"Mejor educación, mejores peruanos"]
[null,null,null,{"$f":"IF(M38<>\"\",1,0)","v":0},"Gestión",null,"10","Articulación local con actores públicos y privados a nivel local",null,null,null,null,null,null,null,null,null,null,"La educación no para"]
[null,null,null,null,null,null,null,null,null,null,null,null,null,null,null,null,null,null,"No asocio un lema específico al Minedu"]
[null,null,null,{"$f":"IF(M40<>\"\",1,0)","v":0},null,null,"11","Atención de casos en DEMUNA",null,null,null,null,null,null,null,null,null,null,"Otro"]
[null,null,null,{"$f":"IF(M41<>\"\",1,0)","v":0},null,null,"12","Articulación con UGEL y DRE de su ámbito"]
[null,null,null,{"$f":"IF(M42<>\"\",1,0)","v":0},null,null,"13","Gestiones para la instalación de servicios básicos de conectividad"]
[null,null,null,null,null,null,null,null,null,null,null,null,null,null,null,"707. ¿CON QUÉ EMOCIONES ASOCIA CON EL MINEDU?"]
[null,null,null,{"$f":"IF(M44<>\"\",1,0)","v":0},null,null,"14","Apoyo con alimentación para estudiantes",null,null,null,null,null,null,null,null,null,"Marque con una “X”, una opción"]
[null,null,null,{"$f":"IF(M45<>\"\",1,0)","v":0},null,null,"15","Vivienda y alimentación para docentes (zonas rurales, fronteras, etc)"]
[null,null,null,null,null,null,null,null,null,null,null,null,null,null,null,null,null,null,"Positivas (Alegría, entusiasmo)"]
[null,null,null,{"$f":"IF(M47<>\"\",1,0)","v":0},null,null,"16","Apoyo con movilidad local para estudiantes y docentes",null,null,null,null,null,null,null,null,null,null,"Neutra"]
[null,null,null,null,null,null,null,null,null,null,null,null,null,null,null,null,null,null,"Negativas (Tristeza, decepción, desconfianza, otras)"]
[null,null,null,{"$f":"IF(M49<>\"\",1,0)","v":0},"Recuperación",null,"17","Promoción de acciones comunitarias para identificación de estudiantes que interrumpen estudios"]
[]
[null,null,null,null,null,null,null,null,null,null,null,null,null,null,null,"708. ¿QUÉ CANAL DE COMUNICACIÓN UTILIZA PARA INFORMARSE SOBRE LAS"]
[null,null,null,{"$f":"IF(M52<>\"\",1,0)","v":0},null,null,"18","Impulso del registro nominal de estudiantes en Alerta Escuela por parte de directores de II.EE",null,null,null,null,null,null,null,null,"LAS NOVEDADES DEL MINEDU?"]
[]
[null,null,null,null,null,null,null,null,null,null,null,null,null,{"$f":"COUNTIF(M24:M53,\"5: Nunca\")","v":0},null,null,null,"Marque con una “X”, una o más opciones"]
[null,null,"703. ¿iNCORPORA LA SEGURIDAD Y DEFENSA NACIONAL EN LOS INSTRUMENTOS"]
[null,null,null,"DE GESTIÓN Y PLANIFICACIÓN CURRICULAR PARA EL DESARROLLO DE UNA",null,null,null,null,null,null,null,null,null,null,null,null,null,null,"SIAGIE",null,null,"Programas radiales"]
[null,null,null,"CULTURA DE PAZ, Y FORTALECIMIENTO DE LA IDENTIDAD NACIONAL?",null,null,null,null,null,null,null,null,null,null,null,null,null,null,"Redes sociales",null,null,"Mensajes de texto"]
[null,null,null,null,null,null,null,null,null,null,null,null,null,null,null,null,null,null,"Portales del Minedu",null,null,"Correo electrónico"]
[null,null,null,null,"Sí",null,null,null,"No",null,null,null,null,null,null,null,null,null,"Programas televisivos",null,null,"Otro"]
[]
[]
[]
[null,null,"709. ¿CUÁLES SON LOS PRINCIPALES TEMAS QUE REQUIERE COMO CAPACITACIÓN PARA MEJORAR SU DESEMPEÑO ",null,null,null,null,null,null,null,null,null,null,null,null,"713. SEÑOR(A) DIRECTOR(A), DURANTE EL 2022, ¿EL PERSONAL AUXILIAR DE EDUCACIÓN DESEMPEÑÓ"]
[null,null,null,"COMO DIRECTOR(A)?",null,null,null,"Marque con una “X”, hasta 4 opciones",null,null,null,null,null,null,null,null,"O DESEMPEÑA OTRAS LABORES ADICIONALES A SU ROL COMO AUXILIAR DE EDUCACIÓN?"]
[]
[null,null,null,{"$f":"COUNTIF(E66:E73,\"x\")","v":0},null,"Estrategias y didáctica de las áreas de aprendizaje",null,null,null,null,null,null,null,null,null,null,null,"Marque con una “X”, una o más opciones"]
[null,null,null,null,null,"Evaluación de aprendizajes"]
[null,null,null,null,null,"Manejo de herramientas TIC y ofimáticas",null,null,null,null,null,null,null,null,null,null,null,null,"No realizó/realiza otras labores adicionales en la IE"]
[null,null,null,null,null,"Gestión del duelo y del bienestar socioemocional",null,null,null,null,null,null,null,null,null,null,null,null,"Trabaja como docente"]
[null,null,null,null,null,"Habilidades blandas para la gestión del equipo de docentes",null,null,null,null,null,null,null,null,null,null,null,null,"Trabaja como personal administrativo en la IE"]
[null,null,null,null,null,"Relacionamiento institucional y gestión de alianzas",null,null,null,null,null,null,null,null,null,null,null,null,"Trabaja en otra IE"]
[null,null,null,null,null,"Participación estudiantil",null,null,null,null,null,null,null,null,null,null,null,null,"Otro"]
[null,null,null,null,null,null,null,null,null,null,null,null,null,null,null,null,null,null,"No cuento con personal auxiliar de educación"]
[]
[null,null,"710. ¿DURANTE EL 2022 Y HASTA LA FECHA DEL CENSO 2023, ¿HA REALIZADO ACCIONES EN FAVOR DEL"]
[null,null,null,"BIENESTAR SOCIOEMOCIONAL DE LOS ESTUDIANTES Y/O DE LOS DOCENTES Y/O FAMILIAS?",null,null,null,null,null,null,null,null,null,null,null,"714. SEÑOR(A) DIRECTOR(A), ¿ESTE SERVICIO/NIVEL EDUCATIVO QUE USTED DIRIGE CUENTA CON"]
[null,null,null,null,null,null,null,null,null,null,null,null,null,null,null,null,"PERSONAL ADMINISTRATIVO?"]
[null,null,null,null,"Sí",null,null,null,"No"]
[null,null,null,null,null,null,null,null,null,null,null,null,null,null,null,null,"Sí",null,null," No  ","",null,"Pase a la pregunta 719"]
[]
[null,null,null,null,"¿Qué acciones realizo?"]
[null,null,null,null,"Marque con una “X”, una o más opciones",null,null,null,null,null,null,null,null,null,null,"715. SOBRE EL PERSONAL ADMINISTRATIVO QUE LABORA EN ESTE SERVICIO/NIVEL EDUCATIVO, "]
[null,null,null,null,null,null,null,null,null,null,null,null,null,null,null,null,"COMPLETA PARA CADA CARGO/PUESTO LOS SIGUIENTES DATOS."]
[null,null,null,null,null,"Elaborar un diagnóstico del estado del bienestar socioemocional de estudiantes"]
[null,null,null,null,null,"Elaborar un diagnóstico del estado del bienestar socioemocional de docentes",null,null,null,null,null,null,null,null,null,null,"Seleccikone “Sí” o “No” para cada pregunta y consigna las cantidades donde corresponda"]
[null,null,null,null,null,"Ejecutar acciones en la IE para trabajar específicamente gestión de emociones"]
[null,null,null,null,null,"Generar espacios de diálogo en la comunidad educat. con docentes y/o familias",null,null,null,null,null,null,null,null,null,null,"Puestos Administrativos",null,null,null,"¿Cuenta con este tipo de personal?","¿Ha sido capacitado\ndurante el 2022?",null,"La cantidad de personal que tiene ¿es suﬁciente?"]
[null,null,null,null,null,"Promover espacios específicamente para abordar gestión de emociones con familias"]
[null,null,null,null,null,"Ejecutar acciones en el marco de la Tutoría y Orientación Educativa (TOE)",null,null,null,null,null,null,null,null,null,null,null,null,null,null,null,"Si  / No","¿Cuántas veces?","Si  / No","¿Qué cantidad seria suficiente?"]
[null,null,null,null,null,null,null,null,null,null,null,null,null,null,null,null,null,null,null,{"$f":"COUNTIF(U91:U97,\"NO\")","v":0},"Si  / No"]
[null,null,"711. SEÑOR(A) DIRECTOR(A), DURANTE EL 2022 Y HASTA LA FECHA DEL CENSO 2023,",null,null,null,null,null,null,null,null,null,null,null,null,"01","a. Coordinador / Administrativo"]
[null,null,null,"¿A TRAVÉS DE QUÉ MEDIO RECIBIÓ LA CAPACITACIÓN EL PERSONAL AUXILIAR DE EDUCACIÓN?",null,null,null,null,null,null,null,null,null,null,null,"02","b. Secretaria(o)"]
[null,null,null,null,null,null,null,null,null,null,null,null,null,null,null,"03","c. Oficinista"]
[null,null,null,null,"Marque con una “X”, una o más opciones",null,null,null,null,null,null,null,null,null,null,"04","d. Trabajador guardianía y/o vigilancia"]
[null,null,null,null,null,null,null,null,null,null,null,null,null,null,null,"05","e. Trabajador limpieza y mantenimiento",null,null,null,null,null,null,null,null,{"$f":"COUNTIF(U91:U97,\"NO\")","v":0}]
[null,null,null,null,null,"Perueduca, cursos para la comunidad educativa",null,null,null,null,null,null,null,null,null,"06","f. Auxiliar de biblioteca"]
[null,null,null,null,null,"Mi Institución Educativa",null,null,null,null,null,null,null,null,null,"07","g. Auxiliar de laboratorio"]
[null,null,null,null,null,"Mi UGEL",null,null,null,null,null,null,null,null,null,null,null,null,null,null,{"$f":"COUNTIF(U91:U97,\"SI\") + COUNTIF(U91:U97,\"NO\")","v":0}]
[null,null,null,null,null,"Otra UGEL"]
[null,null,null,null,null,"DRE"]
[null,null,null,null,null,"Otras instituciones",null,null,null,null,null,null,null,null,null,"716. ¿CUÁL DE LAS SIGUIENTES COMPETENCIAS CONSIDERA USTED COMO LA MÁS RELEVANTE EN EL EQUIPO "]
[null,null,null,null,null,"No cuento con personal auxiliar de educación",null,null,null,null,null,null,null,null,null,null,"DE PERSONAL  ADMINISTRATIVO DE ESTE SERVICIO NIVEL EDUCATIVO?"]
[null,null,null,null,null,"El personal auxiliar de educación no recibió capacitación"]
[null,null,null,null,null,null,null,null,null,null,null,null,null,null,null,null,null,"Marque con una “X”, una opción"]
[null,null,"712. SEÑOR(A) DIRECTOR(A), ¿CUÁL CONSIDERA USTED COMO PRINCIPAL TEMA QUE REQUIERE COMO"]
[null,null,null,"CAPACITACIÓN EL PERSONAL AUXILIAR DE EDUCACIÓN,  PARA MEJORAR SU DESEMPEÑO?",null,null,null,null,null,null,null,null,null,null,null,null,null,null,"Trabajo en equipo"]
[null,null,null,null,null,null,null,null,null,null,null,null,null,null,null,null,null,null,"Atención a usuarios"]
[null,null,null,null,"Marque con una “X”, una o más opciones",null,null,null,null,null,null,null,null,null,null,null,null,null,"Comunicación asertiva"]
[null,null,null,null,null,null,null,null,null,null,null,null,null,null,null,null,null,null,"Orientación a resultados"]
[null,null,null,null,null,"Habilidades blandas (intelig. emocional, comunic. asertiva, manejo de conflictos, etc)",null,null,null,null,null,null,null,null,null,null,null,null,"Orden y planificación estratégica"]
[null,null,null,null,null,"Habilidades duras (TICs, primeros aux., uso y peligros de internet, etc.)",null,null,null,null,null,null,null,null,null,null,null,null,"Orientación al servicio"]
[null,null,null,null,null,"Relación con los estudiantes (el juego, soporte socioem., prevención de la violencia escolar (bullying)",null,null,null,null,null,null,null,null,null,null,null,null,"Proactividad"]
[null,null,null,null,null,"No cuento con personal auxiliar de educación"]
[]
[]
[null,null,"717. ¿CUÁLES SON LAS DOS PRINCIPALES TEMÁTICAS QUE CONSIDERA USTED QUE EL PERSONAL ",null,null,null,null,null,null,null,null,null,null,null,null,"723. ¿QUÉ CONTENIDOS NORMATIVOS ESPERARÍA ENCONTRAR EN EL PORTAL WEB PARA "]
[null,null,null,"ADMINISTRATIVO DE ESTE SERVICIO/NIVEL EDUCATIVO PODRÍA SER CAPACITADO?",null,null,null,null,null,null,null,null,null,null,null,"          DIRECTIVO DE IE DEL MINEDU?",null,null,null,null,"Marque con una “X”, hasta dos opciones"]
[]
[null,null,null,null,"Marque con una “X”, solamente dos opciones",null,null,null,null,null,null,null,null,null,null,null,{"$f":"COUNTIF(R119:R122,\"X\")","v":0},null,"Sobre sus funciones"]
[null,null,null,null,null,null,null,null,null,null,null,null,null,null,null,null,null,null,"Sobre los documentos de gestión de debe elaborar"]
[null,null,null,{"$f":"COUNTIF(E121:E128,\"X\")","v":0},null,"Seguridad de control de accesos y de control interno de la IE.",null,null,null,null,null,null,null,null,null,null,null,null,"Sobre su rol de líder pedagógico"]
[null,null,null,null,null,"Gestión del mantenimiento de la IE (materiales, ambientes y equipos)",null,null,null,null,null,null,null,null,null,null,null,null,"Sobre las faltas en las podría incurrir de incumplir sus funciones"]
[null,null,null,null,null,"Manejo de habilidades interpersonales (atención de usuarios)"]
[null,null,null,null,null,"Técnicas de archivo y despacho de documentos",null,null,null,null,null,null,null,null,null,"724. DESDE EL 2019 A LA FECHA DE APLICACIÓN DEL CENSO 2022, ¿CONOCE LAS NORMAS"]
[null,null,null,null,null,"Manejo de los sistemas informáticos del Minedu",null,null,null,null,null,null,null,null,null,"         QUE REGULAN SUS FUNCIONES COMO DIRECTOR?"]
[null,null,null,null,null,"Administración y control de recursos propios (financieros)"]
[null,null,null,null,null,"Manejo de herramientas TIC y ofimática",null,null,null,null,null,null,null,null,null,null,"Sí",null,null,"No"]
[null,null,null,null,null,"Prevención y atención de situaciones de riesgo"]
[null,null,null,null,null,null,null,null,null,null,null,null,null,null,null,"725. ¿TIENE CONOCIMIENTO QUE EXISTE UNA HERRAMIENTA DIGITAL PARA LA EMISIÓN "]
[null,null,"718. CON RESPECTO A LAS LABORES DEL PERSONAL ADMINISTRATIVO DURANTE EL",null,null,null,null,null,null,null,null,null,null,null,null,"          DE CERTIFICADOS DE ESTUDIOS?"]
[null,null,null,"AÑO 2022, ¿EN QUÉ ÁMBITO(S) IDENTIFICÓ MAYOR CARGA DE ACTIVIDADES"]
[null,null,null,"OPERATIVAS?",null,null,null,null,null,null,null,null,null,null,null,null,"Sí",null,null,"¿Has hecho uso de la herramienta?"]
[]
[null,null,null,null,"Marque con una “X”, una o más opciones",null,null,null,null,null,null,null,null,null,null,null,null,null,null,"Si  "]
[null,null,null,null,null,null,null,null,null,null,null,null,null,null,null,null,null,null,null,"No"]
[null,null,null,null,null,"Gestión de recursos financieros, bienes, servicios e infraestructura ",null,null,null,null,null,null,null,null,null,null,"No"]
[null,null,null,null,null,"Gestión de información de la IE (registro en sistemas administrativos y trámite documentario) ",null,null,null,null,null,null,null,null,null,null,null,null,null,null,"¿Por qué?"]
[null,null,null,null,null,"Gestión y seguimiento del uso de los recursos educativos. ",null,null,null,null,null,null,null,null,null,null,null,null,null,null,"Marque con una “X”, una o más opciones"]
[null,null,null,null,null,"Limpieza y mantenimiento ",null,null,null,null,null,null,null,null,null,null,null,null,null,null,null," Baja demanda educativa o pocos estudiantes"]
[null,null,null,null,null,"Prevención y atención de situaciones de riesgo",null,null,null,null,null,null,null,null,null,null,null,null,null,null,null," La IE que dirijo es multigrado"]
[null,null,null,null,null,"Vigilancia y guardianía",null,null,null,null,null,null,null,null,null,null,null,null,null,null,null," Bajo o escaso acceso a internet en la localidad"]
[null,null,null,null,null,null,null,null,null,null,null,null,null,null,null,null,null,null,null,null,null," En la localidad se habla otra lengua distinta al español"]
[null,null,"719. ¿QUÉ INFORMACIÓN LE GUSTARÍA ENCONTRAR EN EL PORTAL WEB PARA DIRECTIVO DE I.E. DEL MINEDU?",null,null,null,null,null,null,null,null,null,null,null,null,null,null,null,null,null,null," Otro motivo"]
[]
[null,null,null,null,"Marque con una “X”, una o más opciones",null,null,null,null,null,null,null,null,null,null,"726.  EN SU OPINIÓN, ¿CUÁL DE LAS SIGUIENTES ALTERNATIVAS CONSIDERA MÁS ÚTIL, SI SE "]
[null,null,null,null,null,null,null,null,null,null,null,null,null,null,null,"           IMPLEMENTA EL SISTEMA DE MATRÍCULA DIGITAL /1 EN SU JURISDICCIÓN?"]
[null,null,null,null,null,"Lecturas, infografías y materiales diversos sobre las funciones como directivo"]
[null,null,null,null,null,"Videos tutoriales sobre las labores como directivos",null,null,null,null,null,null,null,null,null,null,null,"Marque con una “X”, una opcion"]
[null,null,null,null,null,"Material diverso sobre habilidades blandas necesarias para el cargo",null,null,null,null,null,null,null,null,null,null,null,null,"Reducción carga administrativa"]
[null,null,null,null,null,"Buenas prácticas para la gestión directiva",null,null,null,null,null,null,null,null,null,null,null,null,"Mayor transparencia en los procesos de admisión de los estudiantes"]
[null,null,null,null,null,"Información sobre las normativas sobre la gestión escolar",null,null,null,null,null,null,null,null,null,null,null,null,"Mejoras en la difusión de vacantes"]
[null,null,null,null,null,"Otros",null,null,null,null,null,null,null,null,null,null,null,null,"Mejoras en la difusión de información sobre las características de su IE"]
[null,null,null,null,null,null,null,null,null,null,null,null,null,null,null,null,null,null,"No será útil"]
[null,null,"720. SEÑOR(A) DIRECTOR(A), DESDE QUE EMPEZASTE TU CARRERA COMO DOCENTE, ",null,null,null,null,null,null,null,null,null,null,null,null,null,null,null,null,null,"¿ Por qué ?"]
[null,null,null,"¿CUÁNTOS AÑOS DE EXPERIENCIA TIENES COMO?",null,null,null,null,null,null,null,null,null,null,null,null,null,null,null,null,"Marque con una “X”, una o más opciones"]
[null,null,null,null,null,null,null,null,null,null,null,null,null,null,null,null,null,null,null,null,null,"Baja demanda educativa o pocos estudiantes"]
[null,null,null,null,"Marque con una “X”, una opcion",null,null,null,null,null,null,null,null,null,null,null,null,null,null,null,null,"La IE que dirijo es multigrado"]
[null,null,null,null,null,null,null,null,null,null,null,null,null,null,null,null,null,null,null,null,null,"Bajo o escaso acceso a internet en la localidad"]
[null,null,null,null,null,"Directivo encargado    --          Cantidad de años:",null,null,null,null,null,null,null,null,null,null,null,null,null,null,null,"En la localidad se habla otra lengua distinta al español"]
[null,null,null,null,null,"Directivo designado    --          Cantidad de años:",null,null,null,null,null,null,null,null,null,null,null,null,null,null,null,"Otro motivo"]
[]
[null,null,"721. ¿CON QUÉ FRECUENCIA VISITA EL PORTAL WEB PARA DIRECTIVO DE IE DEL MINEDU",null,null,null,null,null,null,null,null,null,null,null,null,"727. SEÑOR(A) DIRECTOR(A), DURANTE EL 2022 Y A LA LLEGADA DEL CENSO 2023"]
[null,null,null," (https://directivos.minedu.gob.pe/)?",null,null,null,null,null,null,null,null,null,null,null,null,"¿ H A PARTICIPADO DE ALGUNA DE LAS SIGUIENTES ACCIONES FORMATIVAS?"]
[]
[null,null,null,null,"Marque con una “X”, una opcion",null,null,null,null,null,null,null,null,null,null,null,"Sí",null,null,"No",null,null,"Pase a la pregunta 729"]
[]
[null,null,null,null,null,"Frecuentemente",null,null,null,null,null,null,null,null,null,null,null,null,"Marque con una “X”, una o más opciones"]
[null,null,null,null,null,"Poca frecuencia",null,null,null,null,null,null,null,null,null,null,null,null,"Cursos en didáctica o pedagogía"]
[null,null,null,null,null,"Casi nunca",null,null,null,null,null,null,null,null,null,null,null,null,"Congresos o seminarios vinculados a su cargo y funciones",null,null,null,null," "]
[null,null,null,null,null,"No visito el portal web",null,null,null,null,"Pase a la pregunta 725"]
[null,null,null,null,null,null,null,null,null,null,null,null,null,null,null,"728. ¿QUÉ ASPECTOS DE SU FORMACIÓN EN LIDERAZGO PEDAGÓGICO REQUIERE FORTALECER"]
[null,null,"722. ¿CONSIDERAS QUE LA INFORMACIÓN QUE ENCUENTRAS EN EL PORTAL WEB DE DIRECTIVOS ES ÚTIL?\n",null,null,null,null,null,null,null,null,null,null,null,null,null,"PARA MEJORAR LA GESTIÓN ESCOLAR EN SU SERVICIO/NIVEL EDUCATIVO?"]
[null,null,null,null,null,null,null,null,null,null,null,null,null,null,null,null,null,"Marque con una “X”, hasta 3 opciones"]
[null,null,null,null,"Marque con una “X”, una opcion",null,null,null,null,null,null,null,null,null,null,null,null,null,"Habilidades en organización e interpretación de la planificación en la IE"]
[null,null,null,null,null,null,null,null,null,null,null,null,null,null,null,null,null,null,"Habilidades para resolución de problemas en la IE"]
[null,null,null,null,null,"Muy útil",null,null,null,null,null,null,null,null,null,null,null,null,"Habilidades para apoyar a los docentes"]
[null,null,null,null,null,"Útil",null,null,null,null,null,null,null,null,null,null,null,null,"Habilidades para el fortalecimiento docente"]
[null,null,null,null,null,"Poco útil",null,null,null,null,null,null,null,null,null,null,null,null,"Habilidades para establecer el orden"]
[null,null,null,null,null,"Nada útil",null,null,null,null,null,null,null,null,null,null,null,null,"Habilidades para influenciar"]
[null,null,null,null,null,"No visito el portal web",null,null,null,null,null,null,null,null,null,null,null,null,"Habilidades para prevenir el conflicto"]
[null,null,null,null,null,null,null,null,null,null,null,null,null,null,null,null,null,null,"Habilidades para monitorear la contribución de la IE con la política educativa"]
[null,null,null,null,null,null,null,null,null,null,null,null,null,null,null,null,null,null,"Otros"]
[]
[]
[null,null,"729. EN EL AÑO 2023, ¿ESTE SERVICIO/NIVEL EDUCATIVO HA REALIZADO O PARTICIPADO EN ",null,null,null,null,null,null,null,null,null,null,null,null,"733. ESTE SERVICIO/NIVEL EDUCATIVO ¿CUENTA CON ALGUNA EXPERIENCIA EXITOSA O BUENA"]
[null,null,"         ACCIONES DE SEGURIDAD Y DEFENSA NACIONAL?",null,null,null,null,null,null,null,null,null,null,null,null,"  PRÁCTICA DOCENTE Y/O GESTIÓN ESCOLAR ENMARCADAS EN ALGUNA DE LAS LÍNEAS ESTRATÉGICAS?"]
[]
[null,null,null,"Sí",null,null,null,null,"No",null,null,null,null,null,null,null,"Sí",null,null,"No"]
[]
[null,null,null,null,null,"Marque todas las opciones implementadas"]
[null,null,null,null,null,"Actividad",null,null,null,null,"Marcar con “X”",null,null,null,null,null,null,"Complete la tabla"]
[null,null,null,null,null,"Capacitaciones",null,null,null,null,null,null,null,null,null,null,"Seleccione “Sí” o “No” para cada línea estratégica e ingrese los años según corresponda"]
[null,null,null,null,null,"Utilizado una estrategía\ncomunicacional",null,null,null,null,null,null,null,null,null,null,"Línea estratégica",null,null,"Experiencia exitosa",null,null,"Buena práctica docente y/o Gestión escolar"]
[null,null,null,null,null,"Otros",null,null,null,null,null,null,null,null,null,null,null,null,null,"¿Cuenta con experiencia exitosa?","Año de la experiencia exitosa","Se socializó con otras entidades","¿Cuenta con buena práctica docente y Gestión escolar?","Año de la buena práctica docente y/o Gestión escolar","Se socializó con otras entidades"]
[]
[null,null,"730. EN EL AÑO 2023, ¿ESTE SERVICIO/NIVEL EDUCATIVO HA INCORPORADO ACCIONES DE GESTIÓN"]
[null,null," DEL RIESGO DE EMERGENCIAS Y DESASTRES EN SUS INSTRUMENTOS DE GESTIÓN VIGENTES?",null,null,null,null,null,null,null,null,null,null,null,null,null,null,null,null,"Si / No",null,"Si / No","Si / No",null,"Si / No"]
[null,null,null,null,null,null,null,null,null,null,null,null,null,null,null,"01","a. Gestión del Riesgo de Desastres"]
[null,null,null,"Sí",null,null,null,null,"No",null,null,null,null,null,null,"02","b. Adaptación al cambio climático"]
[null,null,null,null,null,null,null,null,null,null,null,null,null,null,null,"03","c. Seguridad y Defensa Nacional"]
[null,null,null,null,null,"Precise los documentos de gestión",null,null,null,null,null,null,null,null,null,"04","d. Otro"]
[null,null,null,null,null,null,null,null,null,null,null,null,null,null,null,"03",null,null,null,{"$f":"COUNTIF(T198:T201,\"SI\")+COUNTIF(T198:T201,\"NO\")","v":0},null,null,{"$f":"COUNTIF(W198:W201,\"SI\")+COUNTIF(W198:W201,\"NO\")","v":0},"",""]
[null,null,null,null,null,"Documentos de Gestión",null,null,null,null,"Marcar\ncon “X”",null,null,null,null,"734. EN EL AÑO 2023 ¿CUÁLES SON LOS EQUIPOS Y SERVICIOS INFORMÁTICOS QUE CUENTA ESTE SERVICIO/NIVEL "]
[null,null,null,null,null,null,null,null,null,null,null,null,null,null,null,"         EDUCATIVO PARA REPORTAR LAS EMERGENCIAS, DESASTRES Y/O PELIGRO INMINENTE?"]
[null,null,null,null,null,"Proyecto Educativo Institucional (PEI)",null,null,null,null,null,null,null,null,null,null,"Marque con una “X”, una o más opciones"]
[null,null,null,null,null,"Plan Anual de Trabajo (PAT)",null,null,null,null,null,null,null,null,null,null,"Equipos ",null,null,null,null,"Marcar con X"]
[null,null,null,null,null,"Proyecto Currícular Institucional (PCI)",null,null,null,null,null,null,null,null,null,null,"PC"]
[null,null,null,null,null,"Reglamento Interno (RI)",null,null,null,null,null,null,null,null,null,null,"Tablet"]
[null,null,null,null,null,"Otros",null,null,null,null,null,null,null,null,null,null,"Equipos Móviles"]
[null,null,null,null,null,null,null,null,null,null,null,null,null,null,null,null,"Internet"]
[null,null,null,null,null,null,null,null,null,null,null,null,null,null,null,null,"No se cuenta"]
[null,null,"731. EN EL AÑO 2022, ¿ESTE SERVICIO/NIVEL EDUCATIVO CUENTA CON SU PLAN",null,null,null,null,null,null,null,null,null,null,null,null,null,"Otros"]
[null,null,null,"DE GESTIÓN DEL RIESGO DE DESASTRES VIGENTE?"]
[null,null,null,null,null,null,null,null,null,null,null,null,null,null,null,"735. EN EL AÑO 2023, ANTE LA DETECCIÓN DEL PELIGRO INMINENTE, EMERGENCIA O DESASTRE ¿ESTE SERVICIO/NIVEL"]
[null,null,null,"Sí",null,null,null,null,"No",null,null,null,null,null,null,"EDUCATIVO REALIZA LA ALERTA AL ESPACIO DE MONITOREO Y SEGUIMIENTO SECTORIAL (EMSS) DE LA UGEL?"]
[]
[null,null,null,null,null,null,null,null,null,null,null,null,null,null,null,null,"Sí",null,null,"No"]
[null,null,null,null,null,null,"Documento de aprobación N°"]
[]
[null,null,null,null,null,null,"Fecha de aprobación",null,null,"Día","Mes","Año",null,null,null,null,null,null,null,null,"¿Por qué? "]
[null,null,null,null,null,null,null,null,null,null,null,null,null,null,null,null,null,null,null,"Marque con una “X”, una o más opciones"]
[null,null,null,null,null,null,null,null,null,null,null,null,null,null,null,null,null,null,null,"ITEMS",null,null,null,null,"Marcar con X"]
[null,null,null,null,null,null,null,null,null,null,null,null,null,null,null,null,null,null,null,"No se tuvo emergencia en territorio"]
[null,null,"732. EN EL AÑO 2022 ¿LOS MIEMBROS DE ESTE SERVICIO/NIVEL EDUCATIVO HAN SIDO",null,null,null,null,null,null,null,null,null,null,null,null,null,null,null,null,"No se cuenta con los instrum. y herramientas"]
[null,null,"     CAPACITADOS EN MATERIA DE GESTIÓN INTEGRAL DEL RIESGO DE EMERGENCIAS Y DESASTRES?",null,null,null,null,null,null,null,null,null,null,null,null,null,null,null,null,"No se conoce el procedimiento"]
[null,null,null,null,null,null,null,null,null,null,null,null,null,null,null,null,null,null,null,"Otro"]
[null,null,null,"Sí",null,null,null,null,"No"]
[null,null,null,null,null,null,null,null,null,null,null,null,null,null,null,"736. EN EL AÑO 2023, ¿ESTE SERVICIO/NIVEL EDUCATIVO PARTICIPÓ EN LOS SIMULACROS CONVOCADOS"]
[null,null,null,null,null,null,null,null,null,null,null,null,null,null,null,"         POR MINEDU Y/O INDECI?"]
[null,null,null,null,null,null,"Tipo de\nCapacitación",null,null,"Cantidad de personas capacitadas"]
[null,null,null,null,null,null,null,null,null,"N° de Direc tores","N° de Docentes","N° de Adminis- trativos","N° Capacitados que pertenecen a la CEA y GRD",null,null,null,"Sí",null,null,"No"]
[]
[null,null,null,null,null,null,null,null,null,null,null,null,null,null,null,null,null,null,null,"Marque con una “X”, una o más opciones"]
[null,null,null,null,null,"01","Curso",null,null,null,null,null,null,{"$f":"SUM(J234:M234)","v":0}]
[null,null,null,null,null,"02","Taller",null,null,null,null,null,null,{"$f":"SUM(J235:M235)","v":0},null,null,null,null,null,"ITEMS",null,null,"Marcar con X"]
[null,null,null,null,null,"03","Charla",null,null,null,null,null,null,0,null,null,null,null,null,"Primer Simulacro"]
[null,null,null,null,null,"04","Seminario",null,null,null,null,null,null,0,null,null,null,null,null,"Segundo Simulacro"]
[null,null,null,null,null,"05","Webinar",null,null,null,null,null,null,0,null,null,null,null,null,"Tercer Simulacro"]
[null,null,null,null,null,"06","Otro",null,null,null,null,null,null,0,null,null,null,null,null,"Cuarto Simulacro"]
[null,null,null,null,null,null,null,null,null,null,null,null,{"$f":"SUM(J234:M239)","v":0}]
[]
[null,null,"737. ¿ESTE SERVICIO/NIVEL EDUCATIVO, ¿HA RECIBIDO POR PARTE DE LA UGEL ACCIONES DE COMUNICACIÓN",null,null,null,null,null,null,null,null,null,null,null,null,"742. EN ESTE SERVICIO/NIVEL EDUCATIVO, ¿EL RESPONSABLE DE GESTIÓN DE RIESGO"]
[null,null,"         PRESENCIAL O VIRTUAL PARA SENSIBILIZAR A LA COMUNIDAD EDUCATIVA EN TEMAS DE GESTIÓN DEL",null,null,null,null,null,null,null,null,null,null,null,null,null,"DE DESASTRES HA SIDO CAPACITADO PARA EL DESARROLLO DE SUS ROLES?"]
[null,null,"         RIESGO DE DESASTRES, CAMBIO CLIMÁTICO Y/O SEGURIDAD Y DEFENSA NACIONAL ?"]
[null,null,null,null,null,null,null,null,null,null,null,null,null,null,null,null,"Sí",null,null,"No"]
[null,null,null,"Sí",null,null,null,null,"No"]
[]
[null,null,null,null,null,null,"Indique,  ¿Qué acciones implementó o recibió? ",null,null,null,null,null,null,null,null,null,null,null,"Entidad que capacitó:",null,null,"DRE/GRE"]
[null,null,null,null,null,null,"Marque con una “X”, según corresponda",null,null,null,null,null,null,null,null,null,null,null,null,null,null,"UGEL"]
[]
[null,null,null,null,null,null,"ITEMS",null,null,null,null,null,"Marcar con X"]
[null,null,null,null,null,null,"Afiches y/o díptico y/o tríptico",null,null,null,null,null,null,null,null,"743. DURANTE EL ÚLTIMO MES, EN PROMEDIO, ¿CUÁNTAS HORAS SEMANALES,"]
[null,null,null,null,null,null,"Carteles o murales",null,null,null,null,null,null,null,null,null,"ADICIONALES A SU JORNADA LABORAL, USTED CONSIDERA QUE HA DESTINADO"]
[null,null,null,null,null,null,"Ferias estudiantiles",null,null,null,null,null,null,null,null,null,"PARA REALIZAR ACTIVIDADES RELACIONADAS A SU TRABAJO COMO DIRECTOR?"]
[null,null,null,null,null,null,"Radionovela y/o audios y radioteatro y videos animados"]
[null,null,null,null,null,null,"Otros",null,null,null,null,null,null,null,null,null,null,"Horas Semanales adicionales"]
[]
[]
[null,null,"738. ¿ESTE SERVICIO/NIVEL EDUCATIVO, ¿CUENTA CON EL APOYO DE ALIADOS ESTRATÉGICOS DE SU LOCALIDAD",null,null,null,null,null,null,null,null,null,null,null,null,"744. ¿CUÁLES SON LOS INSTRUMENTOS DE GESTIÓN ESCOLAR QUE SE HAN IMPLEMENTADO"]
[null,null,null,"PARA ATENDER ALGUNO DE LOS SIGUIENTES TEMAS?",null,null,null,null,null,null,null,null,null,null,null,null,"EN ESTE SERVICIO/NIVEL EDUCATIVO?"]
[]
[null,null,null,"Seleccione “Si” o “No” para cada caso y detalle al principal aliado estratégico según corresponda",null,null,null,null,null,null,null,null,null,null,null,null,null,null,"Documentos de Gestión",null,null,null,null,"Marcar con X"]
[null,null,null,null,null,null,null,null,null,null,null,null,null,null,null,null,null,null,"Proyecto Educativo Institucional (PEI)"]
[null,null,null,"Temas por atender",null,null,null,null,null,null,"¿Cuenta con el apoyo de aliados\nestratégicos de su localidad?",null,null,null,null,null,null,null,"Proyecto Currícular Institucional (PCI)"]
[null,null,null,null,null,null,null,null,null,null,null,null,null,null,null,null,null,null,"Reglamento Interno (RI)"]
[null,null,null,null,null,null,null,null,null,null,"Si / No","Mencione al principal aliado en cada caso",null,null,null,null,null,null,"Plan Anual de Trabajo (PAT)"]
[null,null,null,null,null,null,null,null,null,null,null,null,null,null,null,null,null,null,"Documento de Gestión (DG)"]
[null,null,null,"Gestión integral del riesgo de emergencias y desastres",null,null,null,null,null,null,null,null,null,null,null,null,null,null,"Otros - especifique"]
[null,null,null,"Adaptación al cambio climático"]
[null,null,null,"Seguridad y defensa nacional"]
[null,null,null,null,null,null,null,null,null,null,{"$f":"COUNTIF(K268:K270,\"SI\")+COUNTIF(K268:K270,\"NO\")","v":0},null,null,null,null,"745. POSTERIOR AL MONITOREO, ¿QUÉ TIPO DE RETROALIMENTACIÓN BRINDA A CADA DOCENTE?"]
[null,null,"739. ¿QUÉ COMITÉS DE GESTIÓN ESCOLAR HA IMPLEMENTADO EN ESTE SERVICIO/NIVEL EDUCATIVO?",null,null,null,null,null,null,null,null,null,null,null,null,null,null,"Marque con una \"X\", una opción"]
[null,null,null,null,null,null,null,null,null,null,null,null,null,null,null,null,null,null,"Descriptiva"]
[null,null,null,null,"I. Comité de Gestión de Condiciones Operativas",null,null,null,null,null,null,null,null,null,null,null,null,null,"Elemental"]
[null,null,null,null,"II. Comité de Gestión Pedagógica",null,null,null,null,null,null,null,null,null,null,null,null,null,"Reflexiva o por descubrimiento"]
[null,null,null,null,"III. Comité de Gestión del Bienestar",null,null,null,null,null,null,null,null,null,null,null,null,null,"No brinda retroalimentación por falta de tiempo"]
[]
[null,null,null,null,null,null,"Solo I"]
[null,null,null,null,null,null,"Solo II",null,null,null,null,null,null,null,null,"746. ¿CONOCE LOS PERFILES DE CARGOS DE DIRECTOR Y SUBDIRECTOR DE IE PUBLICADOS"]
[null,null,null,null,null,null,"Solo III",null,null,null,null,null,null,null,null,null,"EN EL AÑO 2021 EN EL CLASIFICADOR DE CARGOS (RVM N° 223-2021-MINEDU)?"]
[null,null,null,null,null,null,"I y II"]
[null,null,null,null,null,null,"I y III",null,null,null,null,null,null,null,null,null,"Sí",null,null,"No"]
[null,null,null,null,null,null,"II y III"]
[null,null,null,null,null,null,"Todos"]
[null,null,null,null,null,null,"Ninguno",null,null,null,null,null,null,null,null,null,"¿Considera que los perfiles de cargo de director y subdirector de IE brindan claridad"]
[null,null,null,null,null,null,null,null,null,null,null,null,null,null,null,null," para el desarrollo de las funciones del equipo directivo?"]
[null,null,"740. EL SERVICIO/NIVEL EDUCATIVO, ¿CUENTA CON LA BRIGADA DE EDUCACIÓN"]
[null,null,null,"AMBIENTAL Y GESTIÓN DE RIESGO DE DESASTRES?",null,null,null,null,null,null,null,null,null,null,null,null,"Sí",null,null,"No"]
[]
[null,null,null,"Sí",null,null,null,null,"No",null,null,"Pase a la pregunta 742"]
[null,null,null,null,null,null,null,null,null,null,null,null,null,null,null,"747. ESTE SERVICIO/NIVEL EDUCATIVO QUE DIRIGE, ¿DURANTE EL PRESENTE AÑO HA RECIBIDO O"]
[null,null,null,null,null,null,null,null,null,null,null,null,null,null,null,null,"VIENE RECIBIENDO APOYO DE ALGUNA EMPRESA PRIVADA O DE ALGUNA ONG EN TEMAS DE MEJORA"]
[null,null,null,null,null,"Documento que lo aprueba",null,null,null,null,"Resolución",null,null,null,null,null,"DE INFRAESTRUCTURA, MOBILIARIO Y EQUIPAMIENTO O CAPACITACIÓN DE PERSONAL DOCENTE?"]
[null,null,null,null,null,null,null,null,null,null,"Otro"]
[null,null,null,null,null,null,null,null,null,null,null,null,null,null,null,null,"Sí",null,null,"No",null,null,"Pase a la pregunta 801"]
[null,null,null,null,null,"Número del Documento"]
[]
[null,null,null,null,null,null,null,null,null,"Desde","DD/MM/AAAA","Hasta","DD/MM/AAAA",null,null,"748. INDIQUE EL TIPO DE APOYO QUE HA RECIBIDO DE LA EMPRESA PRIVADA U"]
[null,null,null,null,null,"Vigencia de la brigada",null,null,null,null,null,null,null,null,null,null,"ONG MENCIONADA EN SU RESPUESTA ANTERIOR"]
[]
[null,null,"741. EN ESTE SERVICIO/NIVEL EDUCATIVO, ¿LOS INTEGRANTES DE LA BRIGADA DE EDUCACIÓN AMBIENTAL Y",null,null,null,null,null,null,null,null,null,null,null,null,null,null,"Marque con una “X” una o más opciones"]
[null,null,null,"GESTIÓN DE RIESGO DE DESASTRES HAN SIDO CAPACITADOS ANTE SITUACIONES DE EMERGENCIA O DESASTRE?"]
[null,null,null,null,null,null,null,null,null,null,null,null,null,null,null,null,null,null,"Infraestructura"]
[null,null,null,"Sí",null,null,null,null,"No",null,null,null,null,null,null,null,null,null,"Mobiliario"]
[null,null,null,null,null,null,null,null,null,null,null,null,null,null,null,null,null,null,"Equipamiento"]
[null,null,null,null,null,"N° de integrantes que conforma la brigada",null,null,null,null,null,null,null,null,null,null,null,null,"Capacitación de personal docente"]
[null,null,null,null,null,"N° de integrantes capacitados de dicha brigada:",null,null,null,null,null,null,null,null,null,null,null,null,"Otro"]
[null,null,null,null,null,"Entidad que capacitó:"]
[null,null,null,null,null,null,null,null,null,null,"DRE/GRE"]
[null,null,null,null,null,null,null,null,null,null,"UGEL"]

{"sheet":"C800","index":9,"n_rows":167,"n_cols":17,"rows_kept":167,"cut":false,"hidden":false,"merged":[[48,14,48,17],[58,14,58,17],[27,4,27,7],[37,4,37,7],[47,4,47,7],[58,4,58,7],[17,14,17,17],[40,16,40,18],[6,1,6,18],[109,7,109,9],[101,14,101,15],[109,15,109,17],[106,1,106,18],[99,16,99,17],[100,16,100,17],[101,10,101,11],[101,12,101,13],[101,16,101,17],[100,12,100,13],[100,10,100,11],[103,14,103,15],[99,12,99,13],[103,10,103,11],[103,12,103,13],[99,14,99,15],[61,1,61,18],[98,12,98,13],[98,16,98,17],[99,10,99,11],[86,13,87,16],[76,6,76,9],[109,3,109,5],[96,2,97,2],[96,3,97,7],[97,16,97,17],[96,9,96,17],[97,14,97,15],[97,10,97,11],[97,12,97,13],[98,14,98,15],[98,10,98,11],[100,14,100,15],[103,16,103,17],[102,10,102,11],[102,12,102,13],[102,14,102,15],[102,16,102,17],[110,15,110,17],[111,15,111,17],[112,15,112,17],[109,10,109,14],[110,10,110,14],[111,7,111,9],[111,10,111,14],[112,2,112,6],[110,7,110,9],[110,2,110,6],[111,2,111,6],[112,7,112,9],[112,10,112,14]]}
[]
[null,null,null,null,null,"CENSO EDUCATIVO 2023"]
["Si",null,null,null,null,"MATRÍCULA, DOCENTES Y MATERIALES EDUCATIVOS"]
["No"]
[]
[]
[null,"800. APRENDO EN CASA - MULTICANALES"]
[]
[null,"801. ¿EL DOCENTE HACE USO DE LOS RECURSOS QUE SE ENCUENTRAN ALOJADOS",null,null,null,null,null,null,null,null,"807. SEGÚN LOS DOCENTES Y/O PEC DE SU SERVICIO EDUCATIVO ¿QUÉ TIPO DE"]
[null,null,"EN LAS PLATAFORMAS DE MINEDU? (Perueduca - Aprendo en Casa)",null,null,null,null,null,null,null,null,"MATERIALES CONSIDERAN NECESARIOS INCLUIR EN LA PLATAFORMA DE"]
[null,null,null,null,null,null,null,null,null,null,null,"APRENDO EN CASA 2023?"]
[null,null,null," Sí  ",null,"No  ",null,null,null,null,""]
[null,null,null,null,null,null,null,null,null,null,"","Marque con una \"X\", una o más opciones"]
[null,"802. EN SU SERVICIO EDUCATIVO, ¿HAN USADO LOS RECURSOS Y MATERIALES",null,null,null,null,null,null,null,null,"",null,null,"Libros digitales"]
[null,null,"EDUCATIVOS DE LA PLATAFORMA APRENDO EN CASA 2023?",null,null,null,null,null,null,null,null,null,null,"Audio cuentos"]
[null,null,null,null,null,null,null,null,"  Pase a la",null,null,null,null,"Juegos educativos"]
[null,null,null," Sí  ",null,"No  ",null,null,"  pregunta 809",null,null,null,null,"Interactivos"]
[null,null,null,null,null,null,null,null,null,null,null,null,null,"Otro"]
[null,"803. ¿CUÁL O CUÁLES SON LOS ACTORES DE SU SERVICIO EDUCATIVO QUE HAN"]
[null,null,"USADO LOS RECURSOS Y MATERIALES EDUCATIVOS DE LA PLATAFORMA",null,null,null,null,null,null,null,"808. ¿QUÉ TAN SATISFECHOS SE ENCUENTRAN LOS DOCENTES Y/O PROMOTORAS"]
[null,null,"APRENDO EN CASA 2023?",null,null,null,null,null,null,null,null,"DE SU SERVICIO EDUCATIVO CON RESPECTO A LOS MATERIALES Y RECURSOS"]
[null,null,null,null,null,null,null,null,null,null,null,"PROPORCIONADOS EN LA PLATAFORMA APRENDO EN CASA 2023?"]
[null,null,"Marque con una \"X\", una o más opciones"]
[null,null,null,"Docentes",null,null,null,null,null,null,null,"Marque con una \"X\", una opción"]
[null,null,null,"Familias",null,null,null,null,null,null,null,null,null,"Satisfecho"]
[null,null,null,"Estudiantes",null,null,null,null,null,null,null,null,null,"Poco satisfecho"]
[null,null,null,"Directivos",null,null,null,null,null,null,null,null,null,"Insatisfecho"]
[null,null,null,"Otro",null,null,null,null,null,null,null,null,null,"No aplica"]
[]
[null,"804. LOS DOCENTES Y/O PEC DE SU SERVICIO EDUCATIVO HAN USADO LOS",null,null,null,null,null,null,null,null,"809. ¿LOS ESTUDIANTES HACEN USO DE LAS TABLETAS?"]
[null,null,"MATERIALES Y RECURSOS DE LA PLATAFORMA APRENDO EN CASA 2023 PARA:"]
[null,null,null,null,null,null,null,null,null,null,null," Sí  ",null,"No  ",null,null,"Pase a la Sección 900"]
[null,null,"Marque con una \"X\", una o más opciones"]
[null,null,null,"Reforzar los aprendizajes de los estudiantes"]
[null,null,null,"Complementar los aprendizajes de sus estudiantes",null,null,null,null,null,null,null,null,null,null,"¿Por qué no hacen uso de las tabletas?"]
[null,null,null,"Generar el interés de sus estudiantes",null,null,{"$f":"CONCATENATE(C35,C36)","v":""},null,null,null,null,null,null,null,"Marque con una \"X\", una o más opciones"]
[null,null,null,"Reforzar mensajes a las familias"]
[null,null,null,"Otro",null,null,null,null,null,null,null,null,null,null,"","Por miedo/temor a dañarlas"]
[null,null,null,null,null,null,null,null,null,null,null,null,null,null,"","Porque no saben cómo usarla"]
[null,"805. LOS ESTUDIANTES HAN USADO LOS RECURSOS Y MATERIALES EDUCATIVOS",null,null,null,null,null,null,null,null,null,null,null,null,"","Porque no funcionan"]
[null,null,"DE LA PLATAFORMA APRENDO EN CASA 2023 PARA:",null,null,null,null,null,null,null,null,null,null,null,"","Otros"]
[]
[null,null,"Marque con una \"X\", una o más opciones",null,null,null,null,null,null,null,"810. SUS ESTUDIANTES, ¿QUÉ ACCIONES REALIZAN CON AYUDA DE LAS TABLETAS?"]
[]
[null,null,null,"Fortalecer sus aprendizajes",null,null,null,null,null,null,null,"Marque con una \"X\", una o más opciones"]
[null,null,null,"Complementar sus aprendizajes",null,null,null,null,null,null,null,null,null,"Buscar información"]
[null,null,null,"Resolver dudas",null,null,null,null,null,null,null,null,null,"Elaborar sus productos"]
[null,null,null,"Otro",null,null,null,null,null,null,null,null,null,"Organizar sus actividades"]
[null,null,null,null,null,null,null,null,null,null,null,null,null,"Otros"]
[null,"806. ¿CUÁL ES EL FORMATO DE LOS RECURSOS Y MATERIALES EDUCATIVOS DE LA"]
[null,null,"PLATAFORMA APRENDO EN CASA 2023 PREFERIDO POR LOS ACTORES DE SU"]
[null,null,"SERVICIO EDUCATIVO?",null,null,null,null,null,null,null,"811. ¿QUÉ APLICACIONES O UTILITARIOS DE LAS TABLET SON LOS MÁS INTEGRADOS/"]
[null,null,null,null,null,null,null,null,null,null,null,"USADOS POR LOS DOCENTES EN EL PROCESO DE ENSEÑANZA Y APRENDIZAJE?"]
[null,null,"Marque con una \"X\", una opción",null,null,null,null,"1: Siempre"]
[null,null,null,"PDF",null,null,null,"2: Casi Siempre",null,null,null,"Marque con una \"X\", una o más opciones"]
[null,null,null,"Interactivo",null,null,null,"3: A Veces",null,null,null,null,null,"Aplicaciones para crear objetos virtuales"]
[null,null,null,"Audio",null,null,null,"4: Casi Nunca",null,null,null,null,null,"Aplicaciones que brindan información"]
[null,null,null,"Vídeo",null,null,null,"5: Nunca",null,null,null,null,null,"Utilitarios, como lector y editor PDF, AnyDesk, etc."]
[null,null,null,"Otro",null,null,null,null,null,null,null,null,null,"Otros"]
[]
[]
[null,"900. ORIENTACIÓN VOCACIONAL Y CIENCIA TECNOLÓGICA"]
[]
[null,"901. ¿IMPLEMENTA ESTRATEGIAS DE ORIENTACIÓN VOCACIONAL ENTRE",null,null,null,null,null,null,null,null,"903. ¿HA PARTICIPADO EN LA FERIA ESCOLAR NACIONAL DE CIENCIA Y"]
[null,null,"SUS ESTUDIANTES?",null,null,null,null,null,null,null,null,"TECNOLOGÍA “EUREKA” O “EUREKA VIRTUAL” EN LOS ÚLTIMOS 3 AÑOS ?"]
[]
[null,null,null," Sí  ",null,"No  ",null,null,null,null,null," Sí  ",null,null,null,"No  "]
[]
[]
[null,null,null,null,"¿Qué estrategias de orientación vocacional implementa ",null,null,null,null,null,null,null,"¿Hasta qué etapa de la feria EUREKA lograron clasificar?"]
[null,null,null,null,"entre sus estudiantes?"]
[null,null,null,null,null,null,null,null,null,null,null,null,null,"Primera Etapa (II.EE.)"]
[null,null,null,null,null,"Charlas motivacionales",null,null,null,null,null,null,null,"Segunda etapa (UGEL)"]
[null,null,null,null,null,"Asesorías",null,null,null,null,null,null,null,"Tercera etapa (DRE)"]
[null,null,null,null,null,"Entrega de fichas informativas.",null,null,null,null,null,null,null,"Cuarta Etapa (Nacional)"]
[null,null,null,null,null,"Promoción de plataforma “Ponte en Carrera”"]
[null,null,null,null,null,"Otros"]
[null,null,null,null,null,null,null,null,null,null,"904. ¿ CUENTA CON CONVENIOS DE UNIVERSIDADES QUE PERMITA A LOS"]
[null,"902. ¿TIENE CONOCIMIENTO DE LA PLATAFORMA WEB ",null,null,null,null,null,null,null,null,null,"ESTUDIANTES CON LAS MEJORES CALIFICACIONES OBTENER SUBVENCIONES "]
[null,null," www.ponteencarrera.pe ?",null,null,null,null,null,null,null,null,"EDUCATIVAS (Becas y/o Creditos), EN DICHAS CASAS DE ESTUDIO?"]
[]
[null,null,null," Sí  ",null,"No  ",null,null,null,null,null," Sí  ",null,null,null,"No  "]
[]
[]
[null,null,null,null,"¿CÓMO CALIFICARÍA ESTA HERRAMIENTA PARA LOS FINES",null,null,null,null,null,null,null,null,"A. ¿Cuántas universidades?"]
[null,null,null,null,"DE ORIENTAR VOCACIONALMENTE A SUS ESTUDIANTES ?"]
[null,null,null,null,null,null,null,null,null,null,null,null,null,"B. Número total de vacantes                ofrecidas"]
[null,null,null,null,null,"Excelente"]
[null,null,null,null,null,"Bueno"]
[null,null,null,null,null,"Regular"]
[null,null,null,null,null,"Malo"]
[]
[]
[null,"905. DURANTE EL AÑO ACADÉMICO 2022, ¿LOS ESTUDIANTES RECIBIERON ALGUNAS DE LAS CHARLAS U ORIENTACIONES ORGANIZADAS POR SU INSTITUCIÓN "]
[null,null,"EDUCATIVA, YA SEA PRESENCIAL O VIRTUAL?"]
[]
[null,null,"Nro.","Charlas / Orientaciones",null,null,null,null,null,"Grado de estudio"]
[null,null,null,null,null,null,null,null,{"$f":"SUM(I99:I104)","v":0},"1º","2º",null,"3º",null,"4º",null,"5º"]
[null,null,1,"Aplicación de una prueba de orientación vocacional",null,null,null,null,{"$f":"COUNTIF(J99:Q99,\"SI\")+COUNTIF(J99:Q99,\"NO\")","v":0}]
[null,null,2,"Charlas vocacionales",null,null,null,null,0]
[null,null,3,"Ferias acerca de carreras ofrecidas por las universidades",null,null,null,null,0]
[null,null,4,"Charlas de inducción en el Portal Ponte en Carrera",null,null,null,null,0]
[null,null,5,"Aplicación de simulacros de admisión a la universidad",null,null,null,null,0]
[null,null,6,"Charlas informativas sobre los programas de PRONABEC",null,null,null,null,0]
[null,null,null,null,null,null,null,null,null,{"$f":"COUNTIF(J99:J104,\"SI\")+COUNTIF(J99:J104,\"NO\")","v":0},{"$f":"COUNTIF(K99:K104,\"SI\")+COUNTIF(K99:K104,\"NO\")","v":0},null,{"$f":"COUNTIF(M99:M104,\"SI\")+COUNTIF(M99:M104,\"NO\")","v":0},null,{"$f":"COUNTIF(O99:O104,\"SI\")+COUNTIF(O99:O104,\"NO\")","v":0},null,{"$f":"COUNTIF(Q99:Q104,\"SI\")+COUNTIF(Q99:Q104,\"NO\")","v":0}]
[]
[null,"DATOS DEL DIRECTOR/RESPONSABLE DEL LLENADO DE LA CÉDULA"]
[]
[]
[null,null,null,"NOMBRES Y APELLIDOS",null,null,null,"CARGO",null,null,"CORREO ELECTRÓNICO",null,null,null,null,"TELÉFONO"]
[]
[]
[]
[]
[]
[]
[]
[]
[]
[]
[]
[]
[]
[]
[]
[]
["DIRECTOR(A)"]
["SUB DIRECTOR(A)"]
["DOCENTE"]
["COORDINADOR(A)"]
["ASESOR"]
["ADMINISTRATIVO"]
["ASISTENTE"]
["AUXILIAR"]
["SECRETARIA(O)"]
["ESTADÍSTICO"]
["ESPECIALISTA"]
["BIBLIOTECARIO"]
["CARE"]
["COMANDANTE PNP"]
["CONTADOR"]
["DAIP"]
["DIGITADOR(A)"]
["GERENTE"]
["JEFE ACADÉMICO"]
["JEFE ADMINISTRATIVO"]
["JEFE DE AREA"]
["JEFE DE LABORATORIO"]
["JEFE DE PERSONAL"]
["JEFE DE SEDE"]
["JEFE UNIDAD"]
["OFICINISTA"]
["OPERADOR DE SISTEMAS"]
["PERSONAL DE SERVICIO"]
["PROGRAMADOR"]
["PROMOTOR(A)"]
["PSICOLOGO"]
["REGISTRADOR(A)"]
["REPRESENTANTE LEGAL"]
["SOPORTE TECNOLOGICO"]
["TÉCNICO ADMINISTRATIVO"]
["TESORERO(A)"]
["TRABAJADOR SOCIAL"]
["TUTOR"]
["OTROS"]
["DOCENTE COORDINADOR(A)"]
["PEC"]

{"sheet":"Enviar","index":10,"n_rows":9,"n_cols":3,"rows_kept":9,"cut":false,"hidden":false,"merged":[[0,0,0,3],[1,0,1,3]]}
["CENSO EDUCATIVO 2023"]
["MATRÍCULA, DOCENTES Y MATERIALES EDUCATIVOS"]
[]
[]
[null,"Paso 1:","Realice el ENVÍO con su clave EOL."]
[]
[null,"Paso 2:","Una vez realizado el ENVÍO,  Revise su constancia de envio."]
[]
[null,"  ADVERTENCIA","ASEGÚRESE DE REGISTRAR TODA LA INFORMACIÓN DEL NIVEL INFORMANTE"]